{"text_format":"1","workbook":"xlsx","n_sheets":9,"sheets":["Intro","Notes & Assumptions","Version History","Annual Compliance ->","Price Control Inputs","Price and Quantity","Compliance Summary","Prior year inputs ->","Prior Year Inputs FY24"],"not_rendered":{"charts":0,"images":0,"macros":0,"external_links":0,"defined_names":3,"comments":0,"pivot_tables":0},"unopened":[],"bounds":{"document_bytes":16777216,"sheet_cells":100000,"rows_first":2000,"rows_last":500,"rows_between":2000,"halvings":0,"cell_chars":16384,"cell_head_chars":4096},"cells_cut":0,"cells_raw":0,"read":"whole","date_system":"1900"}

{"sheet":"Intro","index":0,"n_rows":0,"n_cols":0,"rows_kept":0,"cut":false,"hidden":false,"merged":[]}

{"sheet":"Notes & Assumptions","index":1,"n_rows":0,"n_cols":0,"rows_kept":0,"cut":false,"hidden":false,"merged":[]}

{"sheet":"Version History","index":2,"n_rows":6,"n_cols":5,"rows_kept":6,"cut":false,"hidden":false,"merged":[]}
[]
[null,"Version History"]
[]
[null,"Version","Description",null,"Published Date"]
[null,1,"SAU Price Control Model FY25-FY27",null,"1 May 2024"]
[null,1.1000000000000001,"Update to reflect expiry of Continued Ordering Period for Battery Backup Service and UNI-V Product Features for nbn® Ethernet (Fibre) as per Notes & Assumptions tab Note 15.",null,"24 July 2024"]

{"sheet":"Annual Compliance ->","index":3,"n_rows":0,"n_cols":0,"rows_kept":0,"cut":false,"hidden":false,"merged":[]}

{"sheet":"Price Control Inputs","index":4,"n_rows":87,"n_cols":6,"rows_kept":87,"cut":false,"hidden":false,"merged":[]}
["Cell colour meanings"]
[null,"Input cell"]
[null,"Calculation cell"]
[]
[null,"WAPC Allowance Calculations"]
[]
[null,"First financial year in which WAPC applies","FY25"]
[null,"Phase of the WAPC","CPI constraint"]
[]
[null,"WAPC Allowance",{"$f":"\"FY\"&RIGHT($D10,2)-1","v":"FY24"},{"$f":"C7","v":"FY25"},{"$f":"\"FY\"&RIGHT($D10,2)+1","v":"FY26"},{"$f":"\"FY\"&RIGHT($D10,2)+2","v":"FY27"}]
[]
[]
[null,"Annual CPI based on December quarter of Pt-1\nActual CPI for FY24 is based on actual December Quarter CPI as published by the Australian Bureau of Statistics for the 12 months up to 31 December 2023. Forecast CPI for FY25 and FY26 is based on the Reserve Bank of Australia’s forecasts contained in the Statement of Monetary Policy. These are sourced from: Table 3.1: Detailed Forecast Table – February 2024 (https://www.rba.gov.au/publications/smp/2024/feb/outlook.html)",null,4.1000000000000002E-2,3.2000000000000001E-2,2.8000000000000001E-2]
[null,null,null,"Actual","Forecast","Forecast"]
[]
[null,"X factor",null,{"$f":"IF($C$8=\"CPI Constraint\",0,\"Input\")","v":0},{"$f":"IF($C$8=\"CPI Constraint\",0,\"Input\")","v":0},0]
[null,"Cost pass through adjustment factor",null,{"$f":"'Price Control Inputs'!D34","v":0},{"$f":"'Price Control Inputs'!E34","v":0},{"$f":"'Price Control Inputs'!F34","v":0}]
[null,"Excess adjustment factor (EM)",null,{"$f":"'Price Control Inputs'!D47","v":0},{"$f":"'Price Control Inputs'!E47","v":0},{"$f":"'Price Control Inputs'!F47","v":0}]
[]
[null,"WAPC Allowance",null,{"$f":"(1+D13)*(1-D16)*(1+D17)*(1+D18)-1","v":4.0999999999999925E-2},{"$f":"(1+E13)*(1-E16)*(1+E17)*(1+E18)-1","v":3.2000000000000028E-2},{"$f":"(1+F13)*(1-F16)*(1+F17)*(1+F18)-1","v":2.8000000000000025E-2}]
[]
[null,"Cost pass-through factor",{"$f":"'Price Control Inputs'!C10","v":"FY24"},{"$f":"'Price Control Inputs'!D10","v":"FY25"},{"$f":"'Price Control Inputs'!E10","v":"FY26"},{"$f":"'Price Control Inputs'!F10","v":"FY27"}]
[null,"Note: Values for FY25, FY26 and FY27 below are stated as ‘n/a’ as there were no cost pass through events in financial year t-1. The cost pass-through adjustment factor in FY24 is zero: see clause 2D.2.5(c)(i) of the SAU."]
[null,"Inputs",null,"Actual","Forecast","Forecast"]
[null,"Input to cost pass-through adjustment factor in respect of previous year",null,0,{"$f":"D32","v":0},{"$f":"E32","v":0}]
[]
[null,"Total cost pass-through amount for current year",null,"n/a","n/a","n/a"]
[null,"CPI",null,{"$f":"INDEX('Price Control Inputs'!$D$13:$F$13,,MATCH('Price Control Inputs'!D22,'Price Control Inputs'!$D$10:$F$10,0))","v":4.1000000000000002E-2},{"$f":"INDEX('Price Control Inputs'!$D$13:$F$13,,MATCH('Price Control Inputs'!E22,'Price Control Inputs'!$D$10:$F$10,0))","v":3.2000000000000001E-2},{"$f":"INDEX('Price Control Inputs'!$D$13:$F$13,,MATCH('Price Control Inputs'!F22,'Price Control Inputs'!$D$10:$F$10,0))","v":2.8000000000000001E-2}]
[null,"X factor",null,{"$f":"INDEX('Price Control Inputs'!$D$16:$F$16,,MATCH('Price Control Inputs'!D22,'Price Control Inputs'!$D$10:$F$10,0))","v":0},{"$f":"INDEX('Price Control Inputs'!$D$16:$F$16,,MATCH('Price Control Inputs'!E22,'Price Control Inputs'!$D$10:$F$10,0))","v":0},{"$f":"INDEX('Price Control Inputs'!$D$16:$F$16,,MATCH('Price Control Inputs'!F22,'Price Control Inputs'!$D$10:$F$10,0))","v":0}]
[null,"Excess adjustment factor",null,{"$f":"D47","v":0},{"$f":"E47","v":0},{"$f":"F47","v":0}]
[null,"Notional revenue in previous year ",null,"n/a","n/a","n/a"]
[null,"Input to cost pass-through adjustment factor in respect of current year",null,{"$f":"IFERROR(D27/((1+D28)*(1-D29)*(1+D30)*D31),0)","v":0},{"$f":"IFERROR(E27/((1+E28)*(1-E29)*(1+E30)*E31),0)","v":0},{"$f":"IFERROR(F27/((1+F28)*(1-F29)*(1+F30)*F31),0)","v":0}]
[]
[null,"Cost pass-through adjustment factor (PT)",null,{"$f":"(1+D32)/(1+D25)-1","v":0},{"$f":"(1+E32)/(1+E25)-1","v":0},{"$f":"(1+F32)/(1+F25)-1","v":0}]
[]
[null,"Excess adjustment",{"$f":"C22","v":"FY24"},"FY25","FY26","FY27"]
[null,"Note: Values for FY25 and FY26 below are stated as ‘n/a’ as the Excess adjustment factor for those years is zero: see clause 2D.2.6(a) of the SAU."]
[]
[null,"Inputs",null,"Actual","Forecast","Forecast"]
[null,"CPI t-2",null,"n/a","n/a",{"$f":"D28","v":4.1000000000000002E-2}]
[null,"X factor t-2",null,"n/a","n/a",{"$f":"D29","v":0}]
[null,"Cost pass-through adjustment factor t-2",null,"n/a","n/a",{"$f":"E34","v":0}]
[null,"Excess adjustment factor t-2",null,"n/a","n/a",{"$f":"E30","v":0}]
[]
[null,"WAP Ratio t-2",null,"n/a","n/a",{"$f":"SUMPRODUCT('Price and Quantity'!G$11:G$291,'Price and Quantity'!F$299:F$579)/SUMPRODUCT('Price and Quantity'!F$11:F$291,'Price and Quantity'!F$299:F$579)","v":1.0408002509865739}]
[]
[null,"Excess adjustment factor (EM)",null,0,0,{"$f":"MIN(0,((1+F40)*(1-F41)*(1+F42)*(1+F43))/F45-1)","v":0}]
[]
[]
[]
[]
[]
[]
[]
[]
[]
[]
[]
[]
[]
[]
[]
[]
[]
[]
[]
[]
[]
[]
[]
[]
[]
[]
[]
[]
[]
[]
[]
[]
[]
[]
[]
[]
[]
[]
[]
[null,null,null,null,{"$f":"D87-C87","v":0}]

{"sheet":"Price and Quantity","index":5,"n_rows":579,"n_cols":13,"rows_kept":579,"cut":false,"hidden":false,"merged":[[8,10,8,12],[295,1,295,7]]}
["Cell colour meanings"]
[null,"Input cell"]
[null,"Calculation cell"]
[]
[null,"Price Control Price and Volume Inputs FY25 to FY27"]
[]
[]
[]
[null,"Tariff List and Pricing Roadmap Prices",null,null,null,{"$f":"\"FY\"&RIGHT($G$9,2)-1","v":"FY24"},{"$f":"'Price Control Inputs'!C7","v":"FY25"},{"$f":"\"FY\"&RIGHT($G$9,2)+1","v":"FY26"},{"$f":"\"FY\"&RIGHT($G$9,2)+2","v":"FY27"},null,"Percentage Tariff Change"]
[null,"Table references","WAPC Charge Component","NBN Co Network","Individual Price Control",null,null,null,null,null,{"$f":"G9","v":"FY25"},{"$f":"H9","v":"FY26"},{"$f":"I9","v":"FY27"}]
[null,"1.1\t  Flat-Rate Offers","AVC TC-4 25-100/5-20 Mbps","FTTB and FTTN",{"$f":"IFERROR(INDEX('Compliance Summary'!$B$40:$C$79,MATCH($C11,'Compliance Summary'!$C$40:$C$79,0),1),\"n/a\")","v":"Other fixed line and fixed wireless TC-4"},55,57.22,58.930000000000007,60.5,null,{"$f":"IF($E11=\"n/a\",\"n/a\",IFERROR(G11/F11-1,0))","v":4.0363636363636379E-2},{"$f":"IF($E11=\"n/a\",\"n/a\",IFERROR(H11/G11-1,0))","v":2.9884655714785158E-2},{"$f":"IF($E11=\"n/a\",\"n/a\",IFERROR(I11/H11-1,0))","v":2.6641778381130132E-2}]
[null,"1.1\t  Flat-Rate Offers","AVC TC-4 50-100/20 Mbps","FTTC",{"$f":"IFERROR(INDEX('Compliance Summary'!$B$40:$C$79,MATCH($C12,'Compliance Summary'!$C$40:$C$79,0),1),\"n/a\")","v":"Other fixed line and fixed wireless TC-4"},55,57.22,58.930000000000007,60.5,null,{"$f":"IF($E12=\"n/a\",\"n/a\",IFERROR(G12/F12-1,0))","v":4.0363636363636379E-2},2.9884655714785158E-2,2.6641778381130132E-2]
[null,"1.1\t  Flat-Rate Offers","AVC TC-4 100/20 Mbps","Fibre and HFC",{"$f":"IFERROR(INDEX('Compliance Summary'!$B$40:$C$79,MATCH($C13,'Compliance Summary'!$C$40:$C$79,0),1),\"n/a\")","v":"Other fixed line and fixed wireless TC-4"},55,57.22,58.930000000000007,60.5,null,4.0363636363636379E-2,2.9884655714785158E-2,2.6641778381130132E-2]
[null,"1.1\t  Flat-Rate Offers","AVC TC-4 200-250/8-20 Mbps","Wireless",{"$f":"IFERROR(INDEX('Compliance Summary'!$B$40:$C$79,MATCH($C14,'Compliance Summary'!$C$40:$C$79,0),1),\"n/a\")","v":"Other fixed line and fixed wireless TC-4"},55,57.22,58.930000000000007,60.5,null,4.0363636363636379E-2,2.9884655714785158E-2,2.6641778381130132E-2]
[null,"1.1\t  Flat-Rate Offers","AVC TC-4 50-100/20-40 Mbps","FTTC",{"$f":"IFERROR(INDEX('Compliance Summary'!$B$40:$C$79,MATCH($C15,'Compliance Summary'!$C$40:$C$79,0),1),\"n/a\")","v":"Other fixed line and fixed wireless TC-4"},58,60.22,61.930000000000007,63.5,null,3.8275862068965605E-2,2.8395881766855036E-2,2.5351202971096276E-2]
[null,"1.1\t  Flat-Rate Offers","AVC TC-4 25-100/5-40 Mbps","FTTB and FTTN",{"$f":"IFERROR(INDEX('Compliance Summary'!$B$40:$C$79,MATCH($C16,'Compliance Summary'!$C$40:$C$79,0),1),\"n/a\")","v":"Other fixed line and fixed wireless TC-4"},58,60.22,61.930000000000007,63.5,null,3.8275862068965605E-2,2.8395881766855036E-2,2.5351202971096276E-2]
[null,"1.1\t  Flat-Rate Offers","AVC TC-4 100/40 Mbps","Fibre and HFC",{"$f":"IFERROR(INDEX('Compliance Summary'!$B$40:$C$79,MATCH($C17,'Compliance Summary'!$C$40:$C$79,0),1),\"n/a\")","v":"Other fixed line and fixed wireless TC-4"},58,60.22,61.930000000000007,63.5,null,3.8275862068965605E-2,2.8395881766855036E-2,2.5351202971096276E-2]
[null,"1.1\t  Flat-Rate Offers","AVC TC-4 250/25 Mbps","Fibre and HFC",{"$f":"IFERROR(INDEX('Compliance Summary'!$B$40:$C$79,MATCH($C18,'Compliance Summary'!$C$40:$C$79,0),1),\"n/a\")","v":"Other fixed line and fixed wireless TC-4"},60,62.22,63.930000000000007,65.5,null,3.6999999999999922E-2,2.7483124397299941E-2,2.4558110433286373E-2]
[null,"1.1\t  Flat-Rate Offers","AVC TC-4 400/10-40 Mbps","Wireless",{"$f":"IFERROR(INDEX('Compliance Summary'!$B$40:$C$79,MATCH($C19,'Compliance Summary'!$C$40:$C$79,0),1),\"n/a\")","v":"Other fixed line and fixed wireless TC-4"},60,62.22,63.930000000000007,65.5,null,3.6999999999999922E-2,2.7483124397299941E-2,2.4558110433286373E-2]
[null,"1.1\t  Flat-Rate Offers","AVC TC-4 250/100 Mbps","Fibre",{"$f":"IFERROR(INDEX('Compliance Summary'!$B$40:$C$79,MATCH($C20,'Compliance Summary'!$C$40:$C$79,0),1),\"n/a\")","v":"Other fixed line and fixed wireless TC-4"},100,75,76.5,78.03,null,-0.25,2.0000000000000018E-2,2.0000000000000018E-2]
[null,"1.1\t  Flat-Rate Offers","AVC TC-4 500/200 Mbps","Fibre",{"$f":"IFERROR(INDEX('Compliance Summary'!$B$40:$C$79,MATCH($C21,'Compliance Summary'!$C$40:$C$79,0),1),\"n/a\")","v":"Other fixed line and fixed wireless TC-4"},160,100,102,104.04,null,-0.375,2.0000000000000018E-2,2.0000000000000018E-2]
[null,"1.1\t  Flat-Rate Offers","AVC TC-4 1000/50 Mbps","Fibre and HFC",{"$f":"IFERROR(INDEX('Compliance Summary'!$B$40:$C$79,MATCH($C22,'Compliance Summary'!$C$40:$C$79,0),1),\"n/a\")","v":"Other fixed line and fixed wireless TC-4"},70,72.22,73.930000000000007,75.5,null,3.1714285714285806E-2,2.3677651620049867E-2,2.1236304612471057E-2]
[null,"1.1\t  Flat-Rate Offers","AVC TC-4 1000/400 Mbps ","Fibre",{"$f":"IFERROR(INDEX('Compliance Summary'!$B$40:$C$79,MATCH($C23,'Compliance Summary'!$C$40:$C$79,0),1),\"n/a\")","v":"Other fixed line and fixed wireless TC-4"},230,125,127.5,130.05000000000001,null,-0.45652173913043481,2.0000000000000018E-2,2.0000000000000018E-2]
[null,"1.2\t  Flat-Rate Offers - Smart Places","Smart Places - AVC TC-4 100/40 Mbps","Fibre",{"$f":"IFERROR(INDEX('Compliance Summary'!$B$40:$C$79,MATCH($C24,'Compliance Summary'!$C$40:$C$79,0),1),\"n/a\")","v":"Other fixed line and fixed wireless TC-4"},58,60.22,61.930000000000007,63.5,null,3.8275862068965605E-2,2.8395881766855036E-2,2.5351202971096276E-2]
[null,"1.2\t  Flat-Rate Offers - Smart Places","Smart Places - AVC TC-4 250/100 Mbps","Fibre",{"$f":"IFERROR(INDEX('Compliance Summary'!$B$40:$C$79,MATCH($C25,'Compliance Summary'!$C$40:$C$79,0),1),\"n/a\")","v":"Other fixed line and fixed wireless TC-4"},100,75,76.5,78.03,null,-0.25,2.0000000000000018E-2,2.0000000000000018E-2]
[null,"1.2\t  Flat-Rate Offers - Smart Places","Smart Places - AVC TC-4 500/200 Mbps","Fibre",{"$f":"IFERROR(INDEX('Compliance Summary'!$B$40:$C$79,MATCH($C26,'Compliance Summary'!$C$40:$C$79,0),1),\"n/a\")","v":"Other fixed line and fixed wireless TC-4"},160,100,102,104.04,null,-0.375,2.0000000000000018E-2,2.0000000000000018E-2]
[null,"1.2\t  Flat-Rate Offers - Smart Places","Smart Places - AVC TC-4 1000/400 Mbps ","Fibre",{"$f":"IFERROR(INDEX('Compliance Summary'!$B$40:$C$79,MATCH($C27,'Compliance Summary'!$C$40:$C$79,0),1),\"n/a\")","v":"Other fixed line and fixed wireless TC-4"},230,125,127.5,130.05000000000001,null,-0.45652173913043481,2.0000000000000018E-2,2.0000000000000018E-2]
[null,"1.3\t  Bundled TC-4 Offers ","AVC TC-4 12/1 (Basic Bundled Offer)","Fibre, FTTB, FTTN, FTTC, HFC",{"$f":"IFERROR(INDEX('Compliance Summary'!$B$40:$C$79,MATCH($C28,'Compliance Summary'!$C$40:$C$79,0),1),\"n/a\")","v":"Other fixed line and fixed wireless TC-4"},12.01,12.01,12.01,12,null,0,0,-8.3263946711076287E-4]
[null,"1.3\t  Bundled TC-4 Offers ","AVC TC-4 12/1 Mbps ","Fibre, FTTB, FTTN, FTTC, HFC and Wireless",{"$f":"IFERROR(INDEX('Compliance Summary'!$B$40:$C$79,MATCH($C29,'Compliance Summary'!$C$40:$C$79,0),1),\"n/a\")","v":"Other fixed line and fixed wireless TC-4"},30.76,32.29,33.89,35.58,null,4.9739921976592827E-2,4.9550944564880739E-2,4.9867217468279712E-2]
[null,"1.3\t  Bundled TC-4 Offers ","AVC TC-4 25/5 Mbps ","Fibre, FTTB, FTTN,FTTC,HFC and Wireless",{"$f":"IFERROR(INDEX('Compliance Summary'!$B$40:$C$79,MATCH($C30,'Compliance Summary'!$C$40:$C$79,0),1),\"n/a\")","v":"Entry level TC-4"},32.36,33.68,34.75,35.71,null,4.0791100123609425E-2,3.1769596199525019E-2,2.7625899280575572E-2]
[null,"1.3\t  Bundled TC-4 Offers ","AVC TC-4 25/5-10 Mbps ","FTTB,FTTN",{"$f":"IFERROR(INDEX('Compliance Summary'!$B$40:$C$79,MATCH($C31,'Compliance Summary'!$C$40:$C$79,0),1),\"n/a\")","v":"Other fixed line and fixed wireless TC-4"},32.36,33.68,34.75,35.71,null,4.0791100123609425E-2,3.1769596199525019E-2,2.7625899280575572E-2]
[null,"1.3\t  Bundled TC-4 Offers ","AVC TC-4 25/10 Mbps ","Fibre, FTTC, HFC",{"$f":"IFERROR(INDEX('Compliance Summary'!$B$40:$C$79,MATCH($C32,'Compliance Summary'!$C$40:$C$79,0),1),\"n/a\")","v":"Other fixed line and fixed wireless TC-4"},32.36,33.68,34.75,35.71,null,4.0791100123609425E-2,3.1769596199525019E-2,2.7625899280575572E-2]
[null,"1.3\t  Bundled TC-4 Offers ","AVC TC-4 25-50/5-20 Mbps ","FTTB,FTTN",{"$f":"IFERROR(INDEX('Compliance Summary'!$B$40:$C$79,MATCH($C33,'Compliance Summary'!$C$40:$C$79,0),1),\"n/a\")","v":"Other fixed line and fixed wireless TC-4"},51.16,53.68,55.59,57.26,null,4.9257232212666313E-2,3.5581222056632056E-2,3.0041374347904215E-2]
[null,"1.3\t  Bundled TC-4 Offers ","AVC TC-4 50/20 Mbps ","Fibre, FTTC, HFC",{"$f":"IFERROR(INDEX('Compliance Summary'!$B$40:$C$79,MATCH($C34,'Compliance Summary'!$C$40:$C$79,0),1),\"n/a\")","v":"Other fixed line and fixed wireless TC-4"},51.16,53.68,55.59,57.26,null,4.9257232212666313E-2,3.5581222056632056E-2,3.0041374347904215E-2]
[null,"1.3\t  Bundled TC-4 Offers ","AVC TC-4 up to 100/up to 20 Mbps ","Wireless",{"$f":"IFERROR(INDEX('Compliance Summary'!$B$40:$C$79,MATCH($C35,'Compliance Summary'!$C$40:$C$79,0),1),\"n/a\")","v":"Other fixed line and fixed wireless TC-4"},51.16,53.68,55.59,57.26,null,4.9257232212666313E-2,3.5581222056632056E-2,3.0041374347904215E-2]
[null,"1.4\t  Bundled TC-4 Offers: Smart Places","Smart Places - AVC TC-4 25/10 Mbps ","Fibre",{"$f":"IFERROR(INDEX('Compliance Summary'!$B$40:$C$79,MATCH($C36,'Compliance Summary'!$C$40:$C$79,0),1),\"n/a\")","v":"Other fixed line and fixed wireless TC-4"},32.36,33.68,34.75,35.71,null,4.0791100123609425E-2,3.1769596199525019E-2,2.7625899280575572E-2]
[null,"1.4\t  Bundled TC-4 Offers: Smart Places","Smart Places - AVC TC-4 50/20 Mbps ","Fibre",{"$f":"IFERROR(INDEX('Compliance Summary'!$B$40:$C$79,MATCH($C37,'Compliance Summary'!$C$40:$C$79,0),1),\"n/a\")","v":"Other fixed line and fixed wireless TC-4"},51.16,53.68,55.59,57.26,null,4.9257232212666313E-2,3.5581222056632056E-2,3.0041374347904215E-2]
[null,"1.5  Asymmetric AVC Offers in respect of the NBN Co Satellite Network","AVC TC-4 12/1 Mbps","Satellite",{"$f":"IFERROR(INDEX('Compliance Summary'!$B$40:$C$79,MATCH($C38,'Compliance Summary'!$C$40:$C$79,0),1),\"n/a\")","v":"Satellite AVC TC-4"},24,24,24,24,null,0,0,0]
[null,"1.5  Asymmetric AVC Offers in respect of the NBN Co Satellite Network","AVC TC-4 25/5 Mbps","Satellite",{"$f":"IFERROR(INDEX('Compliance Summary'!$B$40:$C$79,MATCH($C39,'Compliance Summary'!$C$40:$C$79,0),1),\"n/a\")","v":"Satellite AVC TC-4"},27,27,27,27,null,0,0,0]
[null,"2.1  Bundled TC-2 Offers ","AVC TC-2 5/5 Mbps","Fibre, FTTB, FTTN, FTTC, HFC",{"$f":"IFERROR(INDEX('Compliance Summary'!$B$40:$C$79,MATCH($C40,'Compliance Summary'!$C$40:$C$79,0),1),\"n/a\")","v":"n/a"},50,50,50,50,null,"n/a","n/a","n/a"]
[null,"2.1  Bundled TC-2 Offers ","AVC TC-2 10/10 Mbps","Fibre, FTTB, FTTN, FTTC, HFC",{"$f":"IFERROR(INDEX('Compliance Summary'!$B$40:$C$79,MATCH($C41,'Compliance Summary'!$C$40:$C$79,0),1),\"n/a\")","v":"n/a"},131,131,131,131,null,"n/a","n/a","n/a"]
[null,"2.1  Bundled TC-2 Offers ","AVC TC-2 20/20 Mbps","Fibre, FTTB, FTTN, FTTC",{"$f":"IFERROR(INDEX('Compliance Summary'!$B$40:$C$79,MATCH($C42,'Compliance Summary'!$C$40:$C$79,0),1),\"n/a\")","v":"n/a"},192,172,172,172,null,"n/a","n/a","n/a"]
[null,"2.1  Bundled TC-2 Offers ","AVC TC-2 30/30 Mbps","Fibre",{"$f":"IFERROR(INDEX('Compliance Summary'!$B$40:$C$79,MATCH($C43,'Compliance Summary'!$C$40:$C$79,0),1),\"n/a\")","v":"n/a"},220,175,175,175,null,"n/a","n/a","n/a"]
[null,"2.1  Bundled TC-2 Offers ","AVC TC-2 40/40 Mbps","Fibre",{"$f":"IFERROR(INDEX('Compliance Summary'!$B$40:$C$79,MATCH($C44,'Compliance Summary'!$C$40:$C$79,0),1),\"n/a\")","v":"n/a"},223,175,175,175,null,"n/a","n/a","n/a"]
[null,"2.1  Bundled TC-2 Offers ","AVC TC-2 50/50 Mbps","Fibre",{"$f":"IFERROR(INDEX('Compliance Summary'!$B$40:$C$79,MATCH($C45,'Compliance Summary'!$C$40:$C$79,0),1),\"n/a\")","v":"n/a"},225,175,175,175,null,"n/a","n/a","n/a"]
[null,"2.1  Bundled TC-2 Offers ","AVC TC-2 60/60 Mbps","Fibre",{"$f":"IFERROR(INDEX('Compliance Summary'!$B$40:$C$79,MATCH($C46,'Compliance Summary'!$C$40:$C$79,0),1),\"n/a\")","v":"n/a"},581,175,175,175,null,"n/a","n/a","n/a"]
[null,"2.1  Bundled TC-2 Offers ","AVC TC-2 70/70 Mbps","Fibre",{"$f":"IFERROR(INDEX('Compliance Summary'!$B$40:$C$79,MATCH($C47,'Compliance Summary'!$C$40:$C$79,0),1),\"n/a\")","v":"n/a"},626,175,175,175,null,"n/a","n/a","n/a"]
[null,"2.1  Bundled TC-2 Offers ","AVC TC-2 80/80 Mbps","Fibre",{"$f":"IFERROR(INDEX('Compliance Summary'!$B$40:$C$79,MATCH($C48,'Compliance Summary'!$C$40:$C$79,0),1),\"n/a\")","v":"n/a"},672,175,175,175,null,"n/a","n/a","n/a"]
[null,"2.1  Bundled TC-2 Offers ","AVC TC-2 90/90 Mbps","Fibre",{"$f":"IFERROR(INDEX('Compliance Summary'!$B$40:$C$79,MATCH($C49,'Compliance Summary'!$C$40:$C$79,0),1),\"n/a\")","v":"n/a"},704,175,175,175,null,"n/a","n/a","n/a"]
[null,"2.1  Bundled TC-2 Offers ","AVC TC-2 100/100 Mbps","Fibre",{"$f":"IFERROR(INDEX('Compliance Summary'!$B$40:$C$79,MATCH($C50,'Compliance Summary'!$C$40:$C$79,0),1),\"n/a\")","v":"n/a"},714,175,175,175,null,"n/a","n/a","n/a"]
[null,"2.2  Bundled TC-2 Offers: Smart Places ","Smart Places - AVC TC-2 5/5 Mbps","Fibre",{"$f":"IFERROR(INDEX('Compliance Summary'!$B$40:$C$79,MATCH($C51,'Compliance Summary'!$C$40:$C$79,0),1),\"n/a\")","v":"n/a"},50,50,50,50,null,"n/a","n/a","n/a"]
[null,"2.2  Bundled TC-2 Offers: Smart Places ","Smart Places  - AVC TC-2 10/10 Mbps","Fibre",{"$f":"IFERROR(INDEX('Compliance Summary'!$B$40:$C$79,MATCH($C52,'Compliance Summary'!$C$40:$C$79,0),1),\"n/a\")","v":"n/a"},131,131,131,131,null,"n/a","n/a","n/a"]
[null,"2.2  Bundled TC-2 Offers: Smart Places ","Smart Places - AVC TC-2 20/20 Mbps","Fibre",{"$f":"IFERROR(INDEX('Compliance Summary'!$B$40:$C$79,MATCH($C53,'Compliance Summary'!$C$40:$C$79,0),1),\"n/a\")","v":"n/a"},192,172,172,172,null,"n/a","n/a","n/a"]
[null,"2.2  Bundled TC-2 Offers: Smart Places ","Smart Places - AVC TC-2 50/50 Mbps","Fibre",{"$f":"IFERROR(INDEX('Compliance Summary'!$B$40:$C$79,MATCH($C54,'Compliance Summary'!$C$40:$C$79,0),1),\"n/a\")","v":"n/a"},225,175,175,175,null,"n/a","n/a","n/a"]
[null,"2.3  Symmetric Access Capacity Offers (TC-1)","AVC TC-1 0.15 Mbps","Fibre, FTTB, FTTN, FTTC, HFC, Wireless and Satellite",{"$f":"IFERROR(INDEX('Compliance Summary'!$B$40:$C$79,MATCH($C55,'Compliance Summary'!$C$40:$C$79,0),1),\"n/a\")","v":"n/a"},10,10,10,10,null,"n/a","n/a","n/a"]
[null,"2.3  Symmetric Access Capacity Offers (TC-1)","AVC TC-1 0.3 Mbps","Fibre, FTTB, FTTN, FTTC, HFC and Wireless",{"$f":"IFERROR(INDEX('Compliance Summary'!$B$40:$C$79,MATCH($C56,'Compliance Summary'!$C$40:$C$79,0),1),\"n/a\")","v":"n/a"},20,20,20,20,null,"n/a","n/a","n/a"]
[null,"2.3  Symmetric Access Capacity Offers (TC-1)","AVC TC-1 0.5 Mbps","Fibre, FTTB, FTTN, FTTC and HFC",{"$f":"IFERROR(INDEX('Compliance Summary'!$B$40:$C$79,MATCH($C57,'Compliance Summary'!$C$40:$C$79,0),1),\"n/a\")","v":"n/a"},33,33,33,33,null,"n/a","n/a","n/a"]
[null,"2.3  Symmetric Access Capacity Offers (TC-1)","AVC TC-1 1 Mbps","Fibre, FTTB, FTTN, FTTC and HFC",{"$f":"IFERROR(INDEX('Compliance Summary'!$B$40:$C$79,MATCH($C58,'Compliance Summary'!$C$40:$C$79,0),1),\"n/a\")","v":"n/a"},66,66,66,66,null,"n/a","n/a","n/a"]
[null,"2.3  Symmetric Access Capacity Offers (TC-1)","AVC TC-1 2 Mbps","Fibre, FTTB, FTTN, FTTC and HFC",{"$f":"IFERROR(INDEX('Compliance Summary'!$B$40:$C$79,MATCH($C59,'Compliance Summary'!$C$40:$C$79,0),1),\"n/a\")","v":"n/a"},132,132,132,132,null,"n/a","n/a","n/a"]
[null,"2.3  Symmetric Access Capacity Offers (TC-1)","AVC TC-1 5 Mbps","Fibre, FTTB, FTTN, FTTC and HFC",{"$f":"IFERROR(INDEX('Compliance Summary'!$B$40:$C$79,MATCH($C60,'Compliance Summary'!$C$40:$C$79,0),1),\"n/a\")","v":"n/a"},330,330,330,330,null,"n/a","n/a","n/a"]
[null,"3.2  Connectivity Virtual Circuit Offers","CVC TC-4 (Satellite)","Satellite",{"$f":"IFERROR(INDEX('Compliance Summary'!$B$40:$C$79,MATCH($C61,'Compliance Summary'!$C$40:$C$79,0),1),\"n/a\")","v":"Satellite CVC TC-4"},15.75,15.75,15.75,15.75,null,0,0,0]
[null,"3.2  Connectivity Virtual Circuit Offers","CVC TC-1","Fibre, FTTB, FTTN, FTTC and HFC",{"$f":"IFERROR(INDEX('Compliance Summary'!$B$40:$C$79,MATCH($C62,'Compliance Summary'!$C$40:$C$79,0),1),\"n/a\")","v":"n/a"},17.5,17.5,17.5,17.5,null,"n/a","n/a","n/a"]
[null,"3.2  Connectivity Virtual Circuit Offers","CVC TC-2","Fibre, FTTB, FTTN, FTTC and HFC",{"$f":"IFERROR(INDEX('Compliance Summary'!$B$40:$C$79,MATCH($C63,'Compliance Summary'!$C$40:$C$79,0),1),\"n/a\")","v":"n/a"},17.5,17.5,17.5,17.5,null,"n/a","n/a","n/a"]
[null,"4 CVC Class Offers for the NBN Co Satellite Network","CVC Class 0","Satellite",{"$f":"IFERROR(INDEX('Compliance Summary'!$B$40:$C$79,MATCH($C64,'Compliance Summary'!$C$40:$C$79,0),1),\"n/a\")","v":"Satellite CVC TC-4"},0,0,0,0,null,0,0,0]
[null,"4 CVC Class Offers for the NBN Co Satellite Network","CVC Class 1","Satellite",{"$f":"IFERROR(INDEX('Compliance Summary'!$B$40:$C$79,MATCH($C65,'Compliance Summary'!$C$40:$C$79,0),1),\"n/a\")","v":"Satellite CVC TC-4"},18,18,18,18,null,0,0,0]
[null,"4 CVC Class Offers for the NBN Co Satellite Network","CVC Class 2","Satellite",{"$f":"IFERROR(INDEX('Compliance Summary'!$B$40:$C$79,MATCH($C66,'Compliance Summary'!$C$40:$C$79,0),1),\"n/a\")","v":"Satellite CVC TC-4"},40,40,40,40,null,0,0,0]
[null,"5.1  Network to Network Interface Offers ","NNI 1000BaseLX - per NNI Bearer - Recurring","All",{"$f":"IFERROR(INDEX('Compliance Summary'!$B$40:$C$79,MATCH($C67,'Compliance Summary'!$C$40:$C$79,0),1),\"n/a\")","v":"n/a"},100,100,100,100,null,"n/a","n/a","n/a"]
[null,"5.1  Network to Network Interface Offers ","NNI 10GBaseLR - per NNI Bearer - Recurring","All",{"$f":"IFERROR(INDEX('Compliance Summary'!$B$40:$C$79,MATCH($C68,'Compliance Summary'!$C$40:$C$79,0),1),\"n/a\")","v":"n/a"},400,400,400,400,null,"n/a","n/a","n/a"]
[null,"5.1  Network to Network Interface Offers ","NNI 100GBaseLR4 - per NNI Bearer - Recurring","All",{"$f":"IFERROR(INDEX('Compliance Summary'!$B$40:$C$79,MATCH($C69,'Compliance Summary'!$C$40:$C$79,0),1),\"n/a\")","v":"n/a"},2400,2400,2400,2400,null,"n/a","n/a","n/a"]
[null,"5.1  Network to Network Interface Offers ","NNI 1000BaseEX - per NNI Bearer - Recurring","All",{"$f":"IFERROR(INDEX('Compliance Summary'!$B$40:$C$79,MATCH($C70,'Compliance Summary'!$C$40:$C$79,0),1),\"n/a\")","v":"n/a"},125,125,125,125,null,"n/a","n/a","n/a"]
[null,"5.1  Network to Network Interface Offers ","NNI 10GBaseER - per NNI Bearer - Recurring","All",{"$f":"IFERROR(INDEX('Compliance Summary'!$B$40:$C$79,MATCH($C71,'Compliance Summary'!$C$40:$C$79,0),1),\"n/a\")","v":"n/a"},500,500,500,500,null,"n/a","n/a","n/a"]
[null,"5.1  Network to Network Interface Offers ","NNI 100GBaseER4 - per NNI Bearer - Recurring","All",{"$f":"IFERROR(INDEX('Compliance Summary'!$B$40:$C$79,MATCH($C72,'Compliance Summary'!$C$40:$C$79,0),1),\"n/a\")","v":"n/a"},3000,3000,3000,3000,null,"n/a","n/a","n/a"]
[null,"5.1  Network to Network Interface Offers ","V-NNI","Fibre, FTTB, FTTN, FTTC, HFC and Wireless",{"$f":"IFERROR(INDEX('Compliance Summary'!$B$40:$C$79,MATCH($C73,'Compliance Summary'!$C$40:$C$79,0),1),\"n/a\")","v":"n/a"},65,65,65,65,null,"n/a","n/a","n/a"]
[null,"5.1  Network to Network Interface Offers ","NNI Link","Fibre, FTTB, FTTN, FTTC, HFC and Wireless",{"$f":"IFERROR(INDEX('Compliance Summary'!$B$40:$C$79,MATCH($C74,'Compliance Summary'!$C$40:$C$79,0),1),\"n/a\")","v":"n/a"},0,0,0,0,null,"n/a","n/a","n/a"]
[null,"5.2 10G NNI Starter Offers","NNI 10GBaseLR (in single chassis configuration or as one of a pair in a chassis diverse configuration)  – per NNI Bearer","All",{"$f":"IFERROR(INDEX('Compliance Summary'!$B$40:$C$79,MATCH($C75,'Compliance Summary'!$C$40:$C$79,0),1),\"n/a\")","v":"n/a"},0,200,200,200,null,"n/a",{"$f":"IF($E75=\"n/a\",\"n/a\",IFERROR(H75/G75-1,0))","v":"n/a"},{"$f":"IF($E75=\"n/a\",\"n/a\",IFERROR(I75/H75-1,0))","v":"n/a"}]
[null,"5.2 10G NNI Starter Offers","NNI 10GBaseER (in single chassis configuration or as one of a pair in a chassis diverse configuration)  – per NNI Bearer","All",{"$f":"IFERROR(INDEX('Compliance Summary'!$B$40:$C$79,MATCH($C76,'Compliance Summary'!$C$40:$C$79,0),1),\"n/a\")","v":"n/a"},0,250,250,250,null,{"$f":"IF($E76=\"n/a\",\"n/a\",IFERROR(G76/F76-1,0))","v":"n/a"},"n/a","n/a"]
[null,"6.  Second UNI-V and AVC Offer","Second UNI-V and AVC offer","Fibre",{"$f":"IFERROR(INDEX('Compliance Summary'!$B$40:$C$79,MATCH($C77,'Compliance Summary'!$C$40:$C$79,0),1),\"n/a\")","v":"n/a"},17.5,17.5,17.5,17.5,null,"n/a","n/a","n/a"]
[null,"7.1  Enhanced Fault Service Level Offers ","Enhanced SLA - 12","Fibre, FTTB, FTTN, FTTC and HFC",{"$f":"IFERROR(INDEX('Compliance Summary'!$B$40:$C$79,MATCH($C78,'Compliance Summary'!$C$40:$C$79,0),1),\"n/a\")","v":"n/a"},15,15,15,15,null,"n/a","n/a","n/a"]
[null,"7.1  Enhanced Fault Service Level Offers ","Enhanced SLA - 12 (24/7)","Fibre, FTTB, FTTN, FTTC and HFC",{"$f":"IFERROR(INDEX('Compliance Summary'!$B$40:$C$79,MATCH($C79,'Compliance Summary'!$C$40:$C$79,0),1),\"n/a\")","v":"n/a"},15,15,15,15,null,"n/a","n/a","n/a"]
[null,"7.1  Enhanced Fault Service Level Offers ","Enhanced SLA - 8","Fibre, FTTB, FTTN, FTTC and HFC",{"$f":"IFERROR(INDEX('Compliance Summary'!$B$40:$C$79,MATCH($C80,'Compliance Summary'!$C$40:$C$79,0),1),\"n/a\")","v":"n/a"},25,25,25,25,null,"n/a","n/a","n/a"]
[null,"7.1  Enhanced Fault Service Level Offers ","Enhanced SLA - 8 (24/7)","Fibre, FTTB, FTTN, FTTC and HFC",{"$f":"IFERROR(INDEX('Compliance Summary'!$B$40:$C$79,MATCH($C81,'Compliance Summary'!$C$40:$C$79,0),1),\"n/a\")","v":"n/a"},55,55,55,55,null,"n/a","n/a","n/a"]
[null,"7.1  Enhanced Fault Service Level Offers ","Enhanced SLA - 6","Fibre, FTTB, FTTN, FTTC and HFC",{"$f":"IFERROR(INDEX('Compliance Summary'!$B$40:$C$79,MATCH($C82,'Compliance Summary'!$C$40:$C$79,0),1),\"n/a\")","v":"n/a"},32.5,32.5,32.5,32.5,null,"n/a","n/a","n/a"]
[null,"7.1  Enhanced Fault Service Level Offers ","Enhanced SLA - 6 (24/7)","Fibre, FTTB, FTTN, FTTC and HFC",{"$f":"IFERROR(INDEX('Compliance Summary'!$B$40:$C$79,MATCH($C83,'Compliance Summary'!$C$40:$C$79,0),1),\"n/a\")","v":"n/a"},65,65,65,65,null,"n/a","n/a","n/a"]
[null,"7.1  Enhanced Fault Service Level Offers ","Enhanced SLA - 4","Fibre, FTTB, FTTN, FTTC and HFC",{"$f":"IFERROR(INDEX('Compliance Summary'!$B$40:$C$79,MATCH($C84,'Compliance Summary'!$C$40:$C$79,0),1),\"n/a\")","v":"n/a"},40,40,40,40,null,"n/a","n/a","n/a"]
[null,"7.1  Enhanced Fault Service Level Offers ","Enhanced SLA - 4 (24/7)","Fibre, FTTB, FTTN, FTTC and HFC",{"$f":"IFERROR(INDEX('Compliance Summary'!$B$40:$C$79,MATCH($C85,'Compliance Summary'!$C$40:$C$79,0),1),\"n/a\")","v":"n/a"},25,25,25,25,null,"n/a","n/a","n/a"]
[null,"7.2  Enhanced Fault Service level Offers","Enhanced SLA - 90 days (24/7)","Fibre, FTTB, FTTN, FTTC and HFC",{"$f":"IFERROR(INDEX('Compliance Summary'!$B$40:$C$79,MATCH($C86,'Compliance Summary'!$C$40:$C$79,0),1),\"n/a\")","v":"n/a"},150,150,150,150,null,"n/a","n/a","n/a"]
[null,"7.3 Enhanced Fault Service Level Offers: Smart Places     ","Smart Places - Enhanced SLA - 12","Fibre",{"$f":"IFERROR(INDEX('Compliance Summary'!$B$40:$C$79,MATCH($C87,'Compliance Summary'!$C$40:$C$79,0),1),\"n/a\")","v":"n/a"},15,15,15,15,null,"n/a","n/a","n/a"]
[null,"7.3 Enhanced Fault Service Level Offers: Smart Places     ","Smart Places - Enhanced SLA - 12 (24/7)","Fibre",{"$f":"IFERROR(INDEX('Compliance Summary'!$B$40:$C$79,MATCH($C88,'Compliance Summary'!$C$40:$C$79,0),1),\"n/a\")","v":"n/a"},15,15,15,15,null,"n/a","n/a","n/a"]
[null,"7.3 Enhanced Fault Service Level Offers: Smart Places     ","Smart Places - Enhanced SLA - 8","Fibre",{"$f":"IFERROR(INDEX('Compliance Summary'!$B$40:$C$79,MATCH($C89,'Compliance Summary'!$C$40:$C$79,0),1),\"n/a\")","v":"n/a"},25,25,25,25,null,"n/a","n/a","n/a"]
[null,"7.3 Enhanced Fault Service Level Offers: Smart Places     ","Smart places - Enhanced SLA - 8 (24/7)","Fibre",{"$f":"IFERROR(INDEX('Compliance Summary'!$B$40:$C$79,MATCH($C90,'Compliance Summary'!$C$40:$C$79,0),1),\"n/a\")","v":"n/a"},55,55,55,55,null,"n/a","n/a","n/a"]
[null,"8.1  Installations and activations – NBN Co Networks other than the NBN Co Satellite Network ","Initial Standard Installation","Fibre, FTTB, FTTN, FTTC, HFC and Wireless",{"$f":"IFERROR(INDEX('Compliance Summary'!$B$40:$C$79,MATCH($C91,'Compliance Summary'!$C$40:$C$79,0),1),\"n/a\")","v":"n/a"},0,0,0,0,null,"n/a","n/a","n/a"]
[null,"8.1  Installations and activations – NBN Co Networks other than the NBN Co Satellite Network ","After Hours Installation","Fibre, FTTB, FTTN, FTTC and HFC",{"$f":"IFERROR(INDEX('Compliance Summary'!$B$40:$C$79,MATCH($C92,'Compliance Summary'!$C$40:$C$79,0),1),\"n/a\")","v":"n/a"},150,150,150,150,null,"n/a","n/a","n/a"]
[null,"8.1  Installations and activations – NBN Co Networks other than the NBN Co Satellite Network ","Fibre upgrade installation","Fibre",{"$f":"IFERROR(INDEX('Compliance Summary'!$B$40:$C$79,MATCH($C93,'Compliance Summary'!$C$40:$C$79,0),1),\"n/a\")","v":"n/a"},200,200,200,200,null,"n/a","n/a","n/a"]
[null,"8.1  Installations and activations – NBN Co Networks other than the NBN Co Satellite Network ","Subsequent Installation of power supply with battery backup – Fibre Network only","Fibre",{"$f":"IFERROR(INDEX('Compliance Summary'!$B$40:$C$79,MATCH($C94,'Compliance Summary'!$C$40:$C$79,0),1),\"n/a\")","v":"n/a"},0,0,0,0,null,{"$f":"IF($E94=\"n/a\",\"n/a\",IFERROR(G94/F94-1,0))","v":"n/a"},{"$f":"IF($E94=\"n/a\",\"n/a\",IFERROR(H94/G94-1,0))","v":"n/a"},{"$f":"IF($E94=\"n/a\",\"n/a\",IFERROR(I94/H94-1,0))","v":"n/a"}]
[null,"8.1  Installations and activations – NBN Co Networks other than the NBN Co Satellite Network ","W-NTD Upgrade Installation","Wireless",{"$f":"IFERROR(INDEX('Compliance Summary'!$B$40:$C$79,MATCH($C95,'Compliance Summary'!$C$40:$C$79,0),1),\"n/a\")","v":"n/a"},200,200,200,200,null,{"$f":"IF($E95=\"n/a\",\"n/a\",IFERROR(G95/F95-1,0))","v":"n/a"},{"$f":"IF($E95=\"n/a\",\"n/a\",IFERROR(H95/G95-1,0))","v":"n/a"},{"$f":"IF($E95=\"n/a\",\"n/a\",IFERROR(I95/H95-1,0))","v":"n/a"}]
[null,"8.1  Installations and activations – NBN Co Networks other than the NBN Co Satellite Network ","Access Component Reactivation","Fibre, FTTB, FTTN, FTTC, HFC and Wireless",{"$f":"IFERROR(INDEX('Compliance Summary'!$B$40:$C$79,MATCH($C96,'Compliance Summary'!$C$40:$C$79,0),1),\"n/a\")","v":"n/a"},5,5,5,5,null,"n/a","n/a","n/a"]
[null,"8.1  Installations and activations – NBN Co Networks other than the NBN Co Satellite Network ","CVC Set-up & Activation","Fibre, FTTB, FTTN, FTTC, HFC and Wireless",{"$f":"IFERROR(INDEX('Compliance Summary'!$B$40:$C$79,MATCH($C97,'Compliance Summary'!$C$40:$C$79,0),1),\"n/a\")","v":"n/a"},0,0,0,0,null,"n/a","n/a","n/a"]
[null,"8.1  Installations and activations – NBN Co Networks other than the NBN Co Satellite Network ","NNI 1000BaseLX - Set-up & Activation","Fibre, FTTB, FTTN, FTTC, HFC and Wireless",{"$f":"IFERROR(INDEX('Compliance Summary'!$B$40:$C$79,MATCH($C98,'Compliance Summary'!$C$40:$C$79,0),1),\"n/a\")","v":"n/a"},1000,1000,1000,1000,null,"n/a","n/a","n/a"]
[null,"8.1  Installations and activations – NBN Co Networks other than the NBN Co Satellite Network ","NNI 10GBaseLR - Set-up & Activation","Fibre, FTTB, FTTN, FTTC, HFC and Wireless",{"$f":"IFERROR(INDEX('Compliance Summary'!$B$40:$C$79,MATCH($C99,'Compliance Summary'!$C$40:$C$79,0),1),\"n/a\")","v":"n/a"},5000,3000,3000,3000,null,"n/a","n/a","n/a"]
[null,"8.1  Installations and activations – NBN Co Networks other than the NBN Co Satellite Network ","NNI 100GBaseLR4 - Set-up & Activation","Fibre, FTTB, FTTN, FTTC, HFC and Wireless",{"$f":"IFERROR(INDEX('Compliance Summary'!$B$40:$C$79,MATCH($C100,'Compliance Summary'!$C$40:$C$79,0),1),\"n/a\")","v":"n/a"},30000,20000,20000,20000,null,"n/a","n/a","n/a"]
[null,"8.1  Installations and activations – NBN Co Networks other than the NBN Co Satellite Network ","NNI 1000BaseEX - Set-up & Activation","Fibre, FTTB, FTTN, FTTC, HFC and Wireless",{"$f":"IFERROR(INDEX('Compliance Summary'!$B$40:$C$79,MATCH($C101,'Compliance Summary'!$C$40:$C$79,0),1),\"n/a\")","v":"n/a"},2000,2000,2000,2000,null,"n/a","n/a","n/a"]
[null,"8.1  Installations and activations – NBN Co Networks other than the NBN Co Satellite Network ","NNI 10GBaseER - Set-up & Activation","Fibre, FTTB, FTTN, FTTC, HFC and Wireless",{"$f":"IFERROR(INDEX('Compliance Summary'!$B$40:$C$79,MATCH($C102,'Compliance Summary'!$C$40:$C$79,0),1),\"n/a\")","v":"n/a"},6000,4000,4000,4000,null,"n/a","n/a","n/a"]
[null,"8.1  Installations and activations – NBN Co Networks other than the NBN Co Satellite Network ","NNI 100GBaseER4 - Set-up & Activation","Fibre, FTTB, FTTN, FTTC, HFC and Wireless",{"$f":"IFERROR(INDEX('Compliance Summary'!$B$40:$C$79,MATCH($C103,'Compliance Summary'!$C$40:$C$79,0),1),\"n/a\")","v":"n/a"},36000,24000,24000,24000,null,"n/a","n/a","n/a"]
[null,"8.1  Installations and activations – NBN Co Networks other than the NBN Co Satellite Network ","NNI Link Activation","Fibre, FTTB, FTTN, FTTC, HFC and Wireless",{"$f":"IFERROR(INDEX('Compliance Summary'!$B$40:$C$79,MATCH($C104,'Compliance Summary'!$C$40:$C$79,0),1),\"n/a\")","v":"n/a"},0,0,0,0,null,"n/a","n/a","n/a"]
[null,"8.1  Installations and activations – NBN Co Networks other than the NBN Co Satellite Network ","Virtual NNI Activation","Fibre, FTTB, FTTN, FTTC, HFC and Wireless",{"$f":"IFERROR(INDEX('Compliance Summary'!$B$40:$C$79,MATCH($C105,'Compliance Summary'!$C$40:$C$79,0),1),\"n/a\")","v":"n/a"},250,250,250,250,null,"n/a","n/a","n/a"]
[null,"8.1  Installations and activations – NBN Co Networks other than the NBN Co Satellite Network ","Service Qualification Enquiry","Fibre, FTTB, FTTN, FTTC, HFC and Wireless",{"$f":"IFERROR(INDEX('Compliance Summary'!$B$40:$C$79,MATCH($C106,'Compliance Summary'!$C$40:$C$79,0),1),\"n/a\")","v":"n/a"},0,0,0,0,null,"n/a","n/a","n/a"]
[null,"8.2  Installations and activations – Smart Places","Smart Places - Initial Standard Installation","Fibre",{"$f":"IFERROR(INDEX('Compliance Summary'!$B$40:$C$79,MATCH($C107,'Compliance Summary'!$C$40:$C$79,0),1),\"n/a\")","v":"n/a"},0,0,0,0,null,"n/a","n/a","n/a"]
[null,"8.2  Installations and activations – Smart Places","Smart Places - Access Component Reactivation","Fibre",{"$f":"IFERROR(INDEX('Compliance Summary'!$B$40:$C$79,MATCH($C108,'Compliance Summary'!$C$40:$C$79,0),1),\"n/a\")","v":"n/a"},5,5,5,5,null,"n/a","n/a","n/a"]
[null,"8.2  Installations and activations – Smart Places","Smart Places - CVC Set-up & Activation","Fibre",{"$f":"IFERROR(INDEX('Compliance Summary'!$B$40:$C$79,MATCH($C109,'Compliance Summary'!$C$40:$C$79,0),1),\"n/a\")","v":"n/a"},0,0,0,0,null,"n/a","n/a","n/a"]
[null,"8.2  Installations and activations – Smart Places","Smart Places - NNI 1000BaseLX - Set-up & Activation","Fibre",{"$f":"IFERROR(INDEX('Compliance Summary'!$B$40:$C$79,MATCH($C110,'Compliance Summary'!$C$40:$C$79,0),1),\"n/a\")","v":"n/a"},1000,1000,1000,1000,null,"n/a","n/a","n/a"]
[null,"8.2  Installations and activations – Smart Places","Smart Places - NNI 10GBaseLR - Set-up & Activation","Fibre",{"$f":"IFERROR(INDEX('Compliance Summary'!$B$40:$C$79,MATCH($C111,'Compliance Summary'!$C$40:$C$79,0),1),\"n/a\")","v":"n/a"},5000,3000,3000,3000,null,"n/a","n/a","n/a"]
[null,"8.2  Installations and activations – Smart Places","Smart Places - NNI 100GBaseLR4 - Set-up & Activation","Fibre",{"$f":"IFERROR(INDEX('Compliance Summary'!$B$40:$C$79,MATCH($C112,'Compliance Summary'!$C$40:$C$79,0),1),\"n/a\")","v":"n/a"},30000,20000,20000,20000,null,"n/a","n/a","n/a"]
[null,"8.2  Installations and activations – Smart Places","Smart Places - NNI 1000BaseEX - Set-up & Activation","Fibre",{"$f":"IFERROR(INDEX('Compliance Summary'!$B$40:$C$79,MATCH($C113,'Compliance Summary'!$C$40:$C$79,0),1),\"n/a\")","v":"n/a"},2000,2000,2000,2000,null,"n/a","n/a","n/a"]
[null,"8.2  Installations and activations – Smart Places","Smart Places - NNI 10GBaseER - Set-up & Activation","Fibre",{"$f":"IFERROR(INDEX('Compliance Summary'!$B$40:$C$79,MATCH($C114,'Compliance Summary'!$C$40:$C$79,0),1),\"n/a\")","v":"n/a"},6000,4000,4000,4000,null,"n/a","n/a","n/a"]
[null,"8.2  Installations and activations – Smart Places","Smart Places - NNI 100GBaseER4 - Set-up & Activation","Fibre",{"$f":"IFERROR(INDEX('Compliance Summary'!$B$40:$C$79,MATCH($C115,'Compliance Summary'!$C$40:$C$79,0),1),\"n/a\")","v":"n/a"},36000,24000,24000,24000,null,"n/a","n/a","n/a"]
[null,"8.2  Installations and activations – Smart Places","Smart Places - NNI Link Activation","Fibre",{"$f":"IFERROR(INDEX('Compliance Summary'!$B$40:$C$79,MATCH($C116,'Compliance Summary'!$C$40:$C$79,0),1),\"n/a\")","v":"n/a"},0,0,0,0,null,"n/a","n/a","n/a"]
[null,"8.2  Installations and activations – Smart Places","Smart Places - Virtual NNI Activation","Fibre",{"$f":"IFERROR(INDEX('Compliance Summary'!$B$40:$C$79,MATCH($C117,'Compliance Summary'!$C$40:$C$79,0),1),\"n/a\")","v":"n/a"},250,250,250,250,null,"n/a","n/a","n/a"]
[null,"8.3 Installations and activations – NBN Co Satellite Network","Initial Standard Installation (excluding any additional incidental charges which may apply for Limited Access Areas)","Satellite",{"$f":"IFERROR(INDEX('Compliance Summary'!$B$40:$C$79,MATCH($C118,'Compliance Summary'!$C$40:$C$79,0),1),\"n/a\")","v":"n/a"},0,0,0,0,null,"n/a","n/a","n/a"]
[null,"8.3 Installations and activations – NBN Co Satellite Network","Access Component Reactivation (excluding any additional incidental charges which may apply for Limited Access Areas)","Satellite",{"$f":"IFERROR(INDEX('Compliance Summary'!$B$40:$C$79,MATCH($C119,'Compliance Summary'!$C$40:$C$79,0),1),\"n/a\")","v":"n/a"},5,5,5,5,null,"n/a","n/a","n/a"]
[null,"8.3 Installations and activations – NBN Co Satellite Network","Subsequent Installation in Urban Area, Major Rural Area, Minor Rural Area or Remote Area - 0.8m NTD outdoor unit dish","Satellite",{"$f":"IFERROR(INDEX('Compliance Summary'!$B$40:$C$79,MATCH($C120,'Compliance Summary'!$C$40:$C$79,0),1),\"n/a\")","v":"n/a"},692,692,692,692,null,"n/a","n/a","n/a"]
[null,"8.3 Installations and activations – NBN Co Satellite Network","Subsequent Installation in Urban Area, Major Rural Area, Minor Rural Area or Remote Area - 1.2m NTD outdoor unit dish","Satellite",{"$f":"IFERROR(INDEX('Compliance Summary'!$B$40:$C$79,MATCH($C121,'Compliance Summary'!$C$40:$C$79,0),1),\"n/a\")","v":"n/a"},1057,1057,1057,1057,null,"n/a","n/a","n/a"]
[null,"8.3 Installations and activations – NBN Co Satellite Network","Subsequent Installation in Urban Area, Major Rural Area, Minor Rural Area or Remote Area - 1.8m NTD outdoor unit dish","Satellite",{"$f":"IFERROR(INDEX('Compliance Summary'!$B$40:$C$79,MATCH($C122,'Compliance Summary'!$C$40:$C$79,0),1),\"n/a\")","v":"n/a"},2226,2226,2226,2226,null,"n/a","n/a","n/a"]
[null,"8.3 Installations and activations – NBN Co Satellite Network","Subsequent Installation in Isolated Area - 0.8m NTD outdoor unit dish","Satellite",{"$f":"IFERROR(INDEX('Compliance Summary'!$B$40:$C$79,MATCH($C123,'Compliance Summary'!$C$40:$C$79,0),1),\"n/a\")","v":"n/a"},1559,1559,1559,1559,null,"n/a","n/a","n/a"]
[null,"8.3 Installations and activations – NBN Co Satellite Network","Subsequent Installation in Isolated Area - 1.2m NTD outdoor unit dish","Satellite",{"$f":"IFERROR(INDEX('Compliance Summary'!$B$40:$C$79,MATCH($C124,'Compliance Summary'!$C$40:$C$79,0),1),\"n/a\")","v":"n/a"},1751,1751,1751,1751,null,"n/a","n/a","n/a"]
[null,"8.3 Installations and activations – NBN Co Satellite Network","Subsequent Installation in Isolated Area - 1.8m NTD outdoor unit dish","Satellite",{"$f":"IFERROR(INDEX('Compliance Summary'!$B$40:$C$79,MATCH($C125,'Compliance Summary'!$C$40:$C$79,0),1),\"n/a\")","v":"n/a"},3732,3732,3732,3732,null,"n/a","n/a","n/a"]
[null,"8.3 Installations and activations – NBN Co Satellite Network","Subsequent Installation in Isolated Area - 1.8m NTD outdoor unit dish","Satellite",{"$f":"IFERROR(INDEX('Compliance Summary'!$B$40:$C$79,MATCH($C126,'Compliance Summary'!$C$40:$C$79,0),1),\"n/a\")","v":"n/a"},0,0,0,0,null,"n/a","n/a","n/a"]
[null,"8.3 Installations and activations – NBN Co Satellite Network","NNI 1000BaseLX - Set-up & Activation","Satellite",{"$f":"IFERROR(INDEX('Compliance Summary'!$B$40:$C$79,MATCH($C127,'Compliance Summary'!$C$40:$C$79,0),1),\"n/a\")","v":"n/a"},1000,1000,1000,1000,null,"n/a","n/a","n/a"]
[null,"8.3 Installations and activations – NBN Co Satellite Network","NNI 10GBaseLR - Set-up & Activation","Satellite",{"$f":"IFERROR(INDEX('Compliance Summary'!$B$40:$C$79,MATCH($C128,'Compliance Summary'!$C$40:$C$79,0),1),\"n/a\")","v":"n/a"},5000,3000,3000,3000,null,"n/a","n/a","n/a"]
[null,"8.3 Installations and activations – NBN Co Satellite Network","NNI 1000BaseEX - Set-up & Activation","Satellite",{"$f":"IFERROR(INDEX('Compliance Summary'!$B$40:$C$79,MATCH($C129,'Compliance Summary'!$C$40:$C$79,0),1),\"n/a\")","v":"n/a"},2000,2000,2000,2000,null,"n/a","n/a","n/a"]
[null,"8.3 Installations and activations – NBN Co Satellite Network","NNI 10GBaseER - Set-up & Activation","Satellite",{"$f":"IFERROR(INDEX('Compliance Summary'!$B$40:$C$79,MATCH($C130,'Compliance Summary'!$C$40:$C$79,0),1),\"n/a\")","v":"n/a"},6000,4000,4000,4000,null,"n/a","n/a","n/a"]
[null,"8.3 Installations and activations – NBN Co Satellite Network","Site Survey Charge","Satellite",{"$f":"IFERROR(INDEX('Compliance Summary'!$B$40:$C$79,MATCH($C131,'Compliance Summary'!$C$40:$C$79,0),1),\"n/a\")","v":"n/a"},225,225,225,225,null,"n/a","n/a","n/a"]
[null,"8.4  Service modifications – NBN Co Networks other than the NBN Co Satellite Network","Access Component Modification (no attendance at Premises required)","Fibre, FTTB, FTTN, FTTC, HFC and Wireless",{"$f":"IFERROR(INDEX('Compliance Summary'!$B$40:$C$79,MATCH($C132,'Compliance Summary'!$C$40:$C$79,0),1),\"n/a\")","v":"n/a"},0,0,0,0,null,"n/a","n/a","n/a"]
[null,"8.4  Service modifications – NBN Co Networks other than the NBN Co Satellite Network","CVC Modification","Fibre, FTTB, FTTN, FTTC, HFC and Wireless",{"$f":"IFERROR(INDEX('Compliance Summary'!$B$40:$C$79,MATCH($C133,'Compliance Summary'!$C$40:$C$79,0),1),\"n/a\")","v":"n/a"},0,0,0,0,null,"n/a","n/a","n/a"]
[null,"8.4  Service modifications – NBN Co Networks other than the NBN Co Satellite Network","NNI Modification","Fibre, FTTB, FTTN, FTTC, HFC and Wireless",{"$f":"IFERROR(INDEX('Compliance Summary'!$B$40:$C$79,MATCH($C134,'Compliance Summary'!$C$40:$C$79,0),1),\"n/a\")","v":"n/a"},0,0,0,0,null,"n/a","n/a","n/a"]
[null,"8.4  Service modifications – NBN Co Networks other than the NBN Co Satellite Network","NNI Link Modification","Fibre, FTTB, FTTN, FTTC, HFC and Wireless",{"$f":"IFERROR(INDEX('Compliance Summary'!$B$40:$C$79,MATCH($C135,'Compliance Summary'!$C$40:$C$79,0),1),\"n/a\")","v":"n/a"},0,0,0,0,null,"n/a","n/a","n/a"]
[null,"8.5 Service modifications – Smart Places","Smart Places - Access Component Modification (no attendance at Smart Location required)","Fibre",{"$f":"IFERROR(INDEX('Compliance Summary'!$B$40:$C$79,MATCH($C136,'Compliance Summary'!$C$40:$C$79,0),1),\"n/a\")","v":"n/a"},0,0,0,0,null,"n/a","n/a","n/a"]
[null,"8.5 Service modifications – Smart Places","Smart Places - CVC Modification","Fibre",{"$f":"IFERROR(INDEX('Compliance Summary'!$B$40:$C$79,MATCH($C137,'Compliance Summary'!$C$40:$C$79,0),1),\"n/a\")","v":"n/a"},0,0,0,0,null,"n/a","n/a","n/a"]
[null,"8.5 Service modifications – Smart Places","Smart Places - NNI Modification","Fibre",{"$f":"IFERROR(INDEX('Compliance Summary'!$B$40:$C$79,MATCH($C138,'Compliance Summary'!$C$40:$C$79,0),1),\"n/a\")","v":"n/a"},0,0,0,0,null,"n/a","n/a","n/a"]
[null,"8.5 Service modifications – Smart Places","Smart Places - NNI Link Modification","Fibre",{"$f":"IFERROR(INDEX('Compliance Summary'!$B$40:$C$79,MATCH($C139,'Compliance Summary'!$C$40:$C$79,0),1),\"n/a\")","v":"n/a"},0,0,0,0,null,"n/a","n/a","n/a"]
[null,"8.6   Service modifications – NBN Co Satellite Network","Equipment Modification (NTD Indoor Unit)(excluding any additional incidental charges which may apply for Limited Access Areas)","Satellite",{"$f":"IFERROR(INDEX('Compliance Summary'!$B$40:$C$79,MATCH($C140,'Compliance Summary'!$C$40:$C$79,0),1),\"n/a\")","v":"n/a"},420,420,420,420,null,"n/a",{"$f":"IF($E140=\"n/a\",\"n/a\",IFERROR(H140/G140-1,0))","v":"n/a"},{"$f":"IF($E140=\"n/a\",\"n/a\",IFERROR(I140/H140-1,0))","v":"n/a"}]
[null,"8.6   Service modifications – NBN Co Satellite Network","Access Component Modification (no attendance at Premises required)","Satellite",{"$f":"IFERROR(INDEX('Compliance Summary'!$B$40:$C$79,MATCH($C141,'Compliance Summary'!$C$40:$C$79,0),1),\"n/a\")","v":"n/a"},0,0,0,0,null,{"$f":"IF($E141=\"n/a\",\"n/a\",IFERROR(G141/F141-1,0))","v":"n/a"},"n/a","n/a"]
[null,"8.6   Service modifications – NBN Co Satellite Network","CVC Modification","Satellite",{"$f":"IFERROR(INDEX('Compliance Summary'!$B$40:$C$79,MATCH($C142,'Compliance Summary'!$C$40:$C$79,0),1),\"n/a\")","v":"n/a"},0,0,0,0,null,"n/a","n/a","n/a"]
[null,"8.6   Service modifications – NBN Co Satellite Network","NNI Modification","Satellite",{"$f":"IFERROR(INDEX('Compliance Summary'!$B$40:$C$79,MATCH($C143,'Compliance Summary'!$C$40:$C$79,0),1),\"n/a\")","v":"n/a"},0,0,0,0,null,"n/a","n/a","n/a"]
[null,"8.6   Service modifications – NBN Co Satellite Network","Equipment Modification (NTD outdoor unit) in Urban Area, Major Rural Area, Minor Rural Area or Remote Area - 0.8m NTD outdoor unit dish","Satellite",{"$f":"IFERROR(INDEX('Compliance Summary'!$B$40:$C$79,MATCH($C144,'Compliance Summary'!$C$40:$C$79,0),1),\"n/a\")","v":"n/a"},754,754,754,754,null,"n/a","n/a","n/a"]
[null,"8.6   Service modifications – NBN Co Satellite Network","Equipment Modification (NTD outdoor unit) in Urban Area, Major Rural Area, Minor Rural Area or Remote Area - 1.2m NTD outdoor unit dish","Satellite",{"$f":"IFERROR(INDEX('Compliance Summary'!$B$40:$C$79,MATCH($C145,'Compliance Summary'!$C$40:$C$79,0),1),\"n/a\")","v":"n/a"},1119,1119,1119,1119,null,"n/a","n/a","n/a"]
[null,"8.6   Service modifications – NBN Co Satellite Network","Equipment Modification (NTD outdoor unit) in Urban Area, Major Rural Area, Minor Rural Area or Remote Area - 1.8m NTD outdoor unit dish","Satellite",{"$f":"IFERROR(INDEX('Compliance Summary'!$B$40:$C$79,MATCH($C146,'Compliance Summary'!$C$40:$C$79,0),1),\"n/a\")","v":"n/a"},2288,2288,2288,2288,null,"n/a","n/a","n/a"]
[null,"8.6   Service modifications – NBN Co Satellite Network","Equipment Modification (NTD outdoor unit) in Isolated Area - 0.8m NTD outdoor unit dish","Satellite",{"$f":"IFERROR(INDEX('Compliance Summary'!$B$40:$C$79,MATCH($C147,'Compliance Summary'!$C$40:$C$79,0),1),\"n/a\")","v":"n/a"},1621,1621,1621,1621,null,"n/a","n/a","n/a"]
[null,"8.6   Service modifications – NBN Co Satellite Network","Equipment Modification (NTD outdoor unit) in Isolated Area - 1.2m NTD outdoor unit dish","Satellite",{"$f":"IFERROR(INDEX('Compliance Summary'!$B$40:$C$79,MATCH($C148,'Compliance Summary'!$C$40:$C$79,0),1),\"n/a\")","v":"n/a"},1812,1812,1812,1812,null,"n/a","n/a","n/a"]
[null,"8.6   Service modifications – NBN Co Satellite Network","Equipment Modification (NTD outdoor unit) in Isolated Area - 1.8m NTD outdoor unit dish","Satellite",{"$f":"IFERROR(INDEX('Compliance Summary'!$B$40:$C$79,MATCH($C149,'Compliance Summary'!$C$40:$C$79,0),1),\"n/a\")","v":"n/a"},3793,3793,3793,3793,null,"n/a","n/a","n/a"]
[null,"8.6   Service modifications – NBN Co Satellite Network","Equipment Modification (NTD indoor and outdoor unit) in Urban Area, Major Rural Area, Minor Rural Area or Remote Area - 0.8m NTD outdoor unit dish","Satellite",{"$f":"IFERROR(INDEX('Compliance Summary'!$B$40:$C$79,MATCH($C150,'Compliance Summary'!$C$40:$C$79,0),1),\"n/a\")","v":"n/a"},783,783,783,783,null,"n/a","n/a","n/a"]
[null,"8.6   Service modifications – NBN Co Satellite Network","Equipment Modification (NTD indoor and outdoor unit) in Urban Area, Major Rural Area, Minor Rural Area or Remote Area - 1.2m NTD outdoor unit dish","Satellite",{"$f":"IFERROR(INDEX('Compliance Summary'!$B$40:$C$79,MATCH($C151,'Compliance Summary'!$C$40:$C$79,0),1),\"n/a\")","v":"n/a"},1149,1149,1149,1149,null,"n/a","n/a","n/a"]
[null,"8.6   Service modifications – NBN Co Satellite Network","Equipment Modification (NTD indoor and outdoor unit) in Urban Area, Major Rural Area, Minor Rural Area or Remote Area - 1.8m NTD outdoor unit dish","Satellite",{"$f":"IFERROR(INDEX('Compliance Summary'!$B$40:$C$79,MATCH($C152,'Compliance Summary'!$C$40:$C$79,0),1),\"n/a\")","v":"n/a"},2317,2317,2317,2317,null,"n/a","n/a","n/a"]
[null,"8.6   Service modifications – NBN Co Satellite Network","Equipment Modification (NTD indoor and outdoor unit) in Isolated Area - 0.8m NTD outdoor unit dish","Satellite",{"$f":"IFERROR(INDEX('Compliance Summary'!$B$40:$C$79,MATCH($C153,'Compliance Summary'!$C$40:$C$79,0),1),\"n/a\")","v":"n/a"},1650,1650,1650,1650,null,"n/a","n/a","n/a"]
[null,"8.6   Service modifications – NBN Co Satellite Network","Equipment Modification (NTD indoor and outdoor unit) in Isolated Area - 1.2m NTD outdoor unit dish","Satellite",{"$f":"IFERROR(INDEX('Compliance Summary'!$B$40:$C$79,MATCH($C154,'Compliance Summary'!$C$40:$C$79,0),1),\"n/a\")","v":"n/a"},1842,1842,1842,1842,null,"n/a","n/a","n/a"]
[null,"8.6   Service modifications – NBN Co Satellite Network","Equipment Modification (NTD indoor and outdoor unit) in Isolated Area - 1.8m NTD outdoor unit dish","Satellite",{"$f":"IFERROR(INDEX('Compliance Summary'!$B$40:$C$79,MATCH($C155,'Compliance Summary'!$C$40:$C$79,0),1),\"n/a\")","v":"n/a"},3823,3823,3823,3823,null,"n/a","n/a","n/a"]
[null,"8.7  Service management – NBN Co Networks other than the NBN Co Satellite Network ","On Site Maintainance Call Out","Fibre and Wireless",{"$f":"IFERROR(INDEX('Compliance Summary'!$B$40:$C$79,MATCH($C156,'Compliance Summary'!$C$40:$C$79,0),1),\"n/a\")","v":"n/a"},0,0,0,0,null,"n/a","n/a","n/a"]
[null,"8.7  Service management – NBN Co Networks other than the NBN Co Satellite Network ","No Fault Found (No Truck Roll Required)","Fibre and Wireless",{"$f":"IFERROR(INDEX('Compliance Summary'!$B$40:$C$79,MATCH($C157,'Compliance Summary'!$C$40:$C$79,0),1),\"n/a\")","v":"n/a"},50,50,50,50,null,"n/a","n/a","n/a"]
[null,"8.7  Service management – NBN Co Networks other than the NBN Co Satellite Network ","No Fault Found (No Truck Roll Required)","FTTB and FTTN and FTTC",{"$f":"IFERROR(INDEX('Compliance Summary'!$B$40:$C$79,MATCH($C158,'Compliance Summary'!$C$40:$C$79,0),1),\"n/a\")","v":"n/a"},50,50,50,50,null,"n/a","n/a","n/a"]
[null,"8.7  Service management – NBN Co Networks other than the NBN Co Satellite Network ","No Fault Found (No Truck Roll Required)","HFC",{"$f":"IFERROR(INDEX('Compliance Summary'!$B$40:$C$79,MATCH($C159,'Compliance Summary'!$C$40:$C$79,0),1),\"n/a\")","v":"n/a"},50,50,50,50,null,"n/a","n/a","n/a"]
[null,"8.7  Service management – NBN Co Networks other than the NBN Co Satellite Network ","Late Cancellation (Site Visit Required)","Fibre and Wireless",{"$f":"IFERROR(INDEX('Compliance Summary'!$B$40:$C$79,MATCH($C160,'Compliance Summary'!$C$40:$C$79,0),1),\"n/a\")","v":"n/a"},0,0,0,0,null,"n/a","n/a","n/a"]
[null,"8.7  Service management – NBN Co Networks other than the NBN Co Satellite Network ","Late Cancellation (Site Visit Required)","FTTB and FTTN and FTTC",{"$f":"IFERROR(INDEX('Compliance Summary'!$B$40:$C$79,MATCH($C161,'Compliance Summary'!$C$40:$C$79,0),1),\"n/a\")","v":"n/a"},75,75,75,75,null,"n/a","n/a","n/a"]
[null,"8.7  Service management – NBN Co Networks other than the NBN Co Satellite Network ","Late Cancellation (Site Visit Required)","HFC",{"$f":"IFERROR(INDEX('Compliance Summary'!$B$40:$C$79,MATCH($C162,'Compliance Summary'!$C$40:$C$79,0),1),\"n/a\")","v":"n/a"},75,75,75,75,null,"n/a","n/a","n/a"]
[null,"8.7  Service management – NBN Co Networks other than the NBN Co Satellite Network ","First Missed Appointment","Fibre and Wireless",{"$f":"IFERROR(INDEX('Compliance Summary'!$B$40:$C$79,MATCH($C163,'Compliance Summary'!$C$40:$C$79,0),1),\"n/a\")","v":"n/a"},0,0,0,0,null,"n/a","n/a","n/a"]
[null,"8.7  Service management – NBN Co Networks other than the NBN Co Satellite Network ","First Missed Appointment","FTTB and FTTN and FTTC",{"$f":"IFERROR(INDEX('Compliance Summary'!$B$40:$C$79,MATCH($C164,'Compliance Summary'!$C$40:$C$79,0),1),\"n/a\")","v":"n/a"},50,50,50,50,null,"n/a","n/a","n/a"]
[null,"8.7  Service management – NBN Co Networks other than the NBN Co Satellite Network ","First Missed Appointment","HFC",{"$f":"IFERROR(INDEX('Compliance Summary'!$B$40:$C$79,MATCH($C165,'Compliance Summary'!$C$40:$C$79,0),1),\"n/a\")","v":"n/a"},50,50,50,50,null,"n/a","n/a","n/a"]
[null,"8.7  Service management – NBN Co Networks other than the NBN Co Satellite Network ","Subsequent Missed Appointment","Fibre and Wireless",{"$f":"IFERROR(INDEX('Compliance Summary'!$B$40:$C$79,MATCH($C166,'Compliance Summary'!$C$40:$C$79,0),1),\"n/a\")","v":"n/a"},0,0,0,0,null,"n/a","n/a","n/a"]
[null,"8.7  Service management – NBN Co Networks other than the NBN Co Satellite Network ","Subsequent Missed Appointment","FTTB and FTTN and FTTC",{"$f":"IFERROR(INDEX('Compliance Summary'!$B$40:$C$79,MATCH($C167,'Compliance Summary'!$C$40:$C$79,0),1),\"n/a\")","v":"n/a"},75,75,75,75,null,"n/a","n/a","n/a"]
[null,"8.7  Service management – NBN Co Networks other than the NBN Co Satellite Network ","Subsequent Missed Appointment","HFC",{"$f":"IFERROR(INDEX('Compliance Summary'!$B$40:$C$79,MATCH($C168,'Compliance Summary'!$C$40:$C$79,0),1),\"n/a\")","v":"n/a"},75,75,75,75,null,"n/a","n/a","n/a"]
[null,"8.7  Service management – NBN Co Networks other than the NBN Co Satellite Network ","Co-ordinated Appointment (Day)","Fibre",{"$f":"IFERROR(INDEX('Compliance Summary'!$B$40:$C$79,MATCH($C169,'Compliance Summary'!$C$40:$C$79,0),1),\"n/a\")","v":"n/a"},200,200,200,200,null,"n/a","n/a","n/a"]
[null,"8.7  Service management – NBN Co Networks other than the NBN Co Satellite Network ","Co-ordinated Appointment (Day)","FTTB and FTTN and FTTC",{"$f":"IFERROR(INDEX('Compliance Summary'!$B$40:$C$79,MATCH($C170,'Compliance Summary'!$C$40:$C$79,0),1),\"n/a\")","v":"n/a"},200,200,200,200,null,"n/a","n/a","n/a"]
[null,"8.7  Service management – NBN Co Networks other than the NBN Co Satellite Network ","Co-ordinated Appointment (Day)","HFC",{"$f":"IFERROR(INDEX('Compliance Summary'!$B$40:$C$79,MATCH($C171,'Compliance Summary'!$C$40:$C$79,0),1),\"n/a\")","v":"n/a"},200,200,200,200,null,"n/a","n/a","n/a"]
[null,"8.7  Service management – NBN Co Networks other than the NBN Co Satellite Network ","Co-ordinated Appointment (Night)","Fibre",{"$f":"IFERROR(INDEX('Compliance Summary'!$B$40:$C$79,MATCH($C172,'Compliance Summary'!$C$40:$C$79,0),1),\"n/a\")","v":"n/a"},300,300,300,300,null,"n/a","n/a","n/a"]
[null,"8.7  Service management – NBN Co Networks other than the NBN Co Satellite Network ","Co-ordinated Appointment (Night)","FTTB and FTTN and FTTC",{"$f":"IFERROR(INDEX('Compliance Summary'!$B$40:$C$79,MATCH($C173,'Compliance Summary'!$C$40:$C$79,0),1),\"n/a\")","v":"n/a"},300,300,300,300,null,"n/a","n/a","n/a"]
[null,"8.7  Service management – NBN Co Networks other than the NBN Co Satellite Network ","Co-ordinated Appointment (Night)","HFC",{"$f":"IFERROR(INDEX('Compliance Summary'!$B$40:$C$79,MATCH($C174,'Compliance Summary'!$C$40:$C$79,0),1),\"n/a\")","v":"n/a"},300,300,300,300,null,"n/a","n/a","n/a"]
[null,"8.7  Service management – NBN Co Networks other than the NBN Co Satellite Network ","Late Cancellation (After Hours Installation Appointment)","Fibre",{"$f":"IFERROR(INDEX('Compliance Summary'!$B$40:$C$79,MATCH($C175,'Compliance Summary'!$C$40:$C$79,0),1),\"n/a\")","v":"n/a"},150,150,150,150,null,"n/a","n/a","n/a"]
[null,"8.7  Service management – NBN Co Networks other than the NBN Co Satellite Network ","Late Cancellation (After Hours Installation Appointment)","FTTB and FTTN and FTTC",{"$f":"IFERROR(INDEX('Compliance Summary'!$B$40:$C$79,MATCH($C176,'Compliance Summary'!$C$40:$C$79,0),1),\"n/a\")","v":"n/a"},150,150,150,150,null,"n/a","n/a","n/a"]
[null,"8.7  Service management – NBN Co Networks other than the NBN Co Satellite Network ","Late Cancellation (Co-ordinated Appointment) (Day)","Fibre and Wireless",{"$f":"IFERROR(INDEX('Compliance Summary'!$B$40:$C$79,MATCH($C177,'Compliance Summary'!$C$40:$C$79,0),1),\"n/a\")","v":"n/a"},200,200,200,200,null,"n/a","n/a","n/a"]
[null,"8.7  Service management – NBN Co Networks other than the NBN Co Satellite Network ","Late Cancellation (Co-ordinated Appointment) (Day)","FTTB and FTTN and FTTC",{"$f":"IFERROR(INDEX('Compliance Summary'!$B$40:$C$79,MATCH($C178,'Compliance Summary'!$C$40:$C$79,0),1),\"n/a\")","v":"n/a"},200,200,200,200,null,"n/a","n/a","n/a"]
[null,"8.7  Service management – NBN Co Networks other than the NBN Co Satellite Network ","Late Cancellation (Co-ordinated Appointment) (Day)","HFC",{"$f":"IFERROR(INDEX('Compliance Summary'!$B$40:$C$79,MATCH($C179,'Compliance Summary'!$C$40:$C$79,0),1),\"n/a\")","v":"n/a"},200,200,200,200,null,"n/a","n/a","n/a"]
[null,"8.7  Service management – NBN Co Networks other than the NBN Co Satellite Network ","Late Cancellation (Co-ordinated Appointmentt) (Night)","Fibre and Wireless",{"$f":"IFERROR(INDEX('Compliance Summary'!$B$40:$C$79,MATCH($C180,'Compliance Summary'!$C$40:$C$79,0),1),\"n/a\")","v":"n/a"},300,300,300,300,null,"n/a","n/a","n/a"]
[null,"8.7  Service management – NBN Co Networks other than the NBN Co Satellite Network ","Late Cancellation (Co-ordinated Appointmentt) (Night)","FTTB and FTTN and FTTC",{"$f":"IFERROR(INDEX('Compliance Summary'!$B$40:$C$79,MATCH($C181,'Compliance Summary'!$C$40:$C$79,0),1),\"n/a\")","v":"n/a"},300,300,300,300,null,"n/a","n/a","n/a"]
[null,"8.7  Service management – NBN Co Networks other than the NBN Co Satellite Network ","Late Cancellation (Co-ordinated Appointmentt) (Night)","HFC",{"$f":"IFERROR(INDEX('Compliance Summary'!$B$40:$C$79,MATCH($C182,'Compliance Summary'!$C$40:$C$79,0),1),\"n/a\")","v":"n/a"},300,300,300,300,null,"n/a","n/a","n/a"]
[null,"8.7  Service management – NBN Co Networks other than the NBN Co Satellite Network ","Late Rescheduling (Co-ordinated Appointment) (Day)","Fibre and Wireless",{"$f":"IFERROR(INDEX('Compliance Summary'!$B$40:$C$79,MATCH($C183,'Compliance Summary'!$C$40:$C$79,0),1),\"n/a\")","v":"n/a"},200,200,200,200,null,"n/a","n/a","n/a"]
[null,"8.7  Service management – NBN Co Networks other than the NBN Co Satellite Network ","Late Rescheduling (Co-ordinated Appointment) (Day)","FTTB and FTTN and FTTC",{"$f":"IFERROR(INDEX('Compliance Summary'!$B$40:$C$79,MATCH($C184,'Compliance Summary'!$C$40:$C$79,0),1),\"n/a\")","v":"n/a"},200,200,200,200,null,"n/a","n/a","n/a"]
[null,"8.7  Service management – NBN Co Networks other than the NBN Co Satellite Network ","Late Rescheduling (Co-ordinated Appointment) (Day)","HFC",{"$f":"IFERROR(INDEX('Compliance Summary'!$B$40:$C$79,MATCH($C185,'Compliance Summary'!$C$40:$C$79,0),1),\"n/a\")","v":"n/a"},200,200,200,200,null,"n/a","n/a","n/a"]
[null,"8.7  Service management – NBN Co Networks other than the NBN Co Satellite Network ","Late Rescheduling (Co-ordinated Appointment) (Night)","Fibre and Wireless",{"$f":"IFERROR(INDEX('Compliance Summary'!$B$40:$C$79,MATCH($C186,'Compliance Summary'!$C$40:$C$79,0),1),\"n/a\")","v":"n/a"},300,300,300,300,null,"n/a","n/a","n/a"]
[null,"8.7  Service management – NBN Co Networks other than the NBN Co Satellite Network ","Late Rescheduling (Co-ordinated Appointment) (Night)","FTTB and FTTN and FTTC",{"$f":"IFERROR(INDEX('Compliance Summary'!$B$40:$C$79,MATCH($C187,'Compliance Summary'!$C$40:$C$79,0),1),\"n/a\")","v":"n/a"},300,300,300,300,null,"n/a","n/a","n/a"]
[null,"8.7  Service management – NBN Co Networks other than the NBN Co Satellite Network ","Late Rescheduling (Co-ordinated Appointment) (Night)","HFC",{"$f":"IFERROR(INDEX('Compliance Summary'!$B$40:$C$79,MATCH($C188,'Compliance Summary'!$C$40:$C$79,0),1),\"n/a\")","v":"n/a"},300,300,300,300,null,"n/a","n/a","n/a"]
[null,"8.7  Service management – NBN Co Networks other than the NBN Co Satellite Network ","Restoration of an Ordered Product","Fibre and Wireless",{"$f":"IFERROR(INDEX('Compliance Summary'!$B$40:$C$79,MATCH($C189,'Compliance Summary'!$C$40:$C$79,0),1),\"n/a\")","v":"n/a"},50,50,50,50,null,"n/a","n/a","n/a"]
[null,"8.7  Service management – NBN Co Networks other than the NBN Co Satellite Network ","Restoration of an Ordered Product","FTTB and FTTN and FTTC",{"$f":"IFERROR(INDEX('Compliance Summary'!$B$40:$C$79,MATCH($C190,'Compliance Summary'!$C$40:$C$79,0),1),\"n/a\")","v":"n/a"},50,50,50,50,null,"n/a","n/a","n/a"]
[null,"8.7  Service management – NBN Co Networks other than the NBN Co Satellite Network ","Restoration of an Ordered Product","HFC",{"$f":"IFERROR(INDEX('Compliance Summary'!$B$40:$C$79,MATCH($C191,'Compliance Summary'!$C$40:$C$79,0),1),\"n/a\")","v":"n/a"},50,50,50,50,null,"n/a","n/a","n/a"]
[null,"8.7  Service management – NBN Co Networks other than the NBN Co Satellite Network ","Missed Appointment (After Hours Installation Appointment)","Fibre",{"$f":"IFERROR(INDEX('Compliance Summary'!$B$40:$C$79,MATCH($C192,'Compliance Summary'!$C$40:$C$79,0),1),\"n/a\")","v":"n/a"},150,150,150,150,null,"n/a","n/a","n/a"]
[null,"8.7  Service management – NBN Co Networks other than the NBN Co Satellite Network ","Missed Appointment (After Hours Installation Appointment)","FTTB and FTTN and FTTC",{"$f":"IFERROR(INDEX('Compliance Summary'!$B$40:$C$79,MATCH($C193,'Compliance Summary'!$C$40:$C$79,0),1),\"n/a\")","v":"n/a"},150,150,150,150,null,"n/a","n/a","n/a"]
[null,"8.7  Service management – NBN Co Networks other than the NBN Co Satellite Network ","Missed Appointment (Co-ordinated Appointment) (Day)","Fibre",{"$f":"IFERROR(INDEX('Compliance Summary'!$B$40:$C$79,MATCH($C194,'Compliance Summary'!$C$40:$C$79,0),1),\"n/a\")","v":"n/a"},200,200,200,200,null,"n/a","n/a","n/a"]
[null,"8.7  Service management – NBN Co Networks other than the NBN Co Satellite Network ","Missed Appointment (Co-ordinated Appointment) (Day)","FTTB and FTTN and FTTC",{"$f":"IFERROR(INDEX('Compliance Summary'!$B$40:$C$79,MATCH($C195,'Compliance Summary'!$C$40:$C$79,0),1),\"n/a\")","v":"n/a"},200,200,200,200,null,"n/a","n/a","n/a"]
[null,"8.7  Service management – NBN Co Networks other than the NBN Co Satellite Network ","Missed Appointment (Co-ordinated Appointment) (Day)","HFC",{"$f":"IFERROR(INDEX('Compliance Summary'!$B$40:$C$79,MATCH($C196,'Compliance Summary'!$C$40:$C$79,0),1),\"n/a\")","v":"n/a"},200,200,200,200,null,"n/a","n/a","n/a"]
[null,"8.7  Service management – NBN Co Networks other than the NBN Co Satellite Network ","Missed Appointment (Co-ordinated Appointment) (Night)","Fibre",{"$f":"IFERROR(INDEX('Compliance Summary'!$B$40:$C$79,MATCH($C197,'Compliance Summary'!$C$40:$C$79,0),1),\"n/a\")","v":"n/a"},300,300,300,300,null,"n/a","n/a","n/a"]
[null,"8.7  Service management – NBN Co Networks other than the NBN Co Satellite Network ","Missed Appointment (Co-ordinated Appointment) (Night)","FTTB and FTTN and FTTC",{"$f":"IFERROR(INDEX('Compliance Summary'!$B$40:$C$79,MATCH($C198,'Compliance Summary'!$C$40:$C$79,0),1),\"n/a\")","v":"n/a"},300,300,300,300,null,"n/a","n/a","n/a"]
[null,"8.7  Service management – NBN Co Networks other than the NBN Co Satellite Network ","Missed Appointment (Co-ordinated Appointment) (Night)","HFC",{"$f":"IFERROR(INDEX('Compliance Summary'!$B$40:$C$79,MATCH($C199,'Compliance Summary'!$C$40:$C$79,0),1),\"n/a\")","v":"n/a"},300,300,300,300,null,"n/a","n/a","n/a"]
[null,"8.7  Service management – NBN Co Networks other than the NBN Co Satellite Network ","Incorrect Callout","FTTB and FTTN and FTTC",{"$f":"IFERROR(INDEX('Compliance Summary'!$B$40:$C$79,MATCH($C200,'Compliance Summary'!$C$40:$C$79,0),1),\"n/a\")","v":"n/a"},75,75,75,75,null,{"$f":"IF($E200=\"n/a\",\"n/a\",IFERROR(G200/F200-1,0))","v":"n/a"},{"$f":"IF($E200=\"n/a\",\"n/a\",IFERROR(H200/G200-1,0))","v":"n/a"},{"$f":"IF($E200=\"n/a\",\"n/a\",IFERROR(I200/H200-1,0))","v":"n/a"}]
[null,"8.7  Service management – NBN Co Networks other than the NBN Co Satellite Network ","Incorrect Callout","HFC",{"$f":"IFERROR(INDEX('Compliance Summary'!$B$40:$C$79,MATCH($C201,'Compliance Summary'!$C$40:$C$79,0),1),\"n/a\")","v":"n/a"},75,75,75,75,null,"n/a","n/a","n/a"]
[null,"8.7  Service management – NBN Co Networks other than the NBN Co Satellite Network ","Voiceband Reinstatement","FTTB and FTTN",{"$f":"IFERROR(INDEX('Compliance Summary'!$B$40:$C$79,MATCH($C202,'Compliance Summary'!$C$40:$C$79,0),1),\"n/a\")","v":"n/a"},250,250,250,250,null,"n/a","n/a","n/a"]
[null,"8.7  Service management – NBN Co Networks other than the NBN Co Satellite Network ","Transition Reversal","FTTB and FTTN and FTTC",{"$f":"IFERROR(INDEX('Compliance Summary'!$B$40:$C$79,MATCH($C203,'Compliance Summary'!$C$40:$C$79,0),1),\"n/a\")","v":"n/a"},250,250,250,250,null,"n/a","n/a","n/a"]
[null,"8.8  Service management – Smart Places","Smart Places - On Site Maintainance Call Out","Fibre",{"$f":"IFERROR(INDEX('Compliance Summary'!$B$40:$C$79,MATCH($C204,'Compliance Summary'!$C$40:$C$79,0),1),\"n/a\")","v":"n/a"},0,0,0,0,null,"n/a","n/a","n/a"]
[null,"8.8  Service management – Smart Places","Smart Places - No Fault Found (No Truck Roll Required)","Fibre",{"$f":"IFERROR(INDEX('Compliance Summary'!$B$40:$C$79,MATCH($C205,'Compliance Summary'!$C$40:$C$79,0),1),\"n/a\")","v":"n/a"},50,50,50,50,null,"n/a","n/a","n/a"]
[null,"8.8  Service management – Smart Places","Smart Places - First Missed Appointment (Trouble Ticket Appointment)","Fibre",{"$f":"IFERROR(INDEX('Compliance Summary'!$B$40:$C$79,MATCH($C206,'Compliance Summary'!$C$40:$C$79,0),1),\"n/a\")","v":"n/a"},0,0,0,0,null,"n/a","n/a","n/a"]
[null,"8.8  Service management – Smart Places","Smart Places - Subsequent Missed Appointment (Trouble Ticket Appointment)","Fibre",{"$f":"IFERROR(INDEX('Compliance Summary'!$B$40:$C$79,MATCH($C207,'Compliance Summary'!$C$40:$C$79,0),1),\"n/a\")","v":"n/a"},0,0,0,0,null,"n/a","n/a","n/a"]
[null,"8.8  Service management – Smart Places","Smart Places - Co-ordinated Appointment (Day)","Fibre",{"$f":"IFERROR(INDEX('Compliance Summary'!$B$40:$C$79,MATCH($C208,'Compliance Summary'!$C$40:$C$79,0),1),\"n/a\")","v":"n/a"},200,200,200,200,null,"n/a","n/a","n/a"]
[null,"8.8  Service management – Smart Places","Smart Places - Co-ordinated Appointment (After Hours)","Fibre",{"$f":"IFERROR(INDEX('Compliance Summary'!$B$40:$C$79,MATCH($C209,'Compliance Summary'!$C$40:$C$79,0),1),\"n/a\")","v":"n/a"},300,300,300,300,null,"n/a","n/a","n/a"]
[null,"8.8  Service management – Smart Places","Smart Places - Late Cancellation (Smart Places Co-ordinated Appointment) (Day)","Fibre",{"$f":"IFERROR(INDEX('Compliance Summary'!$B$40:$C$79,MATCH($C210,'Compliance Summary'!$C$40:$C$79,0),1),\"n/a\")","v":"n/a"},200,200,200,200,null,"n/a","n/a","n/a"]
[null,"8.8  Service management – Smart Places","Smart Places - Late Cancellation (Smart Places Co-ordinated Appointment) (After Hours)","Fibre",{"$f":"IFERROR(INDEX('Compliance Summary'!$B$40:$C$79,MATCH($C211,'Compliance Summary'!$C$40:$C$79,0),1),\"n/a\")","v":"n/a"},300,300,300,300,null,"n/a","n/a","n/a"]
[null,"8.8  Service management – Smart Places","Smart Places - Late Rescheduling (Smart Places Co-ordinated Appointment) (Day)","Fibre",{"$f":"IFERROR(INDEX('Compliance Summary'!$B$40:$C$79,MATCH($C212,'Compliance Summary'!$C$40:$C$79,0),1),\"n/a\")","v":"n/a"},200,200,200,200,null,"n/a","n/a","n/a"]
[null,"8.8  Service management – Smart Places","Smart Places - Late Rescheduling (Smart Places Co-ordinated Appointment) (After Hours)","Fibre",{"$f":"IFERROR(INDEX('Compliance Summary'!$B$40:$C$79,MATCH($C213,'Compliance Summary'!$C$40:$C$79,0),1),\"n/a\")","v":"n/a"},300,300,300,300,null,"n/a","n/a","n/a"]
[null,"8.8  Service management – Smart Places","Smart Places - Restoration","Fibre",{"$f":"IFERROR(INDEX('Compliance Summary'!$B$40:$C$79,MATCH($C214,'Compliance Summary'!$C$40:$C$79,0),1),\"n/a\")","v":"n/a"},50,50,50,50,null,"n/a","n/a","n/a"]
[null,"8.8  Service management – Smart Places","Smart Places - Missed Appointment  (Smart Places Co-ordinated Appointment) (Day)","Fibre",{"$f":"IFERROR(INDEX('Compliance Summary'!$B$40:$C$79,MATCH($C215,'Compliance Summary'!$C$40:$C$79,0),1),\"n/a\")","v":"n/a"},200,200,200,200,null,"n/a","n/a","n/a"]
[null,"8.8  Service management – Smart Places","Smart Places - Missed Appointment (Smart Places Co-ordinated Appointment) (After Hours)","Fibre",{"$f":"IFERROR(INDEX('Compliance Summary'!$B$40:$C$79,MATCH($C216,'Compliance Summary'!$C$40:$C$79,0),1),\"n/a\")","v":"n/a"},300,300,300,300,null,"n/a","n/a","n/a"]
[null,"8.9  Service management – NBN Co Satellite Network ","On Site Maintainance Call Out","Satellite",{"$f":"IFERROR(INDEX('Compliance Summary'!$B$40:$C$79,MATCH($C217,'Compliance Summary'!$C$40:$C$79,0),1),\"n/a\")","v":"n/a"},0,0,0,0,null,"n/a","n/a","n/a"]
[null,"8.9  Service management – NBN Co Satellite Network ","No Fault Found (No Truck Roll Required)","Satellite",{"$f":"IFERROR(INDEX('Compliance Summary'!$B$40:$C$79,MATCH($C218,'Compliance Summary'!$C$40:$C$79,0),1),\"n/a\")","v":"n/a"},50,50,50,50,null,"n/a","n/a","n/a"]
[null,"8.9  Service management – NBN Co Satellite Network ","No Fault Found (Truck Roll Required) (excluding any additional incidental charges which may apply for Limited Access Areas)","Satellite",{"$f":"IFERROR(INDEX('Compliance Summary'!$B$40:$C$79,MATCH($C219,'Compliance Summary'!$C$40:$C$79,0),1),\"n/a\")","v":"n/a"},420,420,420,420,null,"n/a","n/a","n/a"]
[null,"8.9  Service management – NBN Co Satellite Network ","Late Cancellation (Site Visit Required) in Urban Area or Major Rural Area","Satellite",{"$f":"IFERROR(INDEX('Compliance Summary'!$B$40:$C$79,MATCH($C220,'Compliance Summary'!$C$40:$C$79,0),1),\"n/a\")","v":"n/a"},150,150,150,150,null,"n/a","n/a","n/a"]
[null,"8.9  Service management – NBN Co Satellite Network ","Late Cancellation (Site Visit Required) in Minor Rural Area or Remote Area","Satellite",{"$f":"IFERROR(INDEX('Compliance Summary'!$B$40:$C$79,MATCH($C221,'Compliance Summary'!$C$40:$C$79,0),1),\"n/a\")","v":"n/a"},200,200,200,200,null,"n/a","n/a","n/a"]
[null,"8.9  Service management – NBN Co Satellite Network ","Late Cancellation (Site Visit Required) in Isolated Area","Satellite",{"$f":"IFERROR(INDEX('Compliance Summary'!$B$40:$C$79,MATCH($C222,'Compliance Summary'!$C$40:$C$79,0),1),\"n/a\")","v":"n/a"},225,225,225,225,null,"n/a","n/a","n/a"]
[null,"8.9  Service management – NBN Co Satellite Network ","Late Cancellation (Site Visit Required) in Limted Access Area (excluding any additional incidental charges which may apply for Limited Access Areas)","Satellite",{"$f":"IFERROR(INDEX('Compliance Summary'!$B$40:$C$79,MATCH($C223,'Compliance Summary'!$C$40:$C$79,0),1),\"n/a\")","v":"n/a"},225,225,225,225,null,"n/a","n/a","n/a"]
[null,"8.9  Service management – NBN Co Satellite Network ","Missed Appointment (Urban Area or Major Rural Area)","Satellite",{"$f":"IFERROR(INDEX('Compliance Summary'!$B$40:$C$79,MATCH($C224,'Compliance Summary'!$C$40:$C$79,0),1),\"n/a\")","v":"n/a"},150,150,150,150,null,"n/a","n/a","n/a"]
[null,"8.9  Service management – NBN Co Satellite Network ","Missed Appointment (Minor Rural Area or Remote Area)","Satellite",{"$f":"IFERROR(INDEX('Compliance Summary'!$B$40:$C$79,MATCH($C225,'Compliance Summary'!$C$40:$C$79,0),1),\"n/a\")","v":"n/a"},200,200,200,200,null,"n/a","n/a","n/a"]
[null,"8.9  Service management – NBN Co Satellite Network ","Missed Appointment (Isolated Area)","Satellite",{"$f":"IFERROR(INDEX('Compliance Summary'!$B$40:$C$79,MATCH($C226,'Compliance Summary'!$C$40:$C$79,0),1),\"n/a\")","v":"n/a"},225,225,225,225,null,"n/a","n/a","n/a"]
[null,"8.9  Service management – NBN Co Satellite Network ","Missed Appointment (Limited Access Area) (excluding any additional incidental charges which may apply for Limited Access Areas)","Satellite",{"$f":"IFERROR(INDEX('Compliance Summary'!$B$40:$C$79,MATCH($C227,'Compliance Summary'!$C$40:$C$79,0),1),\"n/a\")","v":"n/a"},225,225,225,225,null,"n/a","n/a","n/a"]
[null,"8.9  Service management – NBN Co Satellite Network ","Restoration ","Satellite",{"$f":"IFERROR(INDEX('Compliance Summary'!$B$40:$C$79,MATCH($C228,'Compliance Summary'!$C$40:$C$79,0),1),\"n/a\")","v":"n/a"},50,50,50,50,null,"n/a","n/a","n/a"]
[null,"8.10  Service Transfer-related charges – all NBN Co Networks","Service Transfer","All",{"$f":"IFERROR(INDEX('Compliance Summary'!$B$40:$C$79,MATCH($C229,'Compliance Summary'!$C$40:$C$79,0),1),\"n/a\")","v":"n/a"},5,5,5,5,null,"n/a","n/a","n/a"]
[null,"8.10  Service Transfer-related charges – all NBN Co Networks","Service Transfer Reversal","All",{"$f":"IFERROR(INDEX('Compliance Summary'!$B$40:$C$79,MATCH($C230,'Compliance Summary'!$C$40:$C$79,0),1),\"n/a\")","v":"n/a"},5,5,5,5,null,"n/a","n/a","n/a"]
[null,"8.10  Service Transfer-related charges – all NBN Co Networks","Non Infrastructure Transfers (per Service Transfer)","All",{"$f":"IFERROR(INDEX('Compliance Summary'!$B$40:$C$79,MATCH($C231,'Compliance Summary'!$C$40:$C$79,0),1),\"n/a\")","v":"n/a"},1.5,1.5,1.5,1.5,null,"n/a","n/a","n/a"]
[null,"8.11  CVC Class Adjustment – NBN Co Satellite Network","Ordered CVC Class 0 - Up to the allocated usage for CVC Class 1","Satellite",{"$f":"IFERROR(INDEX('Compliance Summary'!$B$40:$C$79,MATCH($C232,'Compliance Summary'!$C$40:$C$79,0),1),\"n/a\")","v":"n/a"},18,18,18,18,null,"n/a","n/a","n/a"]
[null,"8.11  CVC Class Adjustment – NBN Co Satellite Network","Ordered CVC Class 0 - Greater than the allocated usage for CVC Class 1 up to the allocated usage for CVC Class 2","Satellite",{"$f":"IFERROR(INDEX('Compliance Summary'!$B$40:$C$79,MATCH($C233,'Compliance Summary'!$C$40:$C$79,0),1),\"n/a\")","v":"n/a"},40,40,40,40,null,"n/a","n/a","n/a"]
[null,"8.11  CVC Class Adjustment – NBN Co Satellite Network","Ordered CVC Class 0 - Greater than allocated usage for CVC Class 2 ","Satellite",{"$f":"IFERROR(INDEX('Compliance Summary'!$B$40:$C$79,MATCH($C234,'Compliance Summary'!$C$40:$C$79,0),1),\"n/a\")","v":"n/a"},150,150,150,150,null,"n/a","n/a","n/a"]
[null,"8.11  CVC Class Adjustment – NBN Co Satellite Network","Ordered CVC Class 1 - Up to the allocated usage for CVC Class 2","Satellite",{"$f":"IFERROR(INDEX('Compliance Summary'!$B$40:$C$79,MATCH($C235,'Compliance Summary'!$C$40:$C$79,0),1),\"n/a\")","v":"n/a"},22,22,22,22,null,"n/a","n/a","n/a"]
[null,"8.11  CVC Class Adjustment – NBN Co Satellite Network","Ordered CVC Class 1 - Greater than allocated usage for CVC Class 2","Satellite",{"$f":"IFERROR(INDEX('Compliance Summary'!$B$40:$C$79,MATCH($C236,'Compliance Summary'!$C$40:$C$79,0),1),\"n/a\")","v":"n/a"},132,132,132,132,null,"n/a","n/a","n/a"]
[null,"8.11  CVC Class Adjustment – NBN Co Satellite Network","Ordered CVC Class 2 - Greater than allocated usage for CVC Class 2","Satellite",{"$f":"IFERROR(INDEX('Compliance Summary'!$B$40:$C$79,MATCH($C237,'Compliance Summary'!$C$40:$C$79,0),1),\"n/a\")","v":"n/a"},110,110,110,110,null,"n/a","n/a","n/a"]
[null,"9 NBN Co Co-location Offer","Lockable Full Height Equipment Rack","All",{"$f":"IFERROR(INDEX('Compliance Summary'!$B$40:$C$79,MATCH($C238,'Compliance Summary'!$C$40:$C$79,0),1),\"n/a\")","v":"n/a"},2000,2000,2000,2000,null,"n/a","n/a","n/a"]
[null,"9 NBN Co Co-location Offer","Lockable Half Height Equipment Rack","All",{"$f":"IFERROR(INDEX('Compliance Summary'!$B$40:$C$79,MATCH($C239,'Compliance Summary'!$C$40:$C$79,0),1),\"n/a\")","v":"n/a"},1200,1200,1200,1200,null,"n/a","n/a","n/a"]
[null,"10  Facilities Access Service Offer","Cross-Connect","All",{"$f":"IFERROR(INDEX('Compliance Summary'!$B$40:$C$79,MATCH($C240,'Compliance Summary'!$C$40:$C$79,0),1),\"n/a\")","v":"n/a"},0,0,0,0,null,"n/a","n/a","n/a"]
[null,"10  Facilities Access Service Offer","NBN Co ODF Termination Point","All",{"$f":"IFERROR(INDEX('Compliance Summary'!$B$40:$C$79,MATCH($C241,'Compliance Summary'!$C$40:$C$79,0),1),\"n/a\")","v":"n/a"},0,0,0,0,null,"n/a","n/a","n/a"]
[null,"10  Facilities Access Service Offer","NBN Co Building Entry Service","All",{"$f":"IFERROR(INDEX('Compliance Summary'!$B$40:$C$79,MATCH($C242,'Compliance Summary'!$C$40:$C$79,0),1),\"n/a\")","v":"n/a"},190,190,190,190,null,"n/a","n/a","n/a"]
[null,"11  Other Charges – Facilities Access Service","Set-up NBN Co Co-location (Lockable Full Height Equipment Rack)","All",{"$f":"IFERROR(INDEX('Compliance Summary'!$B$40:$C$79,MATCH($C243,'Compliance Summary'!$C$40:$C$79,0),1),\"n/a\")","v":"n/a"},1500,1500,1500,1500,null,"n/a","n/a","n/a"]
[null,"11  Other Charges – Facilities Access Service","Set-up NBN Co Co-location (Lockable Half Height Equipment Rack)","All",{"$f":"IFERROR(INDEX('Compliance Summary'!$B$40:$C$79,MATCH($C244,'Compliance Summary'!$C$40:$C$79,0),1),\"n/a\")","v":"n/a"},900,900,900,900,null,"n/a","n/a","n/a"]
[null,"11  Other Charges – Facilities Access Service","Set-up Cross-Connect","All",{"$f":"IFERROR(INDEX('Compliance Summary'!$B$40:$C$79,MATCH($C245,'Compliance Summary'!$C$40:$C$79,0),1),\"n/a\")","v":"n/a"},0,0,0,0,null,"n/a","n/a","n/a"]
[null,"11  Other Charges – Facilities Access Service","Set-up NBN Co ODF Termination Point","All",{"$f":"IFERROR(INDEX('Compliance Summary'!$B$40:$C$79,MATCH($C246,'Compliance Summary'!$C$40:$C$79,0),1),\"n/a\")","v":"n/a"},0,0,0,0,null,"n/a","n/a","n/a"]
[null,"11  Other Charges – Facilities Access Service","Supply of First Access Card","All",{"$f":"IFERROR(INDEX('Compliance Summary'!$B$40:$C$79,MATCH($C247,'Compliance Summary'!$C$40:$C$79,0),1),\"n/a\")","v":"n/a"},0,0,0,0,null,"n/a","n/a","n/a"]
[null,"11  Other Charges – Facilities Access Service","Additional / Replacement Access Card (excluding the First Access Card)  ","All",{"$f":"IFERROR(INDEX('Compliance Summary'!$B$40:$C$79,MATCH($C248,'Compliance Summary'!$C$40:$C$79,0),1),\"n/a\")","v":"n/a"},100,100,100,100,null,"n/a","n/a","n/a"]
[null,"11  Other Charges – Facilities Access Service","Missed Appointment (During Business Hours)","All",{"$f":"IFERROR(INDEX('Compliance Summary'!$B$40:$C$79,MATCH($C249,'Compliance Summary'!$C$40:$C$79,0),1),\"n/a\")","v":"n/a"},300,300,300,300,null,"n/a","n/a","n/a"]
[null,"11  Other Charges – Facilities Access Service","Missed Appointment (Outside Business Hours)","All",{"$f":"IFERROR(INDEX('Compliance Summary'!$B$40:$C$79,MATCH($C250,'Compliance Summary'!$C$40:$C$79,0),1),\"n/a\")","v":"n/a"},450,450,450,450,null,"n/a","n/a","n/a"]
[null,"12 Platform Interfacing Offer","NPIS ","All",{"$f":"IFERROR(INDEX('Compliance Summary'!$B$40:$C$79,MATCH($C251,'Compliance Summary'!$C$40:$C$79,0),1),\"n/a\")","v":"n/a"},0,0,0,0,null,"n/a","n/a","n/a"]
[null,"13 Sandpit","Sandpit","All",{"$f":"IFERROR(INDEX('Compliance Summary'!$B$40:$C$79,MATCH($C252,'Compliance Summary'!$C$40:$C$79,0),1),\"n/a\")","v":"n/a"},0,0,0,0,null,"n/a","n/a","n/a"]
[null,"14 CSAS Symmetric Access Capacity Offers","CSAS - Access Capacity 50 Mbps Metro and Outer Metro","All",{"$f":"IFERROR(INDEX('Compliance Summary'!$B$40:$C$79,MATCH($C253,'Compliance Summary'!$C$40:$C$79,0),1),\"n/a\")","v":"n/a"},910,910,910,910,null,"n/a","n/a","n/a"]
[null,"14 CSAS Symmetric Access Capacity Offers","CSAS - Access Capacity 50 Mbps Regional","All",{"$f":"IFERROR(INDEX('Compliance Summary'!$B$40:$C$79,MATCH($C254,'Compliance Summary'!$C$40:$C$79,0),1),\"n/a\")","v":"n/a"},1245,1245,1245,1245,null,"n/a","n/a","n/a"]
[null,"14 CSAS Symmetric Access Capacity Offers","CSAS - Access Capacity 100 Mbps Metro and Outer Metro","All",{"$f":"IFERROR(INDEX('Compliance Summary'!$B$40:$C$79,MATCH($C255,'Compliance Summary'!$C$40:$C$79,0),1),\"n/a\")","v":"n/a"},1250,1250,1250,1250,null,"n/a","n/a","n/a"]
[null,"14 CSAS Symmetric Access Capacity Offers","CSAS - Access Capacity 100 Mbps Regional","All",{"$f":"IFERROR(INDEX('Compliance Summary'!$B$40:$C$79,MATCH($C256,'Compliance Summary'!$C$40:$C$79,0),1),\"n/a\")","v":"n/a"},1800,1800,1800,1800,null,"n/a","n/a","n/a"]
[null,"14 CSAS Symmetric Access Capacity Offers","CSAS - Access Capacity 150 Mbps Metro and Outer Metro","All",{"$f":"IFERROR(INDEX('Compliance Summary'!$B$40:$C$79,MATCH($C257,'Compliance Summary'!$C$40:$C$79,0),1),\"n/a\")","v":"n/a"},1500,1500,1500,1500,null,"n/a","n/a","n/a"]
[null,"14 CSAS Symmetric Access Capacity Offers","CSAS - Access Capacity 150 Mbps Regional","All",{"$f":"IFERROR(INDEX('Compliance Summary'!$B$40:$C$79,MATCH($C258,'Compliance Summary'!$C$40:$C$79,0),1),\"n/a\")","v":"n/a"},2235,2235,2235,2235,null,"n/a","n/a","n/a"]
[null,"14 CSAS Symmetric Access Capacity Offers","CSAS - Access Capacity 200 Mbps Metro and Outer Metro","All",{"$f":"IFERROR(INDEX('Compliance Summary'!$B$40:$C$79,MATCH($C259,'Compliance Summary'!$C$40:$C$79,0),1),\"n/a\")","v":"n/a"},1720,1720,1720,1720,null,"n/a",{"$f":"IF($E259=\"n/a\",\"n/a\",IFERROR(H259/G259-1,0))","v":"n/a"},{"$f":"IF($E259=\"n/a\",\"n/a\",IFERROR(I259/H259-1,0))","v":"n/a"}]
[null,"14 CSAS Symmetric Access Capacity Offers","CSAS - Access Capacity 200 Mbps Regional","All",{"$f":"IFERROR(INDEX('Compliance Summary'!$B$40:$C$79,MATCH($C260,'Compliance Summary'!$C$40:$C$79,0),1),\"n/a\")","v":"n/a"},2600,2600,2600,2600,null,{"$f":"IF($E260=\"n/a\",\"n/a\",IFERROR(G260/F260-1,0))","v":"n/a"},"n/a","n/a"]
[null,"14 CSAS Symmetric Access Capacity Offers","CSAS - Access Capacity 300 Mbps Metro and Outer Metro","All",{"$f":"IFERROR(INDEX('Compliance Summary'!$B$40:$C$79,MATCH($C261,'Compliance Summary'!$C$40:$C$79,0),1),\"n/a\")","v":"n/a"},2070,2070,2070,2070,null,"n/a","n/a","n/a"]
[null,"14 CSAS Symmetric Access Capacity Offers","CSAS - Access Capacity 300 Mbps Regional","All",{"$f":"IFERROR(INDEX('Compliance Summary'!$B$40:$C$79,MATCH($C262,'Compliance Summary'!$C$40:$C$79,0),1),\"n/a\")","v":"n/a"},3210,3210,3210,3210,null,"n/a","n/a","n/a"]
[null,"14 CSAS Symmetric Access Capacity Offers","CSAS - Access Capacity 500 Mbps Metro and Outer Metro","All",{"$f":"IFERROR(INDEX('Compliance Summary'!$B$40:$C$79,MATCH($C263,'Compliance Summary'!$C$40:$C$79,0),1),\"n/a\")","v":"n/a"},2550,2550,2550,2550,null,"n/a","n/a","n/a"]
[null,"14 CSAS Symmetric Access Capacity Offers","CSAS - Access Capacity 500 Mbps Regional","All",{"$f":"IFERROR(INDEX('Compliance Summary'!$B$40:$C$79,MATCH($C264,'Compliance Summary'!$C$40:$C$79,0),1),\"n/a\")","v":"n/a"},4200,4200,4200,4200,null,"n/a","n/a","n/a"]
[null,"14 CSAS Symmetric Access Capacity Offers","CSAS - Access Capacity 900 Mbps Metro and Outer Metro","All",{"$f":"IFERROR(INDEX('Compliance Summary'!$B$40:$C$79,MATCH($C265,'Compliance Summary'!$C$40:$C$79,0),1),\"n/a\")","v":"n/a"},3240,3240,3240,3240,null,"n/a","n/a","n/a"]
[null,"14 CSAS Symmetric Access Capacity Offers","CSAS - Access Capacity 900 Mbps Regional","All",{"$f":"IFERROR(INDEX('Compliance Summary'!$B$40:$C$79,MATCH($C266,'Compliance Summary'!$C$40:$C$79,0),1),\"n/a\")","v":"n/a"},5760,5760,5760,5760,null,"n/a","n/a","n/a"]
[null,"15 CSAS Network to Network Interface Offers ","CSAS - NNI 1000BaseLX - Recurring","All",{"$f":"IFERROR(INDEX('Compliance Summary'!$B$40:$C$79,MATCH($C267,'Compliance Summary'!$C$40:$C$79,0),1),\"n/a\")","v":"n/a"},200,100,100,100,null,{"$f":"IF($E267=\"n/a\",\"n/a\",IFERROR(#REF!/F267-1,0))","v":"n/a"},{"$f":"IF($E267=\"n/a\",\"n/a\",IFERROR(#REF!/#REF!-1,0))","v":"n/a"},{"$f":"IF($E267=\"n/a\",\"n/a\",IFERROR(#REF!/#REF!-1,0))","v":"n/a"}]
[null,"15 CSAS Network to Network Interface Offers ","CSAS - NNI 10GBaseLR - Recurring","All",{"$f":"IFERROR(INDEX('Compliance Summary'!$B$40:$C$79,MATCH($C268,'Compliance Summary'!$C$40:$C$79,0),1),\"n/a\")","v":"n/a"},400,400,400,400,null,{"$f":"IF($E268=\"n/a\",\"n/a\",IFERROR(#REF!/F268-1,0))","v":"n/a"},{"$f":"IF($E268=\"n/a\",\"n/a\",IFERROR(#REF!/#REF!-1,0))","v":"n/a"},{"$f":"IF($E268=\"n/a\",\"n/a\",IFERROR(#REF!/#REF!-1,0))","v":"n/a"}]
[null,"15 CSAS Network to Network Interface Offers ","CSAS - NNI 1000BaseEX - Recurring","All",{"$f":"IFERROR(INDEX('Compliance Summary'!$B$40:$C$79,MATCH($C269,'Compliance Summary'!$C$40:$C$79,0),1),\"n/a\")","v":"n/a"},500,125,125,125,null,{"$f":"IF($E269=\"n/a\",\"n/a\",IFERROR(#REF!/F269-1,0))","v":"n/a"},{"$f":"IF($E269=\"n/a\",\"n/a\",IFERROR(#REF!/#REF!-1,0))","v":"n/a"},{"$f":"IF($E269=\"n/a\",\"n/a\",IFERROR(#REF!/#REF!-1,0))","v":"n/a"}]
[null,"15 CSAS Network to Network Interface Offers ","CSAS - NNI 10GBaseER - Recurring","All",{"$f":"IFERROR(INDEX('Compliance Summary'!$B$40:$C$79,MATCH($C270,'Compliance Summary'!$C$40:$C$79,0),1),\"n/a\")","v":"n/a"},1000,500,500,500,null,{"$f":"IF($E270=\"n/a\",\"n/a\",IFERROR(#REF!/F270-1,0))","v":"n/a"},{"$f":"IF($E270=\"n/a\",\"n/a\",IFERROR(#REF!/#REF!-1,0))","v":"n/a"},{"$f":"IF($E270=\"n/a\",\"n/a\",IFERROR(#REF!/#REF!-1,0))","v":"n/a"}]
[null,"16.1  Installation and activations – CSAS","CSAS - NNI 1000BaseLX - Set-up & Activation","All",{"$f":"IFERROR(INDEX('Compliance Summary'!$B$40:$C$79,MATCH($C271,'Compliance Summary'!$C$40:$C$79,0),1),\"n/a\")","v":"n/a"},1000,1000,1000,1000,null,{"$f":"IF($E271=\"n/a\",\"n/a\",IFERROR(#REF!/F271-1,0))","v":"n/a"},{"$f":"IF($E271=\"n/a\",\"n/a\",IFERROR(#REF!/#REF!-1,0))","v":"n/a"},{"$f":"IF($E271=\"n/a\",\"n/a\",IFERROR(#REF!/#REF!-1,0))","v":"n/a"}]
[null,"16.1  Installation and activations – CSAS","CSAS - NNI 10GBaseLR - Set-up & Activation","All",{"$f":"IFERROR(INDEX('Compliance Summary'!$B$40:$C$79,MATCH($C272,'Compliance Summary'!$C$40:$C$79,0),1),\"n/a\")","v":"n/a"},5000,3000,3000,3000,null,{"$f":"IF($E272=\"n/a\",\"n/a\",IFERROR(#REF!/F272-1,0))","v":"n/a"},{"$f":"IF($E272=\"n/a\",\"n/a\",IFERROR(#REF!/#REF!-1,0))","v":"n/a"},{"$f":"IF($E272=\"n/a\",\"n/a\",IFERROR(#REF!/#REF!-1,0))","v":"n/a"}]
[null,"16.1  Installation and activations – CSAS","CSAS - NNI 1000BaseEx - Set-up & Activation","All",{"$f":"IFERROR(INDEX('Compliance Summary'!$B$40:$C$79,MATCH($C273,'Compliance Summary'!$C$40:$C$79,0),1),\"n/a\")","v":"n/a"},7000,2000,2000,2000,null,{"$f":"IF($E273=\"n/a\",\"n/a\",IFERROR(#REF!/F273-1,0))","v":"n/a"},{"$f":"IF($E273=\"n/a\",\"n/a\",IFERROR(#REF!/#REF!-1,0))","v":"n/a"},{"$f":"IF($E273=\"n/a\",\"n/a\",IFERROR(#REF!/#REF!-1,0))","v":"n/a"}]
[null,"16.1  Installation and activations – CSAS","CSAS - NNI 10GBaseER - Set-up & Activation","All",{"$f":"IFERROR(INDEX('Compliance Summary'!$B$40:$C$79,MATCH($C274,'Compliance Summary'!$C$40:$C$79,0),1),\"n/a\")","v":"n/a"},35000,4000,4000,4000,null,{"$f":"IF($E274=\"n/a\",\"n/a\",IFERROR(#REF!/F274-1,0))","v":"n/a"},{"$f":"IF($E274=\"n/a\",\"n/a\",IFERROR(#REF!/#REF!-1,0))","v":"n/a"},{"$f":"IF($E274=\"n/a\",\"n/a\",IFERROR(#REF!/#REF!-1,0))","v":"n/a"}]
[null,"16.2  Service modification – CSAS","CSAS - Access Component Modification (no attendance at CSAS - Point required)","All",{"$f":"IFERROR(INDEX('Compliance Summary'!$B$40:$C$79,MATCH($C275,'Compliance Summary'!$C$40:$C$79,0),1),\"n/a\")","v":"n/a"},0,0,0,0,null,"n/a","n/a","n/a"]
[null,"16.2  Service modification – CSAS","CSAS - NNI Modification","All",{"$f":"IFERROR(INDEX('Compliance Summary'!$B$40:$C$79,MATCH($C276,'Compliance Summary'!$C$40:$C$79,0),1),\"n/a\")","v":"n/a"},0,0,0,0,null,"n/a","n/a","n/a"]
[null,"16.3  Service management – CSAS","CSAS - On Site Maintainance Call Out","All",{"$f":"IFERROR(INDEX('Compliance Summary'!$B$40:$C$79,MATCH($C277,'Compliance Summary'!$C$40:$C$79,0),1),\"n/a\")","v":"n/a"},0,0,0,0,null,"n/a","n/a","n/a"]
[null,"16.3  Service management – CSAS","CSAS - No Fault Found (No Truck Roll Required)","All",{"$f":"IFERROR(INDEX('Compliance Summary'!$B$40:$C$79,MATCH($C278,'Compliance Summary'!$C$40:$C$79,0),1),\"n/a\")","v":"n/a"},50,50,50,50,null,"n/a","n/a","n/a"]
[null,"17.1 Sky Muster Plus Satellite Service ","25GB+ Plan","Satellite",{"$f":"IFERROR(INDEX('Compliance Summary'!$B$40:$C$79,MATCH($C279,'Compliance Summary'!$C$40:$C$79,0),1),\"n/a\")","v":"n/a"},35,35,35,35,null,"n/a","n/a","n/a"]
[null,"17.1 Sky Muster Plus Satellite Service ","50GB+ Plan","Satellite",{"$f":"IFERROR(INDEX('Compliance Summary'!$B$40:$C$79,MATCH($C280,'Compliance Summary'!$C$40:$C$79,0),1),\"n/a\")","v":"n/a"},45,45,45,45,null,"n/a","n/a","n/a"]
[null,"17.1 Sky Muster Plus Satellite Service ","100GB+ Plan","Satellite",{"$f":"IFERROR(INDEX('Compliance Summary'!$B$40:$C$79,MATCH($C281,'Compliance Summary'!$C$40:$C$79,0),1),\"n/a\")","v":"n/a"},85,85,85,85,null,"n/a","n/a","n/a"]
[null,"17.1 Sky Muster Plus Satellite Service ","150GB+ Plan","Satellite",{"$f":"IFERROR(INDEX('Compliance Summary'!$B$40:$C$79,MATCH($C282,'Compliance Summary'!$C$40:$C$79,0),1),\"n/a\")","v":"n/a"},120,120,120,120,null,"n/a","n/a","n/a"]
[null,"17.1 Sky Muster Plus Satellite Service ","24x7 Uncapped Data Usage – 25","Satellite",{"$f":"IFERROR(INDEX('Compliance Summary'!$B$40:$C$79,MATCH($C283,'Compliance Summary'!$C$40:$C$79,0),1),\"n/a\")","v":"n/a"},35,35,35,35,null,"n/a","n/a","n/a"]
[null,"17.1 Sky Muster Plus Satellite Service ","24x7 Uncapped Data Usage – 50","Satellite",{"$f":"IFERROR(INDEX('Compliance Summary'!$B$40:$C$79,MATCH($C284,'Compliance Summary'!$C$40:$C$79,0),1),\"n/a\")","v":"n/a"},45,45,45,45,null,"n/a","n/a","n/a"]
[null,"17.1 Sky Muster Plus Satellite Service ","24x7 Uncapped Data Usage – 100","Satellite",{"$f":"IFERROR(INDEX('Compliance Summary'!$B$40:$C$79,MATCH($C285,'Compliance Summary'!$C$40:$C$79,0),1),\"n/a\")","v":"n/a"},65,65,65,65,null,"n/a","n/a","n/a"]
[null,"17.2 Sky Muster Plus Satellite Service ","Public 1:1 NAT","Satellite",{"$f":"IFERROR(INDEX('Compliance Summary'!$B$40:$C$79,MATCH($C286,'Compliance Summary'!$C$40:$C$79,0),1),\"n/a\")","v":"n/a"},5,5,5,5,null,"n/a","n/a","n/a"]
[null,"17.3 Sky Muster Plus Satellite Service ","5GB Peak Period Metered Data Allowance + 5GB Off-peak Period Metered Data Allowance (if applicable)","Satellite",{"$f":"IFERROR(INDEX('Compliance Summary'!$B$40:$C$79,MATCH($C287,'Compliance Summary'!$C$40:$C$79,0),1),\"n/a\")","v":"n/a"},4,4,4,4,null,"n/a","n/a","n/a"]
[null,"18.1 Sky Muster Plus Satellite Service ","Sky Muster Plus 1GB Peak Period Top-Up Allowance + 1GB Off-peak Period Top-Up Allowance (if applicable)","Satellite",{"$f":"IFERROR(INDEX('Compliance Summary'!$B$40:$C$79,MATCH($C288,'Compliance Summary'!$C$40:$C$79,0),1),\"n/a\")","v":"n/a"},3,3,3,3,null,"n/a","n/a","n/a"]
[null,"19. Fibre TV","Fibre TV","Fibre",{"$f":"IFERROR(INDEX('Compliance Summary'!$B$40:$C$79,MATCH($C289,'Compliance Summary'!$C$40:$C$79,0),1),\"n/a\")","v":"n/a"},0,0,0,0,null,"n/a","n/a","n/a"]
[null,"20.1 Co-location Augmentation trial non-recurring charges","Supply, installation and migration of one replacement fibre termination tray / patch panel of 72 terminated fibres","All",{"$f":"IFERROR(INDEX('Compliance Summary'!$B$40:$C$79,MATCH($C290,'Compliance Summary'!$C$40:$C$79,0),1),\"n/a\")","v":"n/a"},7267,7267,0,0,null,"n/a","n/a","n/a"]
[null,"20.1 Co-location Augmentation trial non-recurring charges","Supply, installation and migration of one replacement fibre termination tray / patch panel of 144 terminated fibres","All",{"$f":"IFERROR(INDEX('Compliance Summary'!$B$40:$C$79,MATCH($C291,'Compliance Summary'!$C$40:$C$79,0),1),\"n/a\")","v":"n/a"},12947,12947,0,0,null,"n/a","n/a","n/a"]
[]
[]
[]
[null,"Quantities: Annualised Demand Volumes  ",null,null,null,"t = FY25","t = FY26","t = FY27"]
[null,"Note 1: For clarity nbn notes that quantities are annualised. For example, the quantities for monthly charges are multiplied by 12 for an annualised quantity. Quantities for charges with other billing periods are adjusted as required to an annualised basis.\nNote 2: The Q(t-1.25) volumes shown in the “t = FY25” column represent volumes supplied between the Price Transition Date (1 December 2023) and 31 March 2024, annualised in accordance with clause 2D.2.2(g) of the SAU. The q(t-1.25) volumes shown in \nthe “t = FY26” and “t = FY27” columns represent forecast volumes for the periods 1 April 2024 to 31 March 2025 and 1 April 2025 to 31 March 2026, respectively."]
[null,null,null,null,null,"Actuals","Forecast","Forecast","Notes"]
[null,{"$f":"B10","v":"Table references"},"WAPC Charge Component","NBN Co Network","Individual Price Control",null,null,null,"(see notes and Assumptions tab)"]
[null,"1.1\t  Flat-Rate Offers","AVC TC-4 25-100/5-20 Mbps","FTTB and FTTN","Other fixed line and fixed wireless TC-4",3236816.21,3065080,2490714]
[null,"1.1\t  Flat-Rate Offers","AVC TC-4 50-100/20 Mbps","FTTC","Other fixed line and fixed wireless TC-4",1882996.34,1727769,1329031]
[null,"1.1\t  Flat-Rate Offers","AVC TC-4 100/20 Mbps","Fibre and HFC","Other fixed line and fixed wireless TC-4",9010905.7699999996,11899490,19898884]
[null,"1.1\t  Flat-Rate Offers","AVC TC-4 200-250/8-20 Mbps","Wireless","Other fixed line and fixed wireless TC-4",0,92928,398436,11]
[null,"1.1\t  Flat-Rate Offers","AVC TC-4 50-100/20-40 Mbps","FTTC","Other fixed line and fixed wireless TC-4",1261324.01,1233819,1196603]
[null,"1.1\t  Flat-Rate Offers","AVC TC-4 25-100/5-40 Mbps","FTTB and FTTN","Other fixed line and fixed wireless TC-4",543879.9,470996,401502]
[null,"1.1\t  Flat-Rate Offers","AVC TC-4 100/40 Mbps","Fibre and HFC","Other fixed line and fixed wireless TC-4",2005324.66,2111984,995057]
[null,"1.1\t  Flat-Rate Offers","AVC TC-4 250/25 Mbps","Fibre and HFC","Other fixed line and fixed wireless TC-4",2284439.1,2929294,2205437]
[null,"1.1\t  Flat-Rate Offers","AVC TC-4 400/10-40 Mbps","Wireless","Other fixed line and fixed wireless TC-4",0,7054,29941,11]
[null,"1.1\t  Flat-Rate Offers","AVC TC-4 250/100 Mbps","Fibre","Other fixed line and fixed wireless TC-4",86166.28,107801,122881]
[null,"1.1\t  Flat-Rate Offers","AVC TC-4 500/200 Mbps","Fibre","Other fixed line and fixed wireless TC-4",16782.2,179848,622512]
[null,"1.1\t  Flat-Rate Offers","AVC TC-4 1000/50 Mbps","Fibre and HFC","Other fixed line and fixed wireless TC-4",1465479.93,2089071,2485907]
[null,"1.1\t  Flat-Rate Offers","AVC TC-4 1000/400 Mbps ","Fibre","Other fixed line and fixed wireless TC-4",13542.81,28836,87159]
[null,"1.2\t  Flat-Rate Offers - Smart Places","Smart Places - AVC TC-4 100/40 Mbps","Fibre","Other fixed line and fixed wireless TC-4",36,1807.7,7999.4]
[null,"1.2\t  Flat-Rate Offers - Smart Places","Smart Places - AVC TC-4 250/100 Mbps","Fibre","Other fixed line and fixed wireless TC-4",0,361.54,1599.88,11]
[null,"1.2\t  Flat-Rate Offers - Smart Places","Smart Places - AVC TC-4 500/200 Mbps","Fibre","Other fixed line and fixed wireless TC-4",0,361.54,1599.88,11]
[null,"1.2\t  Flat-Rate Offers - Smart Places","Smart Places - AVC TC-4 1000/400 Mbps ","Fibre","Other fixed line and fixed wireless TC-4",0,361.54,1599.88,11]
[null,"1.3\t  Bundled TC-4 Offers ","AVC TC-4 12/1 (Basic Bundled Offer)","Fibre, FTTB, FTTN, FTTC, HFC","Other fixed line and fixed wireless TC-4",4148067.93,3346301,3061174]
[null,"1.3\t  Bundled TC-4 Offers ","AVC TC-4 12/1 Mbps ","Fibre, FTTB, FTTN, FTTC, HFC and Wireless","Other fixed line and fixed wireless TC-4",3678475.33,3032785,2714651]
[null,{"$f":"B30","v":"1.3\t  Bundled TC-4 Offers "},"AVC TC-4 25/5 Mbps ","Fibre, FTTB, FTTN,FTTC,HFC and Wireless","Entry level TC-4",15564071.810000001,10873036,10467578]
[null,"1.3\t  Bundled TC-4 Offers ","AVC TC-4 25/5-10 Mbps ","FTTB,FTTN","Other fixed line and fixed wireless TC-4",1475437.25,7971772,7346250]
[null,"1.3\t  Bundled TC-4 Offers ","AVC TC-4 25/10 Mbps ","Fibre, FTTC, HFC","Other fixed line and fixed wireless TC-4",1899841.01,0,0,"9a"]
[null,"1.3\t  Bundled TC-4 Offers ","AVC TC-4 25-50/5-20 Mbps ","FTTB,FTTN","Other fixed line and fixed wireless TC-4",22133622.75,20692517,18557240]
[null,"1.3\t  Bundled TC-4 Offers ","AVC TC-4 50/20 Mbps ","Fibre, FTTC, HFC","Other fixed line and fixed wireless TC-4",30605439.710000001,30054072,28284205]
[null,"1.3\t  Bundled TC-4 Offers ","AVC TC-4 up to 100/up to 20 Mbps ","Wireless","Other fixed line and fixed wireless TC-4",2978399.53,2999611,2980669]
[null,"1.4\t  Bundled TC-4 Offers: Smart Places","Smart Places - AVC TC-4 25/10 Mbps ","Fibre","Other fixed line and fixed wireless TC-4",187.06,11388.51,50396.22]
[null,"1.4\t  Bundled TC-4 Offers: Smart Places","Smart Places - AVC TC-4 50/20 Mbps ","Fibre","Other fixed line and fixed wireless TC-4",120,1807.7,7999.4]
[null,"1.5  Asymmetric AVC Offers in respect of the NBN Co Satellite Network","AVC TC-4 12/1 Mbps","Satellite","Satellite AVC TC-4",168421.67,142531.19,135533.65]
[null,"1.5  Asymmetric AVC Offers in respect of the NBN Co Satellite Network","AVC TC-4 25/5 Mbps","Satellite","Satellite AVC TC-4",301962.34000000003,257963.51999999999,231831.01]
[null,"2.1  Bundled TC-2 Offers ","AVC TC-2 5/5 Mbps","Fibre, FTTB, FTTN, FTTC, HFC","n/a",127776.8,116332.53,97302.42]
[null,"2.1  Bundled TC-2 Offers ","AVC TC-2 10/10 Mbps","Fibre, FTTB, FTTN, FTTC, HFC","n/a",91747.54,79595.509999999995,61167.08]
[null,"2.1  Bundled TC-2 Offers ","AVC TC-2 20/20 Mbps","Fibre, FTTB, FTTN, FTTC","n/a",52210.41,39416,17165.38]
[null,"2.1  Bundled TC-2 Offers ","AVC TC-2 30/30 Mbps","Fibre","n/a",3659.9,3120.37,1284.4000000000001]
[null,"2.1  Bundled TC-2 Offers ","AVC TC-2 40/40 Mbps","Fibre","n/a",7583.25,3937.09,388.75]
[null,"2.1  Bundled TC-2 Offers ","AVC TC-2 50/50 Mbps","Fibre","n/a",9723.6,8495.92,6793.4]
[null,"2.1  Bundled TC-2 Offers ","AVC TC-2 60/60 Mbps","Fibre","n/a",570.41,345.31,263.99]
[null,"2.1  Bundled TC-2 Offers ","AVC TC-2 70/70 Mbps","Fibre","n/a",0,0,0,8]
[null,"2.1  Bundled TC-2 Offers ","AVC TC-2 80/80 Mbps","Fibre","n/a",32.130000000000003,0,0,"9b"]
[null,"2.1  Bundled TC-2 Offers ","AVC TC-2 90/90 Mbps","Fibre","n/a",6.1,35.42,27.08]
[null,{"$f":"B50","v":"2.1  Bundled TC-2 Offers "},"AVC TC-2 100/100 Mbps","Fibre","n/a",1895.64,1690.63,1720.16]
[null,"2.2  Bundled TC-2 Offers: Smart Places ","Smart Places - AVC TC-2 5/5 Mbps","Fibre","n/a",0,723.08,3199.76,11]
[null,"2.2  Bundled TC-2 Offers: Smart Places ","Smart Places  - AVC TC-2 10/10 Mbps","Fibre","n/a",0,542.30999999999995,2399.8200000000002,11]
[null,"2.2  Bundled TC-2 Offers: Smart Places ","Smart Places - AVC TC-2 20/20 Mbps","Fibre","n/a",0,361.54,1599.88,11]
[null,"2.2  Bundled TC-2 Offers: Smart Places ","Smart Places - AVC TC-2 50/50 Mbps","Fibre","n/a",0,361.54,1599.88,11]
[null,"2.3  Symmetric Access Capacity Offers (TC-1)","AVC TC-1 0.15 Mbps","Fibre, FTTB, FTTN, FTTC, HFC, Wireless and Satellite","n/a",0,0,0,4]
[null,"2.3  Symmetric Access Capacity Offers (TC-1)","AVC TC-1 0.3 Mbps","Fibre, FTTB, FTTN, FTTC, HFC and Wireless","n/a",666822.88,594489.4,486864.44]
[null,"2.3  Symmetric Access Capacity Offers (TC-1)","AVC TC-1 0.5 Mbps","Fibre, FTTB, FTTN, FTTC and HFC","n/a",127321.34,106777.5,80293.509999999995]
[null,"2.3  Symmetric Access Capacity Offers (TC-1)","AVC TC-1 1 Mbps","Fibre, FTTB, FTTN, FTTC and HFC","n/a",35192.199999999997,50800.34,41085.379999999997]
[null,"2.3  Symmetric Access Capacity Offers (TC-1)","AVC TC-1 2 Mbps","Fibre, FTTB, FTTN, FTTC and HFC","n/a",669.79,592.66999999999996,479.33]
[null,"2.3  Symmetric Access Capacity Offers (TC-1)","AVC TC-1 5 Mbps","Fibre, FTTB, FTTN, FTTC and HFC","n/a",364.35,328.09,265.33999999999997]
[null,"3.2  Connectivity Virtual Circuit Offers","CVC TC-4 (Satellite)","Satellite","Satellite CVC TC-4",174087,154518.79999999999,150731.66]
[null,"3.2  Connectivity Virtual Circuit Offers","CVC TC-1","Fibre, FTTB, FTTN, FTTC and HFC","n/a",468106.23,400524.14,331833.09000000003]
[null,"3.2  Connectivity Virtual Circuit Offers","CVC TC-2","Fibre, FTTB, FTTN, FTTC and HFC","n/a",0,0,0,8]
[null,"4 CVC Class Offers for the NBN Co Satellite Network","CVC Class 0","Satellite","Satellite CVC TC-4",0,0,0,6]
[null,"4 CVC Class Offers for the NBN Co Satellite Network","CVC Class 1","Satellite","Satellite CVC TC-4",13274.74,11782.6,11493.81]
[null,"4 CVC Class Offers for the NBN Co Satellite Network","CVC Class 2","Satellite","Satellite CVC TC-4",8092.41,7182.79,7006.74]
[null,"5.1  Network to Network Interface Offers ","NNI 1000BaseLX - per NNI Bearer - Recurring","All","n/a",4257.4799999999996,3854.24,2657.76]
[null,"5.1  Network to Network Interface Offers ","NNI 10GBaseLR - per NNI Bearer - Recurring","All","n/a",113032.28,114521.53,104785.60000000001]
[null,"5.1  Network to Network Interface Offers ","NNI 100GBaseLR4 - per NNI Bearer - Recurring","All","n/a",2434.06,2820,3042]
[null,{"$f":"B70","v":"5.1  Network to Network Interface Offers "},"NNI 1000BaseEX - per NNI Bearer - Recurring","All","n/a",12,13,12]
[null,"5.1  Network to Network Interface Offers ","NNI 10GBaseER - per NNI Bearer - Recurring","All","n/a",3814.3,3841.53,3580.2]
[null,"5.1  Network to Network Interface Offers ","NNI 100GBaseER4 - per NNI Bearer - Recurring","All","n/a",480,433.33,400]
[null,"5.1  Network to Network Interface Offers ","V-NNI","Fibre, FTTB, FTTN, FTTC, HFC and Wireless","n/a",22293.02,25508.2,25046.03]
[null,"5.1  Network to Network Interface Offers ","NNI Link","Fibre, FTTB, FTTN, FTTC, HFC and Wireless","n/a",0,0,0,6]
[null,"5.2 10G NNI Starter Offers","NNI 10GBaseLR (in single chassis configuration or as one of a pair in a chassis diverse configuration)  – per NNI Bearer","All","n/a",0,9285.5300000000007,11642.84,11]
[null,"5.2 10G NNI Starter Offers","NNI 10GBaseER (in single chassis configuration or as one of a pair in a chassis diverse configuration)  – per NNI Bearer","All","n/a",0,311.48,397.8,11]
[null,"6.  Second UNI-V and AVC Offer","Second UNI-V and AVC offer","Fibre","n/a",0,0,0,5]
[null,"7.1  Enhanced Fault Service Level Offers ","Enhanced SLA - 12","Fibre, FTTB, FTTN, FTTC and HFC","n/a",143408.29,18432.259999999998,18432.259999999998]
[null,"7.1  Enhanced Fault Service Level Offers ","Enhanced SLA - 12 (24/7)","Fibre, FTTB, FTTN, FTTC and HFC","n/a",248417.28,557230.80000000005,586918.42000000004]
[null,"7.1  Enhanced Fault Service Level Offers ","Enhanced SLA - 8","Fibre, FTTB, FTTN, FTTC and HFC","n/a",9303.2099999999991,0,0,"10a"]
[null,"7.1  Enhanced Fault Service Level Offers ","Enhanced SLA - 8 (24/7)","Fibre, FTTB, FTTN, FTTC and HFC","n/a",17198.03,0,0,"10a"]
[null,"7.1  Enhanced Fault Service Level Offers ","Enhanced SLA - 6","Fibre, FTTB, FTTN, FTTC and HFC","n/a",132,0,0,"10a"]
[null,"7.1  Enhanced Fault Service Level Offers ","Enhanced SLA - 6 (24/7)","Fibre, FTTB, FTTN, FTTC and HFC","n/a",370.06,0,0,"10a"]
[null,"7.1  Enhanced Fault Service Level Offers ","Enhanced SLA - 4","Fibre, FTTB, FTTN, FTTC and HFC","n/a",4453.75,0,0,"10a"]
[null,"7.1  Enhanced Fault Service Level Offers ","Enhanced SLA - 4 (24/7)","Fibre, FTTB, FTTN, FTTC and HFC","n/a",11660.7,32926.559999999998,38232.410000000003]
[null,"7.2  Enhanced Fault Service level Offers","Enhanced SLA - 90 days (24/7)","Fibre, FTTB, FTTN, FTTC and HFC","n/a",0,0,0,8]
[null,"7.3 Enhanced Fault Service Level Offers: Smart Places     ","Smart Places - Enhanced SLA - 12","Fibre","n/a",0,0,0,8]
[null,"7.3 Enhanced Fault Service Level Offers: Smart Places     ","Smart Places - Enhanced SLA - 12 (24/7)","Fibre","n/a",0,10.06,28.59,8]
[null,"7.3 Enhanced Fault Service Level Offers: Smart Places     ","Smart Places - Enhanced SLA - 8","Fibre","n/a",0,0,0,8]
[null,{"$f":"B90","v":"7.3 Enhanced Fault Service Level Offers: Smart Places     "},"Smart places - Enhanced SLA - 8 (24/7)","Fibre","n/a",0,3.35,9.5299999999999994,8]
[null,"8.1  Installations and activations – NBN Co Networks other than the NBN Co Satellite Network ","Initial Standard Installation","Fibre, FTTB, FTTN, FTTC, HFC and Wireless","n/a",0,0,0,6]
[null,"8.1  Installations and activations – NBN Co Networks other than the NBN Co Satellite Network ","After Hours Installation","Fibre, FTTB, FTTN, FTTC and HFC","n/a",0,0,0,5]
[null,"8.1  Installations and activations – NBN Co Networks other than the NBN Co Satellite Network ","Fibre upgrade installation","Fibre","n/a",325230,362978,382543]
[null,"8.1  Installations and activations – NBN Co Networks other than the NBN Co Satellite Network ","Subsequent Installation of power supply with battery backup – Fibre Network only","Fibre","n/a",0,0,0,15]
[null,{"$f":"B95","v":"8.1  Installations and activations – NBN Co Networks other than the NBN Co Satellite Network "},"W-NTD Upgrade Installation","Wireless","n/a",0,13457,15964,11]
[null,"8.1  Installations and activations – NBN Co Networks other than the NBN Co Satellite Network ","Access Component Reactivation","Fibre, FTTB, FTTN, FTTC, HFC and Wireless","n/a",1442283,1680651.81,1797992.3]
[null,"8.1  Installations and activations – NBN Co Networks other than the NBN Co Satellite Network ","CVC Set-up & Activation","Fibre, FTTB, FTTN, FTTC, HFC and Wireless","n/a",0,0,0,6]
[null,"8.1  Installations and activations – NBN Co Networks other than the NBN Co Satellite Network ","NNI 1000BaseLX - Set-up & Activation","Fibre, FTTB, FTTN, FTTC, HFC and Wireless","n/a",0,3,0,8]
[null,"8.1  Installations and activations – NBN Co Networks other than the NBN Co Satellite Network ","NNI 10GBaseLR - Set-up & Activation","Fibre, FTTB, FTTN, FTTC, HFC and Wireless","n/a",672,390,360]
[null,"8.1  Installations and activations – NBN Co Networks other than the NBN Co Satellite Network ","NNI 100GBaseLR4 - Set-up & Activation","Fibre, FTTB, FTTN, FTTC, HFC and Wireless","n/a",24,31,36]
[null,"8.1  Installations and activations – NBN Co Networks other than the NBN Co Satellite Network ","NNI 1000BaseEX - Set-up & Activation","Fibre, FTTB, FTTN, FTTC, HFC and Wireless","n/a",0,0,0,8]
[null,"8.1  Installations and activations – NBN Co Networks other than the NBN Co Satellite Network ","NNI 10GBaseER - Set-up & Activation","Fibre, FTTB, FTTN, FTTC, HFC and Wireless","n/a",18,9,12]
[null,"8.1  Installations and activations – NBN Co Networks other than the NBN Co Satellite Network ","NNI 100GBaseER4 - Set-up & Activation","Fibre, FTTB, FTTN, FTTC, HFC and Wireless","n/a",0,0,0,8]
[null,"8.1  Installations and activations – NBN Co Networks other than the NBN Co Satellite Network ","NNI Link Activation","Fibre, FTTB, FTTN, FTTC, HFC and Wireless","n/a",0,0,0,6]
[null,"8.1  Installations and activations – NBN Co Networks other than the NBN Co Satellite Network ","Virtual NNI Activation","Fibre, FTTB, FTTN, FTTC, HFC and Wireless","n/a",513,130,120]
[null,"8.1  Installations and activations – NBN Co Networks other than the NBN Co Satellite Network ","Service Qualification Enquiry","Fibre, FTTB, FTTN, FTTC, HFC and Wireless","n/a",0,0,0,6]
[null,"8.2  Installations and activations – Smart Places","Smart Places - Initial Standard Installation","Fibre","n/a",0,0,0,6]
[null,"8.2  Installations and activations – Smart Places","Smart Places - Access Component Reactivation","Fibre","n/a",0,0,0,"7a"]
[null,"8.2  Installations and activations – Smart Places","Smart Places - CVC Set-up & Activation","Fibre","n/a",0,0,0,6]
[null,"8.2  Installations and activations – Smart Places","Smart Places - NNI 1000BaseLX - Set-up & Activation","Fibre","n/a",0,0,0,"7a"]
[null,{"$f":"B111","v":"8.2  Installations and activations – Smart Places"},"Smart Places - NNI 10GBaseLR - Set-up & Activation","Fibre","n/a",0,0,0,"7a"]
[null,"8.2  Installations and activations – Smart Places","Smart Places - NNI 100GBaseLR4 - Set-up & Activation","Fibre","n/a",0,0,0,"7a"]
[null,"8.2  Installations and activations – Smart Places","Smart Places - NNI 1000BaseEX - Set-up & Activation","Fibre","n/a",0,0,0,"7a"]
[null,"8.2  Installations and activations – Smart Places","Smart Places - NNI 10GBaseER - Set-up & Activation","Fibre","n/a",0,0,0,"7a"]
[null,"8.2  Installations and activations – Smart Places","Smart Places - NNI 100GBaseER4 - Set-up & Activation","Fibre","n/a",0,0,0,"7a"]
[null,"8.2  Installations and activations – Smart Places","Smart Places - NNI Link Activation","Fibre","n/a",0,0,0,6]
[null,"8.2  Installations and activations – Smart Places","Smart Places - Virtual NNI Activation","Fibre","n/a",0,0,0,"7a"]
[null,"8.3 Installations and activations – NBN Co Satellite Network","Initial Standard Installation (excluding any additional incidental charges which may apply for Limited Access Areas)","Satellite","n/a",0,0,0,6]
[null,"8.3 Installations and activations – NBN Co Satellite Network","Access Component Reactivation (excluding any additional incidental charges which may apply for Limited Access Areas)","Satellite","n/a",0,0,0,"7b"]
[null,"8.3 Installations and activations – NBN Co Satellite Network","Subsequent Installation in Urban Area, Major Rural Area, Minor Rural Area or Remote Area - 0.8m NTD outdoor unit dish","Satellite","n/a",0,0,0,5]
[null,"8.3 Installations and activations – NBN Co Satellite Network","Subsequent Installation in Urban Area, Major Rural Area, Minor Rural Area or Remote Area - 1.2m NTD outdoor unit dish","Satellite","n/a",0,0,0,5]
[null,"8.3 Installations and activations – NBN Co Satellite Network","Subsequent Installation in Urban Area, Major Rural Area, Minor Rural Area or Remote Area - 1.8m NTD outdoor unit dish","Satellite","n/a",0,0,0,5]
[null,"8.3 Installations and activations – NBN Co Satellite Network","Subsequent Installation in Isolated Area - 0.8m NTD outdoor unit dish","Satellite","n/a",0,0,0,5]
[null,"8.3 Installations and activations – NBN Co Satellite Network","Subsequent Installation in Isolated Area - 1.2m NTD outdoor unit dish","Satellite","n/a",0,0,0,5]
[null,"8.3 Installations and activations – NBN Co Satellite Network","Subsequent Installation in Isolated Area - 1.8m NTD outdoor unit dish","Satellite","n/a",0,0,0,5]
[null,"8.3 Installations and activations – NBN Co Satellite Network","Subsequent Installation in Isolated Area - 1.8m NTD outdoor unit dish","Satellite","n/a",0,0,0,6]
[null,"8.3 Installations and activations – NBN Co Satellite Network","NNI 1000BaseLX - Set-up & Activation","Satellite","n/a",0,0,0,"7b"]
[null,"8.3 Installations and activations – NBN Co Satellite Network","NNI 10GBaseLR - Set-up & Activation","Satellite","n/a",0,0,0,"7b"]
[null,"8.3 Installations and activations – NBN Co Satellite Network","NNI 1000BaseEX - Set-up & Activation","Satellite","n/a",0,0,0,"7b"]
[null,"8.3 Installations and activations – NBN Co Satellite Network","NNI 10GBaseER - Set-up & Activation","Satellite","n/a",0,0,0,"7b"]
[null,{"$f":"B131","v":"8.3 Installations and activations – NBN Co Satellite Network"},"Site Survey Charge","Satellite","n/a",0,0,0,5]
[null,"8.4  Service modifications – NBN Co Networks other than the NBN Co Satellite Network","Access Component Modification (no attendance at Premises required)","Fibre, FTTB, FTTN, FTTC, HFC and Wireless","n/a",0,0,0,6]
[null,"8.4  Service modifications – NBN Co Networks other than the NBN Co Satellite Network","CVC Modification","Fibre, FTTB, FTTN, FTTC, HFC and Wireless","n/a",0,0,0,6]
[null,"8.4  Service modifications – NBN Co Networks other than the NBN Co Satellite Network","NNI Modification","Fibre, FTTB, FTTN, FTTC, HFC and Wireless","n/a",0,0,0,6]
[null,"8.4  Service modifications – NBN Co Networks other than the NBN Co Satellite Network","NNI Link Modification","Fibre, FTTB, FTTN, FTTC, HFC and Wireless","n/a",0,0,0,6]
[null,"8.5 Service modifications – Smart Places","Smart Places - Access Component Modification (no attendance at Smart Location required)","Fibre","n/a",0,0,0,6]
[null,"8.5 Service modifications – Smart Places","Smart Places - CVC Modification","Fibre","n/a",0,0,0,6]
[null,"8.5 Service modifications – Smart Places","Smart Places - NNI Modification","Fibre","n/a",0,0,0,6]
[null,"8.5 Service modifications – Smart Places","Smart Places - NNI Link Modification","Fibre","n/a",0,0,0,6]
[null,"8.6   Service modifications – NBN Co Satellite Network","Equipment Modification (NTD Indoor Unit)(excluding any additional incidental charges which may apply for Limited Access Areas)","Satellite","n/a",0,0,0,5]
[null,"8.6   Service modifications – NBN Co Satellite Network","Access Component Modification (no attendance at Premises required)","Satellite","n/a",0,0,0,6]
[null,"8.6   Service modifications – NBN Co Satellite Network","CVC Modification","Satellite","n/a",0,0,0,6]
[null,"8.6   Service modifications – NBN Co Satellite Network","NNI Modification","Satellite","n/a",0,0,0,6]
[null,"8.6   Service modifications – NBN Co Satellite Network","Equipment Modification (NTD outdoor unit) in Urban Area, Major Rural Area, Minor Rural Area or Remote Area - 0.8m NTD outdoor unit dish","Satellite","n/a",0,0,0,5]
[null,"8.6   Service modifications – NBN Co Satellite Network","Equipment Modification (NTD outdoor unit) in Urban Area, Major Rural Area, Minor Rural Area or Remote Area - 1.2m NTD outdoor unit dish","Satellite","n/a",0,0,0,5]
[null,"8.6   Service modifications – NBN Co Satellite Network","Equipment Modification (NTD outdoor unit) in Urban Area, Major Rural Area, Minor Rural Area or Remote Area - 1.8m NTD outdoor unit dish","Satellite","n/a",0,0,0,5]
[null,"8.6   Service modifications – NBN Co Satellite Network","Equipment Modification (NTD outdoor unit) in Isolated Area - 0.8m NTD outdoor unit dish","Satellite","n/a",0,0,0,5]
[null,"8.6   Service modifications – NBN Co Satellite Network","Equipment Modification (NTD outdoor unit) in Isolated Area - 1.2m NTD outdoor unit dish","Satellite","n/a",0,0,0,5]
[null,"8.6   Service modifications – NBN Co Satellite Network","Equipment Modification (NTD outdoor unit) in Isolated Area - 1.8m NTD outdoor unit dish","Satellite","n/a",0,0,0,5]
[null,"8.6   Service modifications – NBN Co Satellite Network","Equipment Modification (NTD indoor and outdoor unit) in Urban Area, Major Rural Area, Minor Rural Area or Remote Area - 0.8m NTD outdoor unit dish","Satellite","n/a",0,0,0,5]
[null,{"$f":"B151","v":"8.6   Service modifications – NBN Co Satellite Network"},"Equipment Modification (NTD indoor and outdoor unit) in Urban Area, Major Rural Area, Minor Rural Area or Remote Area - 1.2m NTD outdoor unit dish","Satellite","n/a",0,0,0,5]
[null,"8.6   Service modifications – NBN Co Satellite Network","Equipment Modification (NTD indoor and outdoor unit) in Urban Area, Major Rural Area, Minor Rural Area or Remote Area - 1.8m NTD outdoor unit dish","Satellite","n/a",0,0,0,5]
[null,"8.6   Service modifications – NBN Co Satellite Network","Equipment Modification (NTD indoor and outdoor unit) in Isolated Area - 0.8m NTD outdoor unit dish","Satellite","n/a",0,0,0,5]
[null,"8.6   Service modifications – NBN Co Satellite Network","Equipment Modification (NTD indoor and outdoor unit) in Isolated Area - 1.2m NTD outdoor unit dish","Satellite","n/a",0,0,0,5]
[null,"8.6   Service modifications – NBN Co Satellite Network","Equipment Modification (NTD indoor and outdoor unit) in Isolated Area - 1.8m NTD outdoor unit dish","Satellite","n/a",0,0,0,5]
[null,"8.7  Service management – NBN Co Networks other than the NBN Co Satellite Network ","On Site Maintainance Call Out","Fibre and Wireless","n/a",0,0,0,6]
[null,"8.7  Service management – NBN Co Networks other than the NBN Co Satellite Network ","No Fault Found (No Truck Roll Required)","Fibre and Wireless","n/a",0,0,0,5]
[null,"8.7  Service management – NBN Co Networks other than the NBN Co Satellite Network ","No Fault Found (No Truck Roll Required)","FTTB and FTTN and FTTC","n/a",0,0,0,5]
[null,"8.7  Service management – NBN Co Networks other than the NBN Co Satellite Network ","No Fault Found (No Truck Roll Required)","HFC","n/a",0,0,0,5]
[null,"8.7  Service management – NBN Co Networks other than the NBN Co Satellite Network ","Late Cancellation (Site Visit Required)","Fibre and Wireless","n/a",0,0,0,6]
[null,"8.7  Service management – NBN Co Networks other than the NBN Co Satellite Network ","Late Cancellation (Site Visit Required)","FTTB and FTTN and FTTC","n/a",0,0,0,5]
[null,"8.7  Service management – NBN Co Networks other than the NBN Co Satellite Network ","Late Cancellation (Site Visit Required)","HFC","n/a",0,0,0,5]
[null,"8.7  Service management – NBN Co Networks other than the NBN Co Satellite Network ","First Missed Appointment","Fibre and Wireless","n/a",0,0,0,6]
[null,"8.7  Service management – NBN Co Networks other than the NBN Co Satellite Network ","First Missed Appointment","FTTB and FTTN and FTTC","n/a",0,0,0,5]
[null,"8.7  Service management – NBN Co Networks other than the NBN Co Satellite Network ","First Missed Appointment","HFC","n/a",0,0,0,5]
[null,"8.7  Service management – NBN Co Networks other than the NBN Co Satellite Network ","Subsequent Missed Appointment","Fibre and Wireless","n/a",0,0,0,6]
[null,"8.7  Service management – NBN Co Networks other than the NBN Co Satellite Network ","Subsequent Missed Appointment","FTTB and FTTN and FTTC","n/a",0,0,0,5]
[null,"8.7  Service management – NBN Co Networks other than the NBN Co Satellite Network ","Subsequent Missed Appointment","HFC","n/a",0,0,0,5]
[null,"8.7  Service management – NBN Co Networks other than the NBN Co Satellite Network ","Co-ordinated Appointment (Day)","Fibre","n/a",0,0,0,5]
[null,"8.7  Service management – NBN Co Networks other than the NBN Co Satellite Network ","Co-ordinated Appointment (Day)","FTTB and FTTN and FTTC","n/a",0,0,0,5]
[null,{"$f":"B171","v":"8.7  Service management – NBN Co Networks other than the NBN Co Satellite Network "},"Co-ordinated Appointment (Day)","HFC","n/a",0,0,0,5]
[null,"8.7  Service management – NBN Co Networks other than the NBN Co Satellite Network ","Co-ordinated Appointment (Night)","Fibre","n/a",0,0,0,5]
[null,"8.7  Service management – NBN Co Networks other than the NBN Co Satellite Network ","Co-ordinated Appointment (Night)","FTTB and FTTN and FTTC","n/a",0,0,0,5]
[null,"8.7  Service management – NBN Co Networks other than the NBN Co Satellite Network ","Co-ordinated Appointment (Night)","HFC","n/a",0,0,0,5]
[null,"8.7  Service management – NBN Co Networks other than the NBN Co Satellite Network ","Late Cancellation (After Hours Installation Appointment)","Fibre","n/a",0,0,0,5]
[null,"8.7  Service management – NBN Co Networks other than the NBN Co Satellite Network ","Late Cancellation (After Hours Installation Appointment)","FTTB and FTTN and FTTC","n/a",0,0,0,5]
[null,"8.7  Service management – NBN Co Networks other than the NBN Co Satellite Network ","Late Cancellation (Co-ordinated Appointment) (Day)","Fibre and Wireless","n/a",0,0,0,5]
[null,"8.7  Service management – NBN Co Networks other than the NBN Co Satellite Network ","Late Cancellation (Co-ordinated Appointment) (Day)","FTTB and FTTN and FTTC","n/a",0,0,0,5]
[null,"8.7  Service management – NBN Co Networks other than the NBN Co Satellite Network ","Late Cancellation (Co-ordinated Appointment) (Day)","HFC","n/a",0,0,0,5]
[null,"8.7  Service management – NBN Co Networks other than the NBN Co Satellite Network ","Late Cancellation (Co-ordinated Appointmentt) (Night)","Fibre and Wireless","n/a",0,0,0,5]
[null,"8.7  Service management – NBN Co Networks other than the NBN Co Satellite Network ","Late Cancellation (Co-ordinated Appointmentt) (Night)","FTTB and FTTN and FTTC","n/a",0,0,0,5]
[null,"8.7  Service management – NBN Co Networks other than the NBN Co Satellite Network ","Late Cancellation (Co-ordinated Appointmentt) (Night)","HFC","n/a",0,0,0,5]
[null,"8.7  Service management – NBN Co Networks other than the NBN Co Satellite Network ","Late Rescheduling (Co-ordinated Appointment) (Day)","Fibre and Wireless","n/a",0,0,0,5]
[null,"8.7  Service management – NBN Co Networks other than the NBN Co Satellite Network ","Late Rescheduling (Co-ordinated Appointment) (Day)","FTTB and FTTN and FTTC","n/a",0,0,0,5]
[null,"8.7  Service management – NBN Co Networks other than the NBN Co Satellite Network ","Late Rescheduling (Co-ordinated Appointment) (Day)","HFC","n/a",0,0,0,5]
[null,"8.7  Service management – NBN Co Networks other than the NBN Co Satellite Network ","Late Rescheduling (Co-ordinated Appointment) (Night)","Fibre and Wireless","n/a",0,0,0,5]
[null,"8.7  Service management – NBN Co Networks other than the NBN Co Satellite Network ","Late Rescheduling (Co-ordinated Appointment) (Night)","FTTB and FTTN and FTTC","n/a",0,0,0,5]
[null,"8.7  Service management – NBN Co Networks other than the NBN Co Satellite Network ","Late Rescheduling (Co-ordinated Appointment) (Night)","HFC","n/a",0,0,0,5]
[null,"8.7  Service management – NBN Co Networks other than the NBN Co Satellite Network ","Restoration of an Ordered Product","Fibre and Wireless","n/a",0,0,0,8]
[null,"8.7  Service management – NBN Co Networks other than the NBN Co Satellite Network ","Restoration of an Ordered Product","FTTB and FTTN and FTTC","n/a",0,0,0,8]
[null,{"$f":"B191","v":"8.7  Service management – NBN Co Networks other than the NBN Co Satellite Network "},"Restoration of an Ordered Product","HFC","n/a",0,0,0,8]
[null,"8.7  Service management – NBN Co Networks other than the NBN Co Satellite Network ","Missed Appointment (After Hours Installation Appointment)","Fibre","n/a",0,0,0,5]
[null,"8.7  Service management – NBN Co Networks other than the NBN Co Satellite Network ","Missed Appointment (After Hours Installation Appointment)","FTTB and FTTN and FTTC","n/a",0,0,0,5]
[null,"8.7  Service management – NBN Co Networks other than the NBN Co Satellite Network ","Missed Appointment (Co-ordinated Appointment) (Day)","Fibre","n/a",0,0,0,5]
[null,"8.7  Service management – NBN Co Networks other than the NBN Co Satellite Network ","Missed Appointment (Co-ordinated Appointment) (Day)","FTTB and FTTN and FTTC","n/a",0,0,0,5]
[null,"8.7  Service management – NBN Co Networks other than the NBN Co Satellite Network ","Missed Appointment (Co-ordinated Appointment) (Day)","HFC","n/a",0,0,0,5]
[null,"8.7  Service management – NBN Co Networks other than the NBN Co Satellite Network ","Missed Appointment (Co-ordinated Appointment) (Night)","Fibre","n/a",0,0,0,5]
[null,"8.7  Service management – NBN Co Networks other than the NBN Co Satellite Network ","Missed Appointment (Co-ordinated Appointment) (Night)","FTTB and FTTN and FTTC","n/a",0,0,0,5]
[null,"8.7  Service management – NBN Co Networks other than the NBN Co Satellite Network ","Missed Appointment (Co-ordinated Appointment) (Night)","HFC","n/a",0,0,0,5]
[null,"8.7  Service management – NBN Co Networks other than the NBN Co Satellite Network ","Incorrect Callout","FTTB and FTTN and FTTC","n/a",0,0,0,5]
[null,"8.7  Service management – NBN Co Networks other than the NBN Co Satellite Network ","Incorrect Callout","HFC","n/a",0,0,0,5]
[null,"8.7  Service management – NBN Co Networks other than the NBN Co Satellite Network ","Voiceband Reinstatement","FTTB and FTTN","n/a",0,0,0,5]
[null,"8.7  Service management – NBN Co Networks other than the NBN Co Satellite Network ","Transition Reversal","FTTB and FTTN and FTTC","n/a",0,0,0,5]
[null,{"$f":"B204","v":"8.8  Service management – Smart Places"},"Smart Places - On Site Maintainance Call Out",{"$f":"D204","v":"Fibre"},"n/a",0,0,0,6]
[null,"8.8  Service management – Smart Places","Smart Places - No Fault Found (No Truck Roll Required)",{"$f":"D205","v":"Fibre"},"n/a",0,0,0,5]
[null,"8.8  Service management – Smart Places","Smart Places - First Missed Appointment (Trouble Ticket Appointment)",{"$f":"D206","v":"Fibre"},"n/a",0,0,0,6]
[null,"8.8  Service management – Smart Places","Smart Places - Subsequent Missed Appointment (Trouble Ticket Appointment)",{"$f":"D207","v":"Fibre"},"n/a",0,0,0,6]
[null,"8.8  Service management – Smart Places","Smart Places - Co-ordinated Appointment (Day)",{"$f":"D208","v":"Fibre"},"n/a",0,0,0,5]
[null,"8.8  Service management – Smart Places","Smart Places - Co-ordinated Appointment (After Hours)",{"$f":"D209","v":"Fibre"},"n/a",0,0,0,5]
[null,"8.8  Service management – Smart Places","Smart Places - Late Cancellation (Smart Places Co-ordinated Appointment) (Day)",{"$f":"D210","v":"Fibre"},"n/a",0,0,0,5]
[null,"8.8  Service management – Smart Places","Smart Places - Late Cancellation (Smart Places Co-ordinated Appointment) (After Hours)",{"$f":"D211","v":"Fibre"},"n/a",0,0,0,5]
[null,"8.8  Service management – Smart Places","Smart Places - Late Rescheduling (Smart Places Co-ordinated Appointment) (Day)",{"$f":"D212","v":"Fibre"},"n/a",0,0,0,5]
[null,"8.8  Service management – Smart Places","Smart Places - Late Rescheduling (Smart Places Co-ordinated Appointment) (After Hours)",{"$f":"D213","v":"Fibre"},"n/a",0,0,0,5]
[null,"8.8  Service management – Smart Places","Smart Places - Restoration",{"$f":"D214","v":"Fibre"},"n/a",0,0,0,5]
[null,"8.8  Service management – Smart Places","Smart Places - Missed Appointment  (Smart Places Co-ordinated Appointment) (Day)",{"$f":"D215","v":"Fibre"},"n/a",0,0,0,5]
[null,"8.8  Service management – Smart Places","Smart Places - Missed Appointment (Smart Places Co-ordinated Appointment) (After Hours)",{"$f":"D216","v":"Fibre"},"n/a",0,0,0,5]
[null,"8.9  Service management – NBN Co Satellite Network ","On Site Maintainance Call Out",{"$f":"D217","v":"Satellite"},"n/a",0,0,0,6]
[null,"8.9  Service management – NBN Co Satellite Network ","No Fault Found (No Truck Roll Required)",{"$f":"D218","v":"Satellite"},"n/a",0,0,0,5]
[null,"8.9  Service management – NBN Co Satellite Network ","No Fault Found (Truck Roll Required) (excluding any additional incidental charges which may apply for Limited Access Areas)",{"$f":"D219","v":"Satellite"},"n/a",0,0,0,5]
[null,"8.9  Service management – NBN Co Satellite Network ","Late Cancellation (Site Visit Required) in Urban Area or Major Rural Area",{"$f":"D220","v":"Satellite"},"n/a",0,0,0,5]
[null,"8.9  Service management – NBN Co Satellite Network ","Late Cancellation (Site Visit Required) in Minor Rural Area or Remote Area",{"$f":"D221","v":"Satellite"},"n/a",0,0,0,5]
[null,"8.9  Service management – NBN Co Satellite Network ","Late Cancellation (Site Visit Required) in Isolated Area",{"$f":"D222","v":"Satellite"},"n/a",0,0,0,5]
[null,"8.9  Service management – NBN Co Satellite Network ","Late Cancellation (Site Visit Required) in Limted Access Area (excluding any additional incidental charges which may apply for Limited Access Areas)",{"$f":"D223","v":"Satellite"},"n/a",0,0,0,5]
[null,{"$f":"B224","v":"8.9  Service management – NBN Co Satellite Network "},"Missed Appointment (Urban Area or Major Rural Area)",{"$f":"D224","v":"Satellite"},"n/a",0,0,0,5]
[null,"8.9  Service management – NBN Co Satellite Network ","Missed Appointment (Minor Rural Area or Remote Area)",{"$f":"D225","v":"Satellite"},"n/a",0,0,0,5]
[null,"8.9  Service management – NBN Co Satellite Network ","Missed Appointment (Isolated Area)",{"$f":"D226","v":"Satellite"},"n/a",0,0,0,5]
[null,"8.9  Service management – NBN Co Satellite Network ","Missed Appointment (Limited Access Area) (excluding any additional incidental charges which may apply for Limited Access Areas)",{"$f":"D227","v":"Satellite"},"n/a",0,0,0,5]
[null,"8.9  Service management – NBN Co Satellite Network ","Restoration ",{"$f":"D228","v":"Satellite"},"n/a",0,0,0,8]
[null,"8.10  Service Transfer-related charges – all NBN Co Networks","Service Transfer",{"$f":"D229","v":"All"},"n/a",444603,547504.52,555398.15]
[null,"8.10  Service Transfer-related charges – all NBN Co Networks","Service Transfer Reversal",{"$f":"D230","v":"All"},"n/a",2472,0,0,"10b"]
[null,"8.10  Service Transfer-related charges – all NBN Co Networks","Non Infrastructure Transfers (per Service Transfer)",{"$f":"D231","v":"All"},"n/a",0,0,0,8]
[null,"8.11  CVC Class Adjustment – NBN Co Satellite Network","Ordered CVC Class 0 - Up to the allocated usage for CVC Class 1",{"$f":"D232","v":"Satellite"},"n/a",0,0,0,8]
[null,"8.11  CVC Class Adjustment – NBN Co Satellite Network","Ordered CVC Class 0 - Greater than the allocated usage for CVC Class 1 up to the allocated usage for CVC Class 2",{"$f":"D233","v":"Satellite"},"n/a",0,0,0,8]
[null,"8.11  CVC Class Adjustment – NBN Co Satellite Network","Ordered CVC Class 0 - Greater than allocated usage for CVC Class 2 ",{"$f":"D234","v":"Satellite"},"n/a",0,0,0,8]
[null,"8.11  CVC Class Adjustment – NBN Co Satellite Network","Ordered CVC Class 1 - Up to the allocated usage for CVC Class 2",{"$f":"D235","v":"Satellite"},"n/a",0,0,0,8]
[null,"8.11  CVC Class Adjustment – NBN Co Satellite Network","Ordered CVC Class 1 - Greater than allocated usage for CVC Class 2",{"$f":"D236","v":"Satellite"},"n/a",0,0,0,8]
[null,"8.11  CVC Class Adjustment – NBN Co Satellite Network","Ordered CVC Class 2 - Greater than allocated usage for CVC Class 2",{"$f":"D237","v":"Satellite"},"n/a",0,0,0,8]
[null,"9 NBN Co Co-location Offer","Lockable Full Height Equipment Rack",{"$f":"D238","v":"All"},"n/a",1233.9000000000001,1337.6,1361.6]
[null,"9 NBN Co Co-location Offer","Lockable Half Height Equipment Rack",{"$f":"D239","v":"All"},"n/a",4855.8,4843.2,4843.2]
[null,"10  Facilities Access Service Offer","Cross-Connect",{"$f":"D240","v":"All"},"n/a",0,0,0,6]
[null,"10  Facilities Access Service Offer","NBN Co ODF Termination Point",{"$f":"D241","v":"All"},"n/a",0,0,0,6]
[null,"10  Facilities Access Service Offer","NBN Co Building Entry Service",{"$f":"D242","v":"All"},"n/a",1128,968.75,968.75]
[null,"11  Other Charges – Facilities Access Service","Set-up NBN Co Co-location (Lockable Full Height Equipment Rack)",{"$f":"D243","v":"All"},"n/a",0,0,0,8]
[null,{"$f":"B244","v":"11  Other Charges – Facilities Access Service"},"Set-up NBN Co Co-location (Lockable Half Height Equipment Rack)",{"$f":"D244","v":"All"},"n/a",0,0,0,8]
[null,"11  Other Charges – Facilities Access Service","Set-up Cross-Connect",{"$f":"D245","v":"All"},"n/a",0,0,0,6]
[null,{"$f":"B246","v":"11  Other Charges – Facilities Access Service"},"Set-up NBN Co ODF Termination Point","All","n/a",0,0,0,6]
[null,{"$f":"B247","v":"11  Other Charges – Facilities Access Service"},"Supply of First Access Card","All","n/a",0,0,0,6]
[null,{"$f":"B248","v":"11  Other Charges – Facilities Access Service"},"Additional / Replacement Access Card (excluding the First Access Card)  ","All","n/a",0,0,0,8]
[null,{"$f":"B249","v":"11  Other Charges – Facilities Access Service"},"Missed Appointment (During Business Hours)","All","n/a",0,0,0,8]
[null,{"$f":"B250","v":"11  Other Charges – Facilities Access Service"},"Missed Appointment (Outside Business Hours)","All","n/a",0,0,0,8]
[null,{"$f":"B251","v":"12 Platform Interfacing Offer"},"NPIS ","All","n/a",0,0,0,6]
[null,{"$f":"B252","v":"13 Sandpit"},"Sandpit","All","n/a",0,0,0,6]
[null,{"$f":"B253","v":"14 CSAS Symmetric Access Capacity Offers"},"CSAS - Access Capacity 50 Mbps Metro and Outer Metro","All","n/a",0,0,0,8]
[null,{"$f":"B254","v":"14 CSAS Symmetric Access Capacity Offers"},"CSAS - Access Capacity 50 Mbps Regional","All","n/a",0,0,0,8]
[null,{"$f":"B255","v":"14 CSAS Symmetric Access Capacity Offers"},"CSAS - Access Capacity 100 Mbps Metro and Outer Metro","All","n/a",0,0,0,8]
[null,{"$f":"B256","v":"14 CSAS Symmetric Access Capacity Offers"},"CSAS - Access Capacity 100 Mbps Regional","All","n/a",12,0,0,"10c"]
[null,{"$f":"B257","v":"14 CSAS Symmetric Access Capacity Offers"},"CSAS - Access Capacity 150 Mbps Metro and Outer Metro","All","n/a",0,0,0,8]
[null,{"$f":"B258","v":"14 CSAS Symmetric Access Capacity Offers"},"CSAS - Access Capacity 150 Mbps Regional","All","n/a",0,0,0,8]
[null,{"$f":"B259","v":"14 CSAS Symmetric Access Capacity Offers"},"CSAS - Access Capacity 200 Mbps Metro and Outer Metro","All","n/a",0,0,0,8]
[null,{"$f":"B260","v":"14 CSAS Symmetric Access Capacity Offers"},"CSAS - Access Capacity 200 Mbps Regional","All","n/a",12,0,0,"10c"]
[null,{"$f":"B261","v":"14 CSAS Symmetric Access Capacity Offers"},"CSAS - Access Capacity 300 Mbps Metro and Outer Metro","All","n/a",0,0,0,8]
[null,{"$f":"B262","v":"14 CSAS Symmetric Access Capacity Offers"},"CSAS - Access Capacity 300 Mbps Regional","All","n/a",0,0,0,8]
[null,{"$f":"B263","v":"14 CSAS Symmetric Access Capacity Offers"},"CSAS - Access Capacity 500 Mbps Metro and Outer Metro","All","n/a",0,0,0,8]
[null,{"$f":"B264","v":"14 CSAS Symmetric Access Capacity Offers"},"CSAS - Access Capacity 500 Mbps Regional","All","n/a",12,0,0,"10c"]
[null,{"$f":"B265","v":"14 CSAS Symmetric Access Capacity Offers"},"CSAS - Access Capacity 900 Mbps Metro and Outer Metro","All","n/a",0,0,0,8]
[null,{"$f":"B266","v":"14 CSAS Symmetric Access Capacity Offers"},"CSAS - Access Capacity 900 Mbps Regional","All","n/a",0,0,0,8]
[null,{"$f":"B267","v":"15 CSAS Network to Network Interface Offers "},"CSAS - NNI 1000BaseLX - Recurring","All","n/a",0,0,0,"7c"]
[null,{"$f":"B268","v":"15 CSAS Network to Network Interface Offers "},"CSAS - NNI 10GBaseLR - Recurring","All","n/a",0,0,0,"7c"]
[null,{"$f":"B269","v":"15 CSAS Network to Network Interface Offers "},"CSAS - NNI 1000BaseEX - Recurring","All","n/a",0,0,0,"7c"]
[null,{"$f":"B270","v":"15 CSAS Network to Network Interface Offers "},"CSAS - NNI 10GBaseER - Recurring","All","n/a",0,0,0,"7c"]
[null,{"$f":"B271","v":"16.1  Installation and activations – CSAS"},"CSAS - NNI 1000BaseLX - Set-up & Activation","All","n/a",0,0,0,"7c"]
[null,{"$f":"B272","v":"16.1  Installation and activations – CSAS"},"CSAS - NNI 10GBaseLR - Set-up & Activation","All","n/a",0,0,0,"7c"]
[null,{"$f":"B273","v":"16.1  Installation and activations – CSAS"},"CSAS - NNI 1000BaseEx - Set-up & Activation","All","n/a",0,0,0,"7c"]
[null,{"$f":"B274","v":"16.1  Installation and activations – CSAS"},"CSAS - NNI 10GBaseER - Set-up & Activation","All","n/a",0,0,0,"7c"]
[null,{"$f":"B275","v":"16.2  Service modification – CSAS"},"CSAS - Access Component Modification (no attendance at CSAS - Point required)","All","n/a",0,0,0,6]
[null,{"$f":"B276","v":"16.2  Service modification – CSAS"},"CSAS - NNI Modification","All","n/a",0,0,0,6]
[null,{"$f":"B277","v":"16.3  Service management – CSAS"},"CSAS - On Site Maintainance Call Out","All","n/a",0,0,0,6]
[null,{"$f":"B278","v":"16.3  Service management – CSAS"},"CSAS - No Fault Found (No Truck Roll Required)","All","n/a",0,0,0,5]
[null,{"$f":"B279","v":"17.1 Sky Muster Plus Satellite Service "},"25GB+ Plan","Satellite","n/a",71141.3,64836.160000000003,64836.160000000003,""]
[null,{"$f":"B280","v":"17.1 Sky Muster Plus Satellite Service "},"50GB+ Plan","Satellite","n/a",133626.23000000001,121044.77,121044.77,""]
[null,{"$f":"B281","v":"17.1 Sky Muster Plus Satellite Service "},"100GB+ Plan","Satellite","n/a",7166.75,6361.73,6361.73,""]
[null,{"$f":"B282","v":"17.1 Sky Muster Plus Satellite Service "},"150GB+ Plan","Satellite","n/a",3023.72,2676.56,2676.56]
[null,{"$f":"B283","v":"17.1 Sky Muster Plus Satellite Service "},"24x7 Uncapped Data Usage – 25","Satellite","n/a",29330.25,25962.78,25962.78]
[null,{"$f":"B284","v":"17.1 Sky Muster Plus Satellite Service "},"24x7 Uncapped Data Usage – 50","Satellite","n/a",30074.2,26621.31,26621.31]
[null,{"$f":"B285","v":"17.1 Sky Muster Plus Satellite Service "},"24x7 Uncapped Data Usage – 100","Satellite","n/a",277523.81,245660.69,245660.69]
[null,{"$f":"B286","v":"17.2 Sky Muster Plus Satellite Service "},"Public 1:1 NAT","Satellite","n/a",0,0,0,8]
[null,{"$f":"B287","v":"17.3 Sky Muster Plus Satellite Service "},"5GB Peak Period Metered Data Allowance + 5GB Off-peak Period Metered Data Allowance (if applicable)","Satellite","n/a",43215.35,0,0,"10d"]
[null,{"$f":"B288","v":"18.1 Sky Muster Plus Satellite Service "},"Sky Muster Plus 1GB Peak Period Top-Up Allowance + 1GB Off-peak Period Top-Up Allowance (if applicable)","Satellite","n/a",7335,0,0,"10d"]
[null,{"$f":"B289","v":"19. Fibre TV"},"Fibre TV","Fibre","n/a",0,0,0,6]
[null,{"$f":"B290","v":"20.1 Co-location Augmentation trial non-recurring charges"},"Supply, installation and migration of one replacement fibre termination tray / patch panel of 72 terminated fibres","All","n/a",4,0,0,12]
[null,{"$f":"B291","v":"20.1 Co-location Augmentation trial non-recurring charges"},"Supply, installation and migration of one replacement fibre termination tray / patch panel of 144 terminated fibres","All","n/a",1,0,0,12]

{"sheet":"Compliance Summary","index":6,"n_rows":130,"n_cols":7,"rows_kept":130,"cut":false,"hidden":false,"merged":[[11,2,11,4],[28,2,28,4],[21,2,21,4],[9,1,9,6],[19,1,19,6]]}
["Cell colour meanings"]
[null,"Input cell"]
[null,"Calculation cell"]
[]
[null,"Compliance Summary"]
[]
[null,"Applicable Financial Year for Proposed Tariff List",{"$f":"'Price Control Inputs'!C7","v":"FY25"}]
[]
[null,"Weighted Average Price Control"]
[null,"Note: For the first financial year (i.e. prices that are stated in the Tariff List), nbn has confirmed that the prices comply with the WAPC formula in clause 2D.2.2 of the SAU. For the second and third \nfinancial years in the Pricing Roadmap, nbn has assessed whether the prices are expected to comply with the WAPC formula based on forecasts of CPI and forecast quantities of WAPC Charge Components and Forecast Average Combined Charges for Bundled TC-4 Offers."]
[]
[]
[null,null,{"$f":"C7","v":"FY25"},{"$f":"\"FY\"&RIGHT($C13,2)+1","v":"FY26"},{"$f":"\"FY\"&RIGHT($C13,2)+2","v":"FY27"}]
[null,"WAPC Allowance",{"$f":"_xlfn.XLOOKUP(C13,'Price Control Inputs'!$D$10:$F$10,'Price Control Inputs'!$D$20:$F$20,,0)","v":4.0999999999999925E-2},{"$f":"_xlfn.XLOOKUP(D13,'Price Control Inputs'!$D$10:$F$10,'Price Control Inputs'!$D$20:$F$20,,0)","v":3.2000000000000028E-2},{"$f":"_xlfn.XLOOKUP(E13,'Price Control Inputs'!$D$10:$F$10,'Price Control Inputs'!$D$20:$F$20,,0)","v":2.8000000000000025E-2}]
[]
[null,"Weighted Average Price Control (WAPC)",{"$f":"(SUMPRODUCT('Price and Quantity'!G$11:G$13,'Price and Quantity'!F$299:F$301) + SUMPRODUCT('Price and Quantity'!G$15:G$18,'Price and Quantity'!F$303:F$306) + SUMPRODUCT('Price and Quantity'!G$20:G$74,'Price and Quantity'!F$308:F$362) + SUMPRODUCT('Price and Quantity'!G$77:G$94,'Price and Quantity'!F$365:F$382) + SUMPRODUCT('Price and Quantity'!G$96:G$291,'Price and Quantity'!F$384:F$579)) /\n(SUMPRODUCT('Price and Quantity'!F$11:F$13,'Price and Quantity'!F$299:F$301) + SUMPRODUCT('Price and Quantity'!F$15:F$18,'Price and Quantity'!F$303:F$306) + SUMPRODUCT('Price and Quantity'!F$20:F$74,'Price and Quantity'!F$308:F$362) + SUMPRODUCT('Price and Quantity'!F$77:F$94,'Price and Quantity'!F$365:F$382) + SUMPRODUCT('Price and Quantity'!F$96:F$291,'Price and Quantity'!F$384:F$579))-1","v":4.0800250986573028E-2},{"$f":"SUMPRODUCT('Price and Quantity'!H$11:H$289,'Price and Quantity'!G$299:G$577)/SUMPRODUCT('Price and Quantity'!G$11:G$289,'Price and Quantity'!G$299:G$577)-1","v":3.1460595579110961E-2},{"$f":"SUMPRODUCT('Price and Quantity'!I$11:I$289,'Price and Quantity'!H$299:H$577)/SUMPRODUCT('Price and Quantity'!H$11:H$289,'Price and Quantity'!H$299:H$577)-1","v":2.7076277903100854E-2}]
[null,null,{"$f":"IF(C16<=C14,\"Compliant\",\"Not Compliant\")","v":"Compliant"},{"$f":"IF(D16<=D14,\"Compliant\",\"Not Compliant\")","v":"Compliant"},"Compliant"]
[]
[null,"Individual Price Controls"]
[null,"Note: For the first financial year (i.e. prices that are stated in the Tariff List), nbn has confirmed that the prices comply with the Individual Price Controls. For the second and third financial years in the Pricing Roadmap, nbn has assessed whether the prices are expected to comply with the Individual Price Controls based on forecasts of CPI and Forecast Average Combined Charges for Bundled TC-4 Offers."]
[]
[null,null,"Price Increase Limit"]
[null,"Individual Price Control Category",{"$f":"C13","v":"FY25"},"FY26","FY27"]
[null,"Entry level TC-4",{"$f":"HLOOKUP('Compliance Summary'!C13,'Price Control Inputs'!$C$10:$F$20,4,0)","v":4.1000000000000002E-2},{"$f":"HLOOKUP('Compliance Summary'!D13,'Price Control Inputs'!$C$10:$F$20,4,0)","v":3.2000000000000001E-2},{"$f":"HLOOKUP('Compliance Summary'!E13,'Price Control Inputs'!$C$10:$F$20,4,0)","v":2.8000000000000001E-2}]
[null,"Other fixed line and fixed wireless TC-4",{"$f":"MAX(C24,5%)","v":0.05},{"$f":"MAX(D24,5%)","v":0.05},0.05]
[null,"Satellite AVC TC-4",{"$f":"C24","v":4.1000000000000002E-2},{"$f":"D24","v":3.2000000000000001E-2},2.8000000000000001E-2]
[null,"Satellite CVC TC-4",0,0,0]
[]
[null,null,"Maximum Tariff Change (within each group)"]
[null,"Individual Price Control Category",{"$f":"C13","v":"FY25"},{"$f":"D13","v":"FY26"},{"$f":"E13","v":"FY27"}]
[null,"Entry level TC-4",{"$f":"_xlfn.MAXIFS('Price and Quantity'!K$11:K$291,'Price and Quantity'!$E$11:$E$291,'Compliance Summary'!$B31)","v":4.0791100123609425E-2},{"$f":"_xlfn.MAXIFS('Price and Quantity'!L$11:L$291,'Price and Quantity'!$E$11:$E$291,'Compliance Summary'!$B31)","v":3.1769596199525019E-2},{"$f":"_xlfn.MAXIFS('Price and Quantity'!M$11:M$291,'Price and Quantity'!$E$11:$E$291,'Compliance Summary'!$B31)","v":2.7625899280575572E-2}]
[null,"Other fixed line and fixed wireless TC-4",{"$f":"_xlfn.MAXIFS('Price and Quantity'!K$11:K$291,'Price and Quantity'!$E$11:$E$291,'Compliance Summary'!$B32)","v":4.9739921976592827E-2},{"$f":"_xlfn.MAXIFS('Price and Quantity'!L$11:L$291,'Price and Quantity'!$E$11:$E$291,'Compliance Summary'!$B32)","v":4.9550944564880739E-2},{"$f":"_xlfn.MAXIFS('Price and Quantity'!M$11:M$291,'Price and Quantity'!$E$11:$E$291,'Compliance Summary'!$B32)","v":4.9867217468279712E-2}]
[null,"Satellite AVC TC-4",{"$f":"_xlfn.MAXIFS('Price and Quantity'!K$11:K$291,'Price and Quantity'!$E$11:$E$291,'Compliance Summary'!$B33)","v":0},{"$f":"_xlfn.MAXIFS('Price and Quantity'!L$11:L$291,'Price and Quantity'!$E$11:$E$291,'Compliance Summary'!$B33)","v":0},{"$f":"_xlfn.MAXIFS('Price and Quantity'!M$11:M$291,'Price and Quantity'!$E$11:$E$291,'Compliance Summary'!$B33)","v":0}]
[null,"Satellite CVC TC-4",{"$f":"_xlfn.MAXIFS('Price and Quantity'!K$11:K$291,'Price and Quantity'!$E$11:$E$291,'Compliance Summary'!$B34)","v":0},{"$f":"_xlfn.MAXIFS('Price and Quantity'!L$11:L$291,'Price and Quantity'!$E$11:$E$291,'Compliance Summary'!$B34)","v":0},{"$f":"_xlfn.MAXIFS('Price and Quantity'!M$11:M$291,'Price and Quantity'!$E$11:$E$291,'Compliance Summary'!$B34)","v":0}]
[]
[]
[]
[null,"Individual Price Control Groups","WAPC Charge Components","NBN Co Network",{"$f":"C13","v":"FY25"},"FY26","FY27"]
[null,"Entry level TC-4",null,null,{"$f":"IF($C39=\"\",IF(VLOOKUP($B39,$B$31:$E$34,MATCH(E$38,$B$23:$E$23,0),0)<=VLOOKUP($B39,$B$24:$E$27,MATCH(E$38,$B$23:$E$23,0),0),\"Compliant\",\"Not Compliant\"),IF(INDEX('Price and Quantity'!$C$11:$M$291,MATCH($C39,'Price and Quantity'!$C$11:$C$291,0),MATCH(E$38,'Price and Quantity'!$C$10:$M$10,0))<=VLOOKUP($B39,$B$24:$E$27,MATCH(E$38,$B$23:$E$23,0),0),\"Compliant\",\"Not Compliant\"))","v":"Compliant"},{"$f":"IF($C39=\"\",IF(VLOOKUP($B39,$B$31:$E$34,MATCH(F$38,$B$23:$E$23,0),0)<=VLOOKUP($B39,$B$24:$E$27,MATCH(F$38,$B$23:$E$23,0),0),\"Compliant\",\"Not Compliant\"),IF(INDEX('Price and Quantity'!$C$11:$M$291,MATCH($C39,'Price and Quantity'!$C$11:$C$291,0),MATCH(F$38,'Price and Quantity'!$C$10:$M$10,0))<=VLOOKUP($B39,$B$24:$E$27,MATCH(F$38,$B$23:$E$23,0),0),\"Compliant\",\"Not Compliant\"))","v":"Compliant"},{"$f":"IF($C39=\"\",IF(VLOOKUP($B39,$B$31:$E$34,MATCH(G$38,$B$23:$E$23,0),0)<=VLOOKUP($B39,$B$24:$E$27,MATCH(G$38,$B$23:$E$23,0),0),\"Compliant\",\"Not Compliant\"),IF(INDEX('Price and Quantity'!$C$11:$M$291,MATCH($C39,'Price and Quantity'!$C$11:$C$291,0),MATCH(G$38,'Price and Quantity'!$C$10:$M$10,0))<=VLOOKUP($B39,$B$24:$E$27,MATCH(G$38,$B$23:$E$23,0),0),\"Compliant\",\"Not Compliant\"))","v":"Compliant"}]
[null,"Entry level TC-4","AVC TC-4 25/5 Mbps ","Fibre, FTTB, FTTN,FTTC,HFC and Wireless",{"$f":"IF($C40=\"\",IF(VLOOKUP($B40,$B$31:$E$34,MATCH(E$38,$B$23:$E$23,0),0)<=VLOOKUP($B40,$B$24:$E$27,MATCH(E$38,$B$23:$E$23,0),0),\"Compliant\",\"Not Compliant\"),IF(INDEX('Price and Quantity'!$C$11:$M$291,MATCH($C40,'Price and Quantity'!$C$11:$C$291,0),MATCH(E$38,'Price and Quantity'!$C$10:$M$10,0))<=VLOOKUP($B40,$B$24:$E$27,MATCH(E$38,$B$23:$E$23,0),0),\"Compliant\",\"Not Compliant\"))","v":"Compliant"},{"$f":"IF($C40=\"\",IF(VLOOKUP($B40,$B$31:$E$34,MATCH(F$38,$B$23:$E$23,0),0)<=VLOOKUP($B40,$B$24:$E$27,MATCH(F$38,$B$23:$E$23,0),0),\"Compliant\",\"Not Compliant\"),IF(INDEX('Price and Quantity'!$C$11:$M$291,MATCH($C40,'Price and Quantity'!$C$11:$C$291,0),MATCH(F$38,'Price and Quantity'!$C$10:$M$10,0))<=VLOOKUP($B40,$B$24:$E$27,MATCH(F$38,$B$23:$E$23,0),0),\"Compliant\",\"Not Compliant\"))","v":"Compliant"},{"$f":"IF($C40=\"\",IF(VLOOKUP($B40,$B$31:$E$34,MATCH(G$38,$B$23:$E$23,0),0)<=VLOOKUP($B40,$B$24:$E$27,MATCH(G$38,$B$23:$E$23,0),0),\"Compliant\",\"Not Compliant\"),IF(INDEX('Price and Quantity'!$C$11:$M$291,MATCH($C40,'Price and Quantity'!$C$11:$C$291,0),MATCH(G$38,'Price and Quantity'!$C$10:$M$10,0))<=VLOOKUP($B40,$B$24:$E$27,MATCH(G$38,$B$23:$E$23,0),0),\"Compliant\",\"Not Compliant\"))","v":"Compliant"}]
[]
[null,"Other fixed line and fixed wireless TC-4",null,null,{"$f":"IF($C42=\"\",IF(VLOOKUP($B42,$B$31:$E$34,MATCH(E$38,$B$23:$E$23,0),0)<=VLOOKUP($B42,$B$24:$E$27,MATCH(E$38,$B$23:$E$23,0),0),\"Compliant\",\"Not Compliant\"),IF(INDEX('Price and Quantity'!$C$11:$M$291,MATCH($C42,'Price and Quantity'!$C$11:$C$291,0),MATCH(E$38,'Price and Quantity'!$C$10:$M$10,0))<=VLOOKUP($B42,$B$24:$E$27,MATCH(E$38,$B$23:$E$23,0),0),\"Compliant\",\"Not Compliant\"))","v":"Compliant"},{"$f":"IF($C42=\"\",IF(VLOOKUP($B42,$B$31:$E$34,MATCH(F$38,$B$23:$E$23,0),0)<=VLOOKUP($B42,$B$24:$E$27,MATCH(F$38,$B$23:$E$23,0),0),\"Compliant\",\"Not Compliant\"),IF(INDEX('Price and Quantity'!$C$11:$M$291,MATCH($C42,'Price and Quantity'!$C$11:$C$291,0),MATCH(F$38,'Price and Quantity'!$C$10:$M$10,0))<=VLOOKUP($B42,$B$24:$E$27,MATCH(F$38,$B$23:$E$23,0),0),\"Compliant\",\"Not Compliant\"))","v":"Compliant"},{"$f":"IF($C42=\"\",IF(VLOOKUP($B42,$B$31:$E$34,MATCH(G$38,$B$23:$E$23,0),0)<=VLOOKUP($B42,$B$24:$E$27,MATCH(G$38,$B$23:$E$23,0),0),\"Compliant\",\"Not Compliant\"),IF(INDEX('Price and Quantity'!$C$11:$M$291,MATCH($C42,'Price and Quantity'!$C$11:$C$291,0),MATCH(G$38,'Price and Quantity'!$C$10:$M$10,0))<=VLOOKUP($B42,$B$24:$E$27,MATCH(G$38,$B$23:$E$23,0),0),\"Compliant\",\"Not Compliant\"))","v":"Compliant"}]
[null,"Other fixed line and fixed wireless TC-4","AVC TC-4 25-100/5-20 Mbps","FTTB and FTTN",{"$f":"IF($C43=\"\",IF(VLOOKUP($B43,$B$31:$E$34,MATCH(E$38,$B$23:$E$23,0),0)<=VLOOKUP($B43,$B$24:$E$27,MATCH(E$38,$B$23:$E$23,0),0),\"Compliant\",\"Not Compliant\"),IF(INDEX('Price and Quantity'!$C$11:$M$291,MATCH($C43,'Price and Quantity'!$C$11:$C$291,0),MATCH(E$38,'Price and Quantity'!$C$10:$M$10,0))<=VLOOKUP($B43,$B$24:$E$27,MATCH(E$38,$B$23:$E$23,0),0),\"Compliant\",\"Not Compliant\"))","v":"Compliant"},{"$f":"IF($C43=\"\",IF(VLOOKUP($B43,$B$31:$E$34,MATCH(F$38,$B$23:$E$23,0),0)<=VLOOKUP($B43,$B$24:$E$27,MATCH(F$38,$B$23:$E$23,0),0),\"Compliant\",\"Not Compliant\"),IF(INDEX('Price and Quantity'!$C$11:$M$291,MATCH($C43,'Price and Quantity'!$C$11:$C$291,0),MATCH(F$38,'Price and Quantity'!$C$10:$M$10,0))<=VLOOKUP($B43,$B$24:$E$27,MATCH(F$38,$B$23:$E$23,0),0),\"Compliant\",\"Not Compliant\"))","v":"Compliant"},{"$f":"IF($C43=\"\",IF(VLOOKUP($B43,$B$31:$E$34,MATCH(G$38,$B$23:$E$23,0),0)<=VLOOKUP($B43,$B$24:$E$27,MATCH(G$38,$B$23:$E$23,0),0),\"Compliant\",\"Not Compliant\"),IF(INDEX('Price and Quantity'!$C$11:$M$291,MATCH($C43,'Price and Quantity'!$C$11:$C$291,0),MATCH(G$38,'Price and Quantity'!$C$10:$M$10,0))<=VLOOKUP($B43,$B$24:$E$27,MATCH(G$38,$B$23:$E$23,0),0),\"Compliant\",\"Not Compliant\"))","v":"Compliant"}]
[null,"Other fixed line and fixed wireless TC-4","AVC TC-4 50-100/20 Mbps","FTTC",{"$f":"IF($C44=\"\",IF(VLOOKUP($B44,$B$31:$E$34,MATCH(E$38,$B$23:$E$23,0),0)<=VLOOKUP($B44,$B$24:$E$27,MATCH(E$38,$B$23:$E$23,0),0),\"Compliant\",\"Not Compliant\"),IF(INDEX('Price and Quantity'!$C$11:$M$291,MATCH($C44,'Price and Quantity'!$C$11:$C$291,0),MATCH(E$38,'Price and Quantity'!$C$10:$M$10,0))<=VLOOKUP($B44,$B$24:$E$27,MATCH(E$38,$B$23:$E$23,0),0),\"Compliant\",\"Not Compliant\"))","v":"Compliant"},{"$f":"IF($C44=\"\",IF(VLOOKUP($B44,$B$31:$E$34,MATCH(F$38,$B$23:$E$23,0),0)<=VLOOKUP($B44,$B$24:$E$27,MATCH(F$38,$B$23:$E$23,0),0),\"Compliant\",\"Not Compliant\"),IF(INDEX('Price and Quantity'!$C$11:$M$291,MATCH($C44,'Price and Quantity'!$C$11:$C$291,0),MATCH(F$38,'Price and Quantity'!$C$10:$M$10,0))<=VLOOKUP($B44,$B$24:$E$27,MATCH(F$38,$B$23:$E$23,0),0),\"Compliant\",\"Not Compliant\"))","v":"Compliant"},{"$f":"IF($C44=\"\",IF(VLOOKUP($B44,$B$31:$E$34,MATCH(G$38,$B$23:$E$23,0),0)<=VLOOKUP($B44,$B$24:$E$27,MATCH(G$38,$B$23:$E$23,0),0),\"Compliant\",\"Not Compliant\"),IF(INDEX('Price and Quantity'!$C$11:$M$291,MATCH($C44,'Price and Quantity'!$C$11:$C$291,0),MATCH(G$38,'Price and Quantity'!$C$10:$M$10,0))<=VLOOKUP($B44,$B$24:$E$27,MATCH(G$38,$B$23:$E$23,0),0),\"Compliant\",\"Not Compliant\"))","v":"Compliant"}]
[null,"Other fixed line and fixed wireless TC-4","AVC TC-4 200-250/8-20 Mbps","Wireless",{"$f":"IF($C45=\"\",IF(VLOOKUP($B45,$B$31:$E$34,MATCH(E$38,$B$23:$E$23,0),0)<=VLOOKUP($B45,$B$24:$E$27,MATCH(E$38,$B$23:$E$23,0),0),\"Compliant\",\"Not Compliant\"),IF(INDEX('Price and Quantity'!$C$11:$M$291,MATCH($C45,'Price and Quantity'!$C$11:$C$291,0),MATCH(E$38,'Price and Quantity'!$C$10:$M$10,0))<=VLOOKUP($B45,$B$24:$E$27,MATCH(E$38,$B$23:$E$23,0),0),\"Compliant\",\"Not Compliant\"))","v":"Compliant"},{"$f":"IF($C45=\"\",IF(VLOOKUP($B45,$B$31:$E$34,MATCH(F$38,$B$23:$E$23,0),0)<=VLOOKUP($B45,$B$24:$E$27,MATCH(F$38,$B$23:$E$23,0),0),\"Compliant\",\"Not Compliant\"),IF(INDEX('Price and Quantity'!$C$11:$M$291,MATCH($C45,'Price and Quantity'!$C$11:$C$291,0),MATCH(F$38,'Price and Quantity'!$C$10:$M$10,0))<=VLOOKUP($B45,$B$24:$E$27,MATCH(F$38,$B$23:$E$23,0),0),\"Compliant\",\"Not Compliant\"))","v":"Compliant"},{"$f":"IF($C45=\"\",IF(VLOOKUP($B45,$B$31:$E$34,MATCH(G$38,$B$23:$E$23,0),0)<=VLOOKUP($B45,$B$24:$E$27,MATCH(G$38,$B$23:$E$23,0),0),\"Compliant\",\"Not Compliant\"),IF(INDEX('Price and Quantity'!$C$11:$M$291,MATCH($C45,'Price and Quantity'!$C$11:$C$291,0),MATCH(G$38,'Price and Quantity'!$C$10:$M$10,0))<=VLOOKUP($B45,$B$24:$E$27,MATCH(G$38,$B$23:$E$23,0),0),\"Compliant\",\"Not Compliant\"))","v":"Compliant"}]
[null,"Other fixed line and fixed wireless TC-4","AVC TC-4 100/20 Mbps","Fibre and HFC",{"$f":"IF($C46=\"\",IF(VLOOKUP($B46,$B$31:$E$34,MATCH(E$38,$B$23:$E$23,0),0)<=VLOOKUP($B46,$B$24:$E$27,MATCH(E$38,$B$23:$E$23,0),0),\"Compliant\",\"Not Compliant\"),IF(INDEX('Price and Quantity'!$C$11:$M$291,MATCH($C46,'Price and Quantity'!$C$11:$C$291,0),MATCH(E$38,'Price and Quantity'!$C$10:$M$10,0))<=VLOOKUP($B46,$B$24:$E$27,MATCH(E$38,$B$23:$E$23,0),0),\"Compliant\",\"Not Compliant\"))","v":"Compliant"},{"$f":"IF($C46=\"\",IF(VLOOKUP($B46,$B$31:$E$34,MATCH(F$38,$B$23:$E$23,0),0)<=VLOOKUP($B46,$B$24:$E$27,MATCH(F$38,$B$23:$E$23,0),0),\"Compliant\",\"Not Compliant\"),IF(INDEX('Price and Quantity'!$C$11:$M$291,MATCH($C46,'Price and Quantity'!$C$11:$C$291,0),MATCH(F$38,'Price and Quantity'!$C$10:$M$10,0))<=VLOOKUP($B46,$B$24:$E$27,MATCH(F$38,$B$23:$E$23,0),0),\"Compliant\",\"Not Compliant\"))","v":"Compliant"},{"$f":"IF($C46=\"\",IF(VLOOKUP($B46,$B$31:$E$34,MATCH(G$38,$B$23:$E$23,0),0)<=VLOOKUP($B46,$B$24:$E$27,MATCH(G$38,$B$23:$E$23,0),0),\"Compliant\",\"Not Compliant\"),IF(INDEX('Price and Quantity'!$C$11:$M$291,MATCH($C46,'Price and Quantity'!$C$11:$C$291,0),MATCH(G$38,'Price and Quantity'!$C$10:$M$10,0))<=VLOOKUP($B46,$B$24:$E$27,MATCH(G$38,$B$23:$E$23,0),0),\"Compliant\",\"Not Compliant\"))","v":"Compliant"}]
[null,"Other fixed line and fixed wireless TC-4","AVC TC-4 25-100/5-40 Mbps","FTTB and FTTN",{"$f":"IF($C47=\"\",IF(VLOOKUP($B47,$B$31:$E$34,MATCH(E$38,$B$23:$E$23,0),0)<=VLOOKUP($B47,$B$24:$E$27,MATCH(E$38,$B$23:$E$23,0),0),\"Compliant\",\"Not Compliant\"),IF(INDEX('Price and Quantity'!$C$11:$M$291,MATCH($C47,'Price and Quantity'!$C$11:$C$291,0),MATCH(E$38,'Price and Quantity'!$C$10:$M$10,0))<=VLOOKUP($B47,$B$24:$E$27,MATCH(E$38,$B$23:$E$23,0),0),\"Compliant\",\"Not Compliant\"))","v":"Compliant"},{"$f":"IF($C47=\"\",IF(VLOOKUP($B47,$B$31:$E$34,MATCH(F$38,$B$23:$E$23,0),0)<=VLOOKUP($B47,$B$24:$E$27,MATCH(F$38,$B$23:$E$23,0),0),\"Compliant\",\"Not Compliant\"),IF(INDEX('Price and Quantity'!$C$11:$M$291,MATCH($C47,'Price and Quantity'!$C$11:$C$291,0),MATCH(F$38,'Price and Quantity'!$C$10:$M$10,0))<=VLOOKUP($B47,$B$24:$E$27,MATCH(F$38,$B$23:$E$23,0),0),\"Compliant\",\"Not Compliant\"))","v":"Compliant"},{"$f":"IF($C47=\"\",IF(VLOOKUP($B47,$B$31:$E$34,MATCH(G$38,$B$23:$E$23,0),0)<=VLOOKUP($B47,$B$24:$E$27,MATCH(G$38,$B$23:$E$23,0),0),\"Compliant\",\"Not Compliant\"),IF(INDEX('Price and Quantity'!$C$11:$M$291,MATCH($C47,'Price and Quantity'!$C$11:$C$291,0),MATCH(G$38,'Price and Quantity'!$C$10:$M$10,0))<=VLOOKUP($B47,$B$24:$E$27,MATCH(G$38,$B$23:$E$23,0),0),\"Compliant\",\"Not Compliant\"))","v":"Compliant"}]
[null,"Other fixed line and fixed wireless TC-4","AVC TC-4 50-100/20-40 Mbps","FTTC",{"$f":"IF($C48=\"\",IF(VLOOKUP($B48,$B$31:$E$34,MATCH(E$38,$B$23:$E$23,0),0)<=VLOOKUP($B48,$B$24:$E$27,MATCH(E$38,$B$23:$E$23,0),0),\"Compliant\",\"Not Compliant\"),IF(INDEX('Price and Quantity'!$C$11:$M$291,MATCH($C48,'Price and Quantity'!$C$11:$C$291,0),MATCH(E$38,'Price and Quantity'!$C$10:$M$10,0))<=VLOOKUP($B48,$B$24:$E$27,MATCH(E$38,$B$23:$E$23,0),0),\"Compliant\",\"Not Compliant\"))","v":"Compliant"},{"$f":"IF($C48=\"\",IF(VLOOKUP($B48,$B$31:$E$34,MATCH(F$38,$B$23:$E$23,0),0)<=VLOOKUP($B48,$B$24:$E$27,MATCH(F$38,$B$23:$E$23,0),0),\"Compliant\",\"Not Compliant\"),IF(INDEX('Price and Quantity'!$C$11:$M$291,MATCH($C48,'Price and Quantity'!$C$11:$C$291,0),MATCH(F$38,'Price and Quantity'!$C$10:$M$10,0))<=VLOOKUP($B48,$B$24:$E$27,MATCH(F$38,$B$23:$E$23,0),0),\"Compliant\",\"Not Compliant\"))","v":"Compliant"},{"$f":"IF($C48=\"\",IF(VLOOKUP($B48,$B$31:$E$34,MATCH(G$38,$B$23:$E$23,0),0)<=VLOOKUP($B48,$B$24:$E$27,MATCH(G$38,$B$23:$E$23,0),0),\"Compliant\",\"Not Compliant\"),IF(INDEX('Price and Quantity'!$C$11:$M$291,MATCH($C48,'Price and Quantity'!$C$11:$C$291,0),MATCH(G$38,'Price and Quantity'!$C$10:$M$10,0))<=VLOOKUP($B48,$B$24:$E$27,MATCH(G$38,$B$23:$E$23,0),0),\"Compliant\",\"Not Compliant\"))","v":"Compliant"}]
[null,"Other fixed line and fixed wireless TC-4","AVC TC-4 100/40 Mbps","Fibre and HFC",{"$f":"IF($C49=\"\",IF(VLOOKUP($B49,$B$31:$E$34,MATCH(E$38,$B$23:$E$23,0),0)<=VLOOKUP($B49,$B$24:$E$27,MATCH(E$38,$B$23:$E$23,0),0),\"Compliant\",\"Not Compliant\"),IF(INDEX('Price and Quantity'!$C$11:$M$291,MATCH($C49,'Price and Quantity'!$C$11:$C$291,0),MATCH(E$38,'Price and Quantity'!$C$10:$M$10,0))<=VLOOKUP($B49,$B$24:$E$27,MATCH(E$38,$B$23:$E$23,0),0),\"Compliant\",\"Not Compliant\"))","v":"Compliant"},{"$f":"IF($C49=\"\",IF(VLOOKUP($B49,$B$31:$E$34,MATCH(F$38,$B$23:$E$23,0),0)<=VLOOKUP($B49,$B$24:$E$27,MATCH(F$38,$B$23:$E$23,0),0),\"Compliant\",\"Not Compliant\"),IF(INDEX('Price and Quantity'!$C$11:$M$291,MATCH($C49,'Price and Quantity'!$C$11:$C$291,0),MATCH(F$38,'Price and Quantity'!$C$10:$M$10,0))<=VLOOKUP($B49,$B$24:$E$27,MATCH(F$38,$B$23:$E$23,0),0),\"Compliant\",\"Not Compliant\"))","v":"Compliant"},{"$f":"IF($C49=\"\",IF(VLOOKUP($B49,$B$31:$E$34,MATCH(G$38,$B$23:$E$23,0),0)<=VLOOKUP($B49,$B$24:$E$27,MATCH(G$38,$B$23:$E$23,0),0),\"Compliant\",\"Not Compliant\"),IF(INDEX('Price and Quantity'!$C$11:$M$291,MATCH($C49,'Price and Quantity'!$C$11:$C$291,0),MATCH(G$38,'Price and Quantity'!$C$10:$M$10,0))<=VLOOKUP($B49,$B$24:$E$27,MATCH(G$38,$B$23:$E$23,0),0),\"Compliant\",\"Not Compliant\"))","v":"Compliant"}]
[null,"Other fixed line and fixed wireless TC-4","AVC TC-4 400/10-40 Mbps","Wireless",{"$f":"IF($C50=\"\",IF(VLOOKUP($B50,$B$31:$E$34,MATCH(E$38,$B$23:$E$23,0),0)<=VLOOKUP($B50,$B$24:$E$27,MATCH(E$38,$B$23:$E$23,0),0),\"Compliant\",\"Not Compliant\"),IF(INDEX('Price and Quantity'!$C$11:$M$291,MATCH($C50,'Price and Quantity'!$C$11:$C$291,0),MATCH(E$38,'Price and Quantity'!$C$10:$M$10,0))<=VLOOKUP($B50,$B$24:$E$27,MATCH(E$38,$B$23:$E$23,0),0),\"Compliant\",\"Not Compliant\"))","v":"Compliant"},{"$f":"IF($C50=\"\",IF(VLOOKUP($B50,$B$31:$E$34,MATCH(F$38,$B$23:$E$23,0),0)<=VLOOKUP($B50,$B$24:$E$27,MATCH(F$38,$B$23:$E$23,0),0),\"Compliant\",\"Not Compliant\"),IF(INDEX('Price and Quantity'!$C$11:$M$291,MATCH($C50,'Price and Quantity'!$C$11:$C$291,0),MATCH(F$38,'Price and Quantity'!$C$10:$M$10,0))<=VLOOKUP($B50,$B$24:$E$27,MATCH(F$38,$B$23:$E$23,0),0),\"Compliant\",\"Not Compliant\"))","v":"Compliant"},{"$f":"IF($C50=\"\",IF(VLOOKUP($B50,$B$31:$E$34,MATCH(G$38,$B$23:$E$23,0),0)<=VLOOKUP($B50,$B$24:$E$27,MATCH(G$38,$B$23:$E$23,0),0),\"Compliant\",\"Not Compliant\"),IF(INDEX('Price and Quantity'!$C$11:$M$291,MATCH($C50,'Price and Quantity'!$C$11:$C$291,0),MATCH(G$38,'Price and Quantity'!$C$10:$M$10,0))<=VLOOKUP($B50,$B$24:$E$27,MATCH(G$38,$B$23:$E$23,0),0),\"Compliant\",\"Not Compliant\"))","v":"Compliant"}]
[null,"Other fixed line and fixed wireless TC-4","AVC TC-4 250/25 Mbps","Fibre and HFC",{"$f":"IF($C51=\"\",IF(VLOOKUP($B51,$B$31:$E$34,MATCH(E$38,$B$23:$E$23,0),0)<=VLOOKUP($B51,$B$24:$E$27,MATCH(E$38,$B$23:$E$23,0),0),\"Compliant\",\"Not Compliant\"),IF(INDEX('Price and Quantity'!$C$11:$M$291,MATCH($C51,'Price and Quantity'!$C$11:$C$291,0),MATCH(E$38,'Price and Quantity'!$C$10:$M$10,0))<=VLOOKUP($B51,$B$24:$E$27,MATCH(E$38,$B$23:$E$23,0),0),\"Compliant\",\"Not Compliant\"))","v":"Compliant"},{"$f":"IF($C51=\"\",IF(VLOOKUP($B51,$B$31:$E$34,MATCH(F$38,$B$23:$E$23,0),0)<=VLOOKUP($B51,$B$24:$E$27,MATCH(F$38,$B$23:$E$23,0),0),\"Compliant\",\"Not Compliant\"),IF(INDEX('Price and Quantity'!$C$11:$M$291,MATCH($C51,'Price and Quantity'!$C$11:$C$291,0),MATCH(F$38,'Price and Quantity'!$C$10:$M$10,0))<=VLOOKUP($B51,$B$24:$E$27,MATCH(F$38,$B$23:$E$23,0),0),\"Compliant\",\"Not Compliant\"))","v":"Compliant"},{"$f":"IF($C51=\"\",IF(VLOOKUP($B51,$B$31:$E$34,MATCH(G$38,$B$23:$E$23,0),0)<=VLOOKUP($B51,$B$24:$E$27,MATCH(G$38,$B$23:$E$23,0),0),\"Compliant\",\"Not Compliant\"),IF(INDEX('Price and Quantity'!$C$11:$M$291,MATCH($C51,'Price and Quantity'!$C$11:$C$291,0),MATCH(G$38,'Price and Quantity'!$C$10:$M$10,0))<=VLOOKUP($B51,$B$24:$E$27,MATCH(G$38,$B$23:$E$23,0),0),\"Compliant\",\"Not Compliant\"))","v":"Compliant"}]
[null,"Other fixed line and fixed wireless TC-4","AVC TC-4 250/100 Mbps","Fibre",{"$f":"IF($C52=\"\",IF(VLOOKUP($B52,$B$31:$E$34,MATCH(E$38,$B$23:$E$23,0),0)<=VLOOKUP($B52,$B$24:$E$27,MATCH(E$38,$B$23:$E$23,0),0),\"Compliant\",\"Not Compliant\"),IF(INDEX('Price and Quantity'!$C$11:$M$291,MATCH($C52,'Price and Quantity'!$C$11:$C$291,0),MATCH(E$38,'Price and Quantity'!$C$10:$M$10,0))<=VLOOKUP($B52,$B$24:$E$27,MATCH(E$38,$B$23:$E$23,0),0),\"Compliant\",\"Not Compliant\"))","v":"Compliant"},{"$f":"IF($C52=\"\",IF(VLOOKUP($B52,$B$31:$E$34,MATCH(F$38,$B$23:$E$23,0),0)<=VLOOKUP($B52,$B$24:$E$27,MATCH(F$38,$B$23:$E$23,0),0),\"Compliant\",\"Not Compliant\"),IF(INDEX('Price and Quantity'!$C$11:$M$291,MATCH($C52,'Price and Quantity'!$C$11:$C$291,0),MATCH(F$38,'Price and Quantity'!$C$10:$M$10,0))<=VLOOKUP($B52,$B$24:$E$27,MATCH(F$38,$B$23:$E$23,0),0),\"Compliant\",\"Not Compliant\"))","v":"Compliant"},{"$f":"IF($C52=\"\",IF(VLOOKUP($B52,$B$31:$E$34,MATCH(G$38,$B$23:$E$23,0),0)<=VLOOKUP($B52,$B$24:$E$27,MATCH(G$38,$B$23:$E$23,0),0),\"Compliant\",\"Not Compliant\"),IF(INDEX('Price and Quantity'!$C$11:$M$291,MATCH($C52,'Price and Quantity'!$C$11:$C$291,0),MATCH(G$38,'Price and Quantity'!$C$10:$M$10,0))<=VLOOKUP($B52,$B$24:$E$27,MATCH(G$38,$B$23:$E$23,0),0),\"Compliant\",\"Not Compliant\"))","v":"Compliant"}]
[null,"Other fixed line and fixed wireless TC-4","AVC TC-4 500/200 Mbps","Fibre",{"$f":"IF($C53=\"\",IF(VLOOKUP($B53,$B$31:$E$34,MATCH(E$38,$B$23:$E$23,0),0)<=VLOOKUP($B53,$B$24:$E$27,MATCH(E$38,$B$23:$E$23,0),0),\"Compliant\",\"Not Compliant\"),IF(INDEX('Price and Quantity'!$C$11:$M$291,MATCH($C53,'Price and Quantity'!$C$11:$C$291,0),MATCH(E$38,'Price and Quantity'!$C$10:$M$10,0))<=VLOOKUP($B53,$B$24:$E$27,MATCH(E$38,$B$23:$E$23,0),0),\"Compliant\",\"Not Compliant\"))","v":"Compliant"},{"$f":"IF($C53=\"\",IF(VLOOKUP($B53,$B$31:$E$34,MATCH(F$38,$B$23:$E$23,0),0)<=VLOOKUP($B53,$B$24:$E$27,MATCH(F$38,$B$23:$E$23,0),0),\"Compliant\",\"Not Compliant\"),IF(INDEX('Price and Quantity'!$C$11:$M$291,MATCH($C53,'Price and Quantity'!$C$11:$C$291,0),MATCH(F$38,'Price and Quantity'!$C$10:$M$10,0))<=VLOOKUP($B53,$B$24:$E$27,MATCH(F$38,$B$23:$E$23,0),0),\"Compliant\",\"Not Compliant\"))","v":"Compliant"},{"$f":"IF($C53=\"\",IF(VLOOKUP($B53,$B$31:$E$34,MATCH(G$38,$B$23:$E$23,0),0)<=VLOOKUP($B53,$B$24:$E$27,MATCH(G$38,$B$23:$E$23,0),0),\"Compliant\",\"Not Compliant\"),IF(INDEX('Price and Quantity'!$C$11:$M$291,MATCH($C53,'Price and Quantity'!$C$11:$C$291,0),MATCH(G$38,'Price and Quantity'!$C$10:$M$10,0))<=VLOOKUP($B53,$B$24:$E$27,MATCH(G$38,$B$23:$E$23,0),0),\"Compliant\",\"Not Compliant\"))","v":"Compliant"}]
[null,"Other fixed line and fixed wireless TC-4","AVC TC-4 1000/50 Mbps","Fibre and HFC",{"$f":"IF($C54=\"\",IF(VLOOKUP($B54,$B$31:$E$34,MATCH(E$38,$B$23:$E$23,0),0)<=VLOOKUP($B54,$B$24:$E$27,MATCH(E$38,$B$23:$E$23,0),0),\"Compliant\",\"Not Compliant\"),IF(INDEX('Price and Quantity'!$C$11:$M$291,MATCH($C54,'Price and Quantity'!$C$11:$C$291,0),MATCH(E$38,'Price and Quantity'!$C$10:$M$10,0))<=VLOOKUP($B54,$B$24:$E$27,MATCH(E$38,$B$23:$E$23,0),0),\"Compliant\",\"Not Compliant\"))","v":"Compliant"},{"$f":"IF($C54=\"\",IF(VLOOKUP($B54,$B$31:$E$34,MATCH(F$38,$B$23:$E$23,0),0)<=VLOOKUP($B54,$B$24:$E$27,MATCH(F$38,$B$23:$E$23,0),0),\"Compliant\",\"Not Compliant\"),IF(INDEX('Price and Quantity'!$C$11:$M$291,MATCH($C54,'Price and Quantity'!$C$11:$C$291,0),MATCH(F$38,'Price and Quantity'!$C$10:$M$10,0))<=VLOOKUP($B54,$B$24:$E$27,MATCH(F$38,$B$23:$E$23,0),0),\"Compliant\",\"Not Compliant\"))","v":"Compliant"},{"$f":"IF($C54=\"\",IF(VLOOKUP($B54,$B$31:$E$34,MATCH(G$38,$B$23:$E$23,0),0)<=VLOOKUP($B54,$B$24:$E$27,MATCH(G$38,$B$23:$E$23,0),0),\"Compliant\",\"Not Compliant\"),IF(INDEX('Price and Quantity'!$C$11:$M$291,MATCH($C54,'Price and Quantity'!$C$11:$C$291,0),MATCH(G$38,'Price and Quantity'!$C$10:$M$10,0))<=VLOOKUP($B54,$B$24:$E$27,MATCH(G$38,$B$23:$E$23,0),0),\"Compliant\",\"Not Compliant\"))","v":"Compliant"}]
[null,"Other fixed line and fixed wireless TC-4","AVC TC-4 1000/400 Mbps ","Fibre",{"$f":"IF($C55=\"\",IF(VLOOKUP($B55,$B$31:$E$34,MATCH(E$38,$B$23:$E$23,0),0)<=VLOOKUP($B55,$B$24:$E$27,MATCH(E$38,$B$23:$E$23,0),0),\"Compliant\",\"Not Compliant\"),IF(INDEX('Price and Quantity'!$C$11:$M$291,MATCH($C55,'Price and Quantity'!$C$11:$C$291,0),MATCH(E$38,'Price and Quantity'!$C$10:$M$10,0))<=VLOOKUP($B55,$B$24:$E$27,MATCH(E$38,$B$23:$E$23,0),0),\"Compliant\",\"Not Compliant\"))","v":"Compliant"},{"$f":"IF($C55=\"\",IF(VLOOKUP($B55,$B$31:$E$34,MATCH(F$38,$B$23:$E$23,0),0)<=VLOOKUP($B55,$B$24:$E$27,MATCH(F$38,$B$23:$E$23,0),0),\"Compliant\",\"Not Compliant\"),IF(INDEX('Price and Quantity'!$C$11:$M$291,MATCH($C55,'Price and Quantity'!$C$11:$C$291,0),MATCH(F$38,'Price and Quantity'!$C$10:$M$10,0))<=VLOOKUP($B55,$B$24:$E$27,MATCH(F$38,$B$23:$E$23,0),0),\"Compliant\",\"Not Compliant\"))","v":"Compliant"},{"$f":"IF($C55=\"\",IF(VLOOKUP($B55,$B$31:$E$34,MATCH(G$38,$B$23:$E$23,0),0)<=VLOOKUP($B55,$B$24:$E$27,MATCH(G$38,$B$23:$E$23,0),0),\"Compliant\",\"Not Compliant\"),IF(INDEX('Price and Quantity'!$C$11:$M$291,MATCH($C55,'Price and Quantity'!$C$11:$C$291,0),MATCH(G$38,'Price and Quantity'!$C$10:$M$10,0))<=VLOOKUP($B55,$B$24:$E$27,MATCH(G$38,$B$23:$E$23,0),0),\"Compliant\",\"Not Compliant\"))","v":"Compliant"}]
[null,"Other fixed line and fixed wireless TC-4","Smart Places - AVC TC-4 100/40 Mbps","Fibre",{"$f":"IF($C56=\"\",IF(VLOOKUP($B56,$B$31:$E$34,MATCH(E$38,$B$23:$E$23,0),0)<=VLOOKUP($B56,$B$24:$E$27,MATCH(E$38,$B$23:$E$23,0),0),\"Compliant\",\"Not Compliant\"),IF(INDEX('Price and Quantity'!$C$11:$M$291,MATCH($C56,'Price and Quantity'!$C$11:$C$291,0),MATCH(E$38,'Price and Quantity'!$C$10:$M$10,0))<=VLOOKUP($B56,$B$24:$E$27,MATCH(E$38,$B$23:$E$23,0),0),\"Compliant\",\"Not Compliant\"))","v":"Compliant"},{"$f":"IF($C56=\"\",IF(VLOOKUP($B56,$B$31:$E$34,MATCH(F$38,$B$23:$E$23,0),0)<=VLOOKUP($B56,$B$24:$E$27,MATCH(F$38,$B$23:$E$23,0),0),\"Compliant\",\"Not Compliant\"),IF(INDEX('Price and Quantity'!$C$11:$M$291,MATCH($C56,'Price and Quantity'!$C$11:$C$291,0),MATCH(F$38,'Price and Quantity'!$C$10:$M$10,0))<=VLOOKUP($B56,$B$24:$E$27,MATCH(F$38,$B$23:$E$23,0),0),\"Compliant\",\"Not Compliant\"))","v":"Compliant"},{"$f":"IF($C56=\"\",IF(VLOOKUP($B56,$B$31:$E$34,MATCH(G$38,$B$23:$E$23,0),0)<=VLOOKUP($B56,$B$24:$E$27,MATCH(G$38,$B$23:$E$23,0),0),\"Compliant\",\"Not Compliant\"),IF(INDEX('Price and Quantity'!$C$11:$M$291,MATCH($C56,'Price and Quantity'!$C$11:$C$291,0),MATCH(G$38,'Price and Quantity'!$C$10:$M$10,0))<=VLOOKUP($B56,$B$24:$E$27,MATCH(G$38,$B$23:$E$23,0),0),\"Compliant\",\"Not Compliant\"))","v":"Compliant"}]
[null,"Other fixed line and fixed wireless TC-4","Smart Places - AVC TC-4 250/100 Mbps","Fibre",{"$f":"IF($C57=\"\",IF(VLOOKUP($B57,$B$31:$E$34,MATCH(E$38,$B$23:$E$23,0),0)<=VLOOKUP($B57,$B$24:$E$27,MATCH(E$38,$B$23:$E$23,0),0),\"Compliant\",\"Not Compliant\"),IF(INDEX('Price and Quantity'!$C$11:$M$291,MATCH($C57,'Price and Quantity'!$C$11:$C$291,0),MATCH(E$38,'Price and Quantity'!$C$10:$M$10,0))<=VLOOKUP($B57,$B$24:$E$27,MATCH(E$38,$B$23:$E$23,0),0),\"Compliant\",\"Not Compliant\"))","v":"Compliant"},{"$f":"IF($C57=\"\",IF(VLOOKUP($B57,$B$31:$E$34,MATCH(F$38,$B$23:$E$23,0),0)<=VLOOKUP($B57,$B$24:$E$27,MATCH(F$38,$B$23:$E$23,0),0),\"Compliant\",\"Not Compliant\"),IF(INDEX('Price and Quantity'!$C$11:$M$291,MATCH($C57,'Price and Quantity'!$C$11:$C$291,0),MATCH(F$38,'Price and Quantity'!$C$10:$M$10,0))<=VLOOKUP($B57,$B$24:$E$27,MATCH(F$38,$B$23:$E$23,0),0),\"Compliant\",\"Not Compliant\"))","v":"Compliant"},{"$f":"IF($C57=\"\",IF(VLOOKUP($B57,$B$31:$E$34,MATCH(G$38,$B$23:$E$23,0),0)<=VLOOKUP($B57,$B$24:$E$27,MATCH(G$38,$B$23:$E$23,0),0),\"Compliant\",\"Not Compliant\"),IF(INDEX('Price and Quantity'!$C$11:$M$291,MATCH($C57,'Price and Quantity'!$C$11:$C$291,0),MATCH(G$38,'Price and Quantity'!$C$10:$M$10,0))<=VLOOKUP($B57,$B$24:$E$27,MATCH(G$38,$B$23:$E$23,0),0),\"Compliant\",\"Not Compliant\"))","v":"Compliant"}]
[null,"Other fixed line and fixed wireless TC-4","Smart Places - AVC TC-4 500/200 Mbps","Fibre",{"$f":"IF($C58=\"\",IF(VLOOKUP($B58,$B$31:$E$34,MATCH(E$38,$B$23:$E$23,0),0)<=VLOOKUP($B58,$B$24:$E$27,MATCH(E$38,$B$23:$E$23,0),0),\"Compliant\",\"Not Compliant\"),IF(INDEX('Price and Quantity'!$C$11:$M$291,MATCH($C58,'Price and Quantity'!$C$11:$C$291,0),MATCH(E$38,'Price and Quantity'!$C$10:$M$10,0))<=VLOOKUP($B58,$B$24:$E$27,MATCH(E$38,$B$23:$E$23,0),0),\"Compliant\",\"Not Compliant\"))","v":"Compliant"},{"$f":"IF($C58=\"\",IF(VLOOKUP($B58,$B$31:$E$34,MATCH(F$38,$B$23:$E$23,0),0)<=VLOOKUP($B58,$B$24:$E$27,MATCH(F$38,$B$23:$E$23,0),0),\"Compliant\",\"Not Compliant\"),IF(INDEX('Price and Quantity'!$C$11:$M$291,MATCH($C58,'Price and Quantity'!$C$11:$C$291,0),MATCH(F$38,'Price and Quantity'!$C$10:$M$10,0))<=VLOOKUP($B58,$B$24:$E$27,MATCH(F$38,$B$23:$E$23,0),0),\"Compliant\",\"Not Compliant\"))","v":"Compliant"},{"$f":"IF($C58=\"\",IF(VLOOKUP($B58,$B$31:$E$34,MATCH(G$38,$B$23:$E$23,0),0)<=VLOOKUP($B58,$B$24:$E$27,MATCH(G$38,$B$23:$E$23,0),0),\"Compliant\",\"Not Compliant\"),IF(INDEX('Price and Quantity'!$C$11:$M$291,MATCH($C58,'Price and Quantity'!$C$11:$C$291,0),MATCH(G$38,'Price and Quantity'!$C$10:$M$10,0))<=VLOOKUP($B58,$B$24:$E$27,MATCH(G$38,$B$23:$E$23,0),0),\"Compliant\",\"Not Compliant\"))","v":"Compliant"}]
[null,"Other fixed line and fixed wireless TC-4","Smart Places - AVC TC-4 1000/400 Mbps ","Fibre",{"$f":"IF($C59=\"\",IF(VLOOKUP($B59,$B$31:$E$34,MATCH(E$38,$B$23:$E$23,0),0)<=VLOOKUP($B59,$B$24:$E$27,MATCH(E$38,$B$23:$E$23,0),0),\"Compliant\",\"Not Compliant\"),IF(INDEX('Price and Quantity'!$C$11:$M$291,MATCH($C59,'Price and Quantity'!$C$11:$C$291,0),MATCH(E$38,'Price and Quantity'!$C$10:$M$10,0))<=VLOOKUP($B59,$B$24:$E$27,MATCH(E$38,$B$23:$E$23,0),0),\"Compliant\",\"Not Compliant\"))","v":"Compliant"},{"$f":"IF($C59=\"\",IF(VLOOKUP($B59,$B$31:$E$34,MATCH(F$38,$B$23:$E$23,0),0)<=VLOOKUP($B59,$B$24:$E$27,MATCH(F$38,$B$23:$E$23,0),0),\"Compliant\",\"Not Compliant\"),IF(INDEX('Price and Quantity'!$C$11:$M$291,MATCH($C59,'Price and Quantity'!$C$11:$C$291,0),MATCH(F$38,'Price and Quantity'!$C$10:$M$10,0))<=VLOOKUP($B59,$B$24:$E$27,MATCH(F$38,$B$23:$E$23,0),0),\"Compliant\",\"Not Compliant\"))","v":"Compliant"},{"$f":"IF($C59=\"\",IF(VLOOKUP($B59,$B$31:$E$34,MATCH(G$38,$B$23:$E$23,0),0)<=VLOOKUP($B59,$B$24:$E$27,MATCH(G$38,$B$23:$E$23,0),0),\"Compliant\",\"Not Compliant\"),IF(INDEX('Price and Quantity'!$C$11:$M$291,MATCH($C59,'Price and Quantity'!$C$11:$C$291,0),MATCH(G$38,'Price and Quantity'!$C$10:$M$10,0))<=VLOOKUP($B59,$B$24:$E$27,MATCH(G$38,$B$23:$E$23,0),0),\"Compliant\",\"Not Compliant\"))","v":"Compliant"}]
[null,"Other fixed line and fixed wireless TC-4","AVC TC-4 12/1 (Basic Bundled Offer)","Fibre, FTTB, FTTN, FTTC, HFC",{"$f":"IF($C60=\"\",IF(VLOOKUP($B60,$B$31:$E$34,MATCH(E$38,$B$23:$E$23,0),0)<=VLOOKUP($B60,$B$24:$E$27,MATCH(E$38,$B$23:$E$23,0),0),\"Compliant\",\"Not Compliant\"),IF(INDEX('Price and Quantity'!$C$11:$M$291,MATCH($C60,'Price and Quantity'!$C$11:$C$291,0),MATCH(E$38,'Price and Quantity'!$C$10:$M$10,0))<=VLOOKUP($B60,$B$24:$E$27,MATCH(E$38,$B$23:$E$23,0),0),\"Compliant\",\"Not Compliant\"))","v":"Compliant"},{"$f":"IF($C60=\"\",IF(VLOOKUP($B60,$B$31:$E$34,MATCH(F$38,$B$23:$E$23,0),0)<=VLOOKUP($B60,$B$24:$E$27,MATCH(F$38,$B$23:$E$23,0),0),\"Compliant\",\"Not Compliant\"),IF(INDEX('Price and Quantity'!$C$11:$M$291,MATCH($C60,'Price and Quantity'!$C$11:$C$291,0),MATCH(F$38,'Price and Quantity'!$C$10:$M$10,0))<=VLOOKUP($B60,$B$24:$E$27,MATCH(F$38,$B$23:$E$23,0),0),\"Compliant\",\"Not Compliant\"))","v":"Compliant"},{"$f":"IF($C60=\"\",IF(VLOOKUP($B60,$B$31:$E$34,MATCH(G$38,$B$23:$E$23,0),0)<=VLOOKUP($B60,$B$24:$E$27,MATCH(G$38,$B$23:$E$23,0),0),\"Compliant\",\"Not Compliant\"),IF(INDEX('Price and Quantity'!$C$11:$M$291,MATCH($C60,'Price and Quantity'!$C$11:$C$291,0),MATCH(G$38,'Price and Quantity'!$C$10:$M$10,0))<=VLOOKUP($B60,$B$24:$E$27,MATCH(G$38,$B$23:$E$23,0),0),\"Compliant\",\"Not Compliant\"))","v":"Compliant"}]
[null,"Other fixed line and fixed wireless TC-4","AVC TC-4 12/1 Mbps ","Fibre, FTTB, FTTN, FTTC, HFC and Wireless",{"$f":"IF($C61=\"\",IF(VLOOKUP($B61,$B$31:$E$34,MATCH(E$38,$B$23:$E$23,0),0)<=VLOOKUP($B61,$B$24:$E$27,MATCH(E$38,$B$23:$E$23,0),0),\"Compliant\",\"Not Compliant\"),IF(INDEX('Price and Quantity'!$C$11:$M$291,MATCH($C61,'Price and Quantity'!$C$11:$C$291,0),MATCH(E$38,'Price and Quantity'!$C$10:$M$10,0))<=VLOOKUP($B61,$B$24:$E$27,MATCH(E$38,$B$23:$E$23,0),0),\"Compliant\",\"Not Compliant\"))","v":"Compliant"},{"$f":"IF($C61=\"\",IF(VLOOKUP($B61,$B$31:$E$34,MATCH(F$38,$B$23:$E$23,0),0)<=VLOOKUP($B61,$B$24:$E$27,MATCH(F$38,$B$23:$E$23,0),0),\"Compliant\",\"Not Compliant\"),IF(INDEX('Price and Quantity'!$C$11:$M$291,MATCH($C61,'Price and Quantity'!$C$11:$C$291,0),MATCH(F$38,'Price and Quantity'!$C$10:$M$10,0))<=VLOOKUP($B61,$B$24:$E$27,MATCH(F$38,$B$23:$E$23,0),0),\"Compliant\",\"Not Compliant\"))","v":"Compliant"},{"$f":"IF($C61=\"\",IF(VLOOKUP($B61,$B$31:$E$34,MATCH(G$38,$B$23:$E$23,0),0)<=VLOOKUP($B61,$B$24:$E$27,MATCH(G$38,$B$23:$E$23,0),0),\"Compliant\",\"Not Compliant\"),IF(INDEX('Price and Quantity'!$C$11:$M$291,MATCH($C61,'Price and Quantity'!$C$11:$C$291,0),MATCH(G$38,'Price and Quantity'!$C$10:$M$10,0))<=VLOOKUP($B61,$B$24:$E$27,MATCH(G$38,$B$23:$E$23,0),0),\"Compliant\",\"Not Compliant\"))","v":"Compliant"}]
[null,"Other fixed line and fixed wireless TC-4","AVC TC-4 25-50/5-20 Mbps ","FTTB,FTTN",{"$f":"IF($C62=\"\",IF(VLOOKUP($B62,$B$31:$E$34,MATCH(E$38,$B$23:$E$23,0),0)<=VLOOKUP($B62,$B$24:$E$27,MATCH(E$38,$B$23:$E$23,0),0),\"Compliant\",\"Not Compliant\"),IF(INDEX('Price and Quantity'!$C$11:$M$291,MATCH($C62,'Price and Quantity'!$C$11:$C$291,0),MATCH(E$38,'Price and Quantity'!$C$10:$M$10,0))<=VLOOKUP($B62,$B$24:$E$27,MATCH(E$38,$B$23:$E$23,0),0),\"Compliant\",\"Not Compliant\"))","v":"Compliant"},{"$f":"IF($C62=\"\",IF(VLOOKUP($B62,$B$31:$E$34,MATCH(F$38,$B$23:$E$23,0),0)<=VLOOKUP($B62,$B$24:$E$27,MATCH(F$38,$B$23:$E$23,0),0),\"Compliant\",\"Not Compliant\"),IF(INDEX('Price and Quantity'!$C$11:$M$291,MATCH($C62,'Price and Quantity'!$C$11:$C$291,0),MATCH(F$38,'Price and Quantity'!$C$10:$M$10,0))<=VLOOKUP($B62,$B$24:$E$27,MATCH(F$38,$B$23:$E$23,0),0),\"Compliant\",\"Not Compliant\"))","v":"Compliant"},{"$f":"IF($C62=\"\",IF(VLOOKUP($B62,$B$31:$E$34,MATCH(G$38,$B$23:$E$23,0),0)<=VLOOKUP($B62,$B$24:$E$27,MATCH(G$38,$B$23:$E$23,0),0),\"Compliant\",\"Not Compliant\"),IF(INDEX('Price and Quantity'!$C$11:$M$291,MATCH($C62,'Price and Quantity'!$C$11:$C$291,0),MATCH(G$38,'Price and Quantity'!$C$10:$M$10,0))<=VLOOKUP($B62,$B$24:$E$27,MATCH(G$38,$B$23:$E$23,0),0),\"Compliant\",\"Not Compliant\"))","v":"Compliant"}]
[null,"Other fixed line and fixed wireless TC-4","AVC TC-4 50/20 Mbps ","Fibre, FTTC, HFC",{"$f":"IF($C63=\"\",IF(VLOOKUP($B63,$B$31:$E$34,MATCH(E$38,$B$23:$E$23,0),0)<=VLOOKUP($B63,$B$24:$E$27,MATCH(E$38,$B$23:$E$23,0),0),\"Compliant\",\"Not Compliant\"),IF(INDEX('Price and Quantity'!$C$11:$M$291,MATCH($C63,'Price and Quantity'!$C$11:$C$291,0),MATCH(E$38,'Price and Quantity'!$C$10:$M$10,0))<=VLOOKUP($B63,$B$24:$E$27,MATCH(E$38,$B$23:$E$23,0),0),\"Compliant\",\"Not Compliant\"))","v":"Compliant"},{"$f":"IF($C63=\"\",IF(VLOOKUP($B63,$B$31:$E$34,MATCH(F$38,$B$23:$E$23,0),0)<=VLOOKUP($B63,$B$24:$E$27,MATCH(F$38,$B$23:$E$23,0),0),\"Compliant\",\"Not Compliant\"),IF(INDEX('Price and Quantity'!$C$11:$M$291,MATCH($C63,'Price and Quantity'!$C$11:$C$291,0),MATCH(F$38,'Price and Quantity'!$C$10:$M$10,0))<=VLOOKUP($B63,$B$24:$E$27,MATCH(F$38,$B$23:$E$23,0),0),\"Compliant\",\"Not Compliant\"))","v":"Compliant"},{"$f":"IF($C63=\"\",IF(VLOOKUP($B63,$B$31:$E$34,MATCH(G$38,$B$23:$E$23,0),0)<=VLOOKUP($B63,$B$24:$E$27,MATCH(G$38,$B$23:$E$23,0),0),\"Compliant\",\"Not Compliant\"),IF(INDEX('Price and Quantity'!$C$11:$M$291,MATCH($C63,'Price and Quantity'!$C$11:$C$291,0),MATCH(G$38,'Price and Quantity'!$C$10:$M$10,0))<=VLOOKUP($B63,$B$24:$E$27,MATCH(G$38,$B$23:$E$23,0),0),\"Compliant\",\"Not Compliant\"))","v":"Compliant"}]
[null,"Other fixed line and fixed wireless TC-4","AVC TC-4 up to 100/up to 20 Mbps ","Wireless",{"$f":"IF($C64=\"\",IF(VLOOKUP($B64,$B$31:$E$34,MATCH(E$38,$B$23:$E$23,0),0)<=VLOOKUP($B64,$B$24:$E$27,MATCH(E$38,$B$23:$E$23,0),0),\"Compliant\",\"Not Compliant\"),IF(INDEX('Price and Quantity'!$C$11:$M$291,MATCH($C64,'Price and Quantity'!$C$11:$C$291,0),MATCH(E$38,'Price and Quantity'!$C$10:$M$10,0))<=VLOOKUP($B64,$B$24:$E$27,MATCH(E$38,$B$23:$E$23,0),0),\"Compliant\",\"Not Compliant\"))","v":"Compliant"},{"$f":"IF($C64=\"\",IF(VLOOKUP($B64,$B$31:$E$34,MATCH(F$38,$B$23:$E$23,0),0)<=VLOOKUP($B64,$B$24:$E$27,MATCH(F$38,$B$23:$E$23,0),0),\"Compliant\",\"Not Compliant\"),IF(INDEX('Price and Quantity'!$C$11:$M$291,MATCH($C64,'Price and Quantity'!$C$11:$C$291,0),MATCH(F$38,'Price and Quantity'!$C$10:$M$10,0))<=VLOOKUP($B64,$B$24:$E$27,MATCH(F$38,$B$23:$E$23,0),0),\"Compliant\",\"Not Compliant\"))","v":"Compliant"},{"$f":"IF($C64=\"\",IF(VLOOKUP($B64,$B$31:$E$34,MATCH(G$38,$B$23:$E$23,0),0)<=VLOOKUP($B64,$B$24:$E$27,MATCH(G$38,$B$23:$E$23,0),0),\"Compliant\",\"Not Compliant\"),IF(INDEX('Price and Quantity'!$C$11:$M$291,MATCH($C64,'Price and Quantity'!$C$11:$C$291,0),MATCH(G$38,'Price and Quantity'!$C$10:$M$10,0))<=VLOOKUP($B64,$B$24:$E$27,MATCH(G$38,$B$23:$E$23,0),0),\"Compliant\",\"Not Compliant\"))","v":"Compliant"}]
[null,"Other fixed line and fixed wireless TC-4","Smart Places - AVC TC-4 25/10 Mbps ","Fibre",{"$f":"IF($C65=\"\",IF(VLOOKUP($B65,$B$31:$E$34,MATCH(E$38,$B$23:$E$23,0),0)<=VLOOKUP($B65,$B$24:$E$27,MATCH(E$38,$B$23:$E$23,0),0),\"Compliant\",\"Not Compliant\"),IF(INDEX('Price and Quantity'!$C$11:$M$291,MATCH($C65,'Price and Quantity'!$C$11:$C$291,0),MATCH(E$38,'Price and Quantity'!$C$10:$M$10,0))<=VLOOKUP($B65,$B$24:$E$27,MATCH(E$38,$B$23:$E$23,0),0),\"Compliant\",\"Not Compliant\"))","v":"Compliant"},{"$f":"IF($C65=\"\",IF(VLOOKUP($B65,$B$31:$E$34,MATCH(F$38,$B$23:$E$23,0),0)<=VLOOKUP($B65,$B$24:$E$27,MATCH(F$38,$B$23:$E$23,0),0),\"Compliant\",\"Not Compliant\"),IF(INDEX('Price and Quantity'!$C$11:$M$291,MATCH($C65,'Price and Quantity'!$C$11:$C$291,0),MATCH(F$38,'Price and Quantity'!$C$10:$M$10,0))<=VLOOKUP($B65,$B$24:$E$27,MATCH(F$38,$B$23:$E$23,0),0),\"Compliant\",\"Not Compliant\"))","v":"Compliant"},{"$f":"IF($C65=\"\",IF(VLOOKUP($B65,$B$31:$E$34,MATCH(G$38,$B$23:$E$23,0),0)<=VLOOKUP($B65,$B$24:$E$27,MATCH(G$38,$B$23:$E$23,0),0),\"Compliant\",\"Not Compliant\"),IF(INDEX('Price and Quantity'!$C$11:$M$291,MATCH($C65,'Price and Quantity'!$C$11:$C$291,0),MATCH(G$38,'Price and Quantity'!$C$10:$M$10,0))<=VLOOKUP($B65,$B$24:$E$27,MATCH(G$38,$B$23:$E$23,0),0),\"Compliant\",\"Not Compliant\"))","v":"Compliant"}]
[null,"Other fixed line and fixed wireless TC-4","Smart Places - AVC TC-4 50/20 Mbps ","Fibre",{"$f":"IF($C66=\"\",IF(VLOOKUP($B66,$B$31:$E$34,MATCH(E$38,$B$23:$E$23,0),0)<=VLOOKUP($B66,$B$24:$E$27,MATCH(E$38,$B$23:$E$23,0),0),\"Compliant\",\"Not Compliant\"),IF(INDEX('Price and Quantity'!$C$11:$M$291,MATCH($C66,'Price and Quantity'!$C$11:$C$291,0),MATCH(E$38,'Price and Quantity'!$C$10:$M$10,0))<=VLOOKUP($B66,$B$24:$E$27,MATCH(E$38,$B$23:$E$23,0),0),\"Compliant\",\"Not Compliant\"))","v":"Compliant"},{"$f":"IF($C66=\"\",IF(VLOOKUP($B66,$B$31:$E$34,MATCH(F$38,$B$23:$E$23,0),0)<=VLOOKUP($B66,$B$24:$E$27,MATCH(F$38,$B$23:$E$23,0),0),\"Compliant\",\"Not Compliant\"),IF(INDEX('Price and Quantity'!$C$11:$M$291,MATCH($C66,'Price and Quantity'!$C$11:$C$291,0),MATCH(F$38,'Price and Quantity'!$C$10:$M$10,0))<=VLOOKUP($B66,$B$24:$E$27,MATCH(F$38,$B$23:$E$23,0),0),\"Compliant\",\"Not Compliant\"))","v":"Compliant"},{"$f":"IF($C66=\"\",IF(VLOOKUP($B66,$B$31:$E$34,MATCH(G$38,$B$23:$E$23,0),0)<=VLOOKUP($B66,$B$24:$E$27,MATCH(G$38,$B$23:$E$23,0),0),\"Compliant\",\"Not Compliant\"),IF(INDEX('Price and Quantity'!$C$11:$M$291,MATCH($C66,'Price and Quantity'!$C$11:$C$291,0),MATCH(G$38,'Price and Quantity'!$C$10:$M$10,0))<=VLOOKUP($B66,$B$24:$E$27,MATCH(G$38,$B$23:$E$23,0),0),\"Compliant\",\"Not Compliant\"))","v":"Compliant"}]
[null,"Other fixed line and fixed wireless TC-4","AVC TC-4 25/5-10 Mbps ","FTTB,FTTN",{"$f":"IF($C67=\"\",IF(VLOOKUP($B67,$B$31:$E$34,MATCH(E$38,$B$23:$E$23,0),0)<=VLOOKUP($B67,$B$24:$E$27,MATCH(E$38,$B$23:$E$23,0),0),\"Compliant\",\"Not Compliant\"),IF(INDEX('Price and Quantity'!$C$11:$M$291,MATCH($C67,'Price and Quantity'!$C$11:$C$291,0),MATCH(E$38,'Price and Quantity'!$C$10:$M$10,0))<=VLOOKUP($B67,$B$24:$E$27,MATCH(E$38,$B$23:$E$23,0),0),\"Compliant\",\"Not Compliant\"))","v":"Compliant"},{"$f":"IF($C67=\"\",IF(VLOOKUP($B67,$B$31:$E$34,MATCH(F$38,$B$23:$E$23,0),0)<=VLOOKUP($B67,$B$24:$E$27,MATCH(F$38,$B$23:$E$23,0),0),\"Compliant\",\"Not Compliant\"),IF(INDEX('Price and Quantity'!$C$11:$M$291,MATCH($C67,'Price and Quantity'!$C$11:$C$291,0),MATCH(F$38,'Price and Quantity'!$C$10:$M$10,0))<=VLOOKUP($B67,$B$24:$E$27,MATCH(F$38,$B$23:$E$23,0),0),\"Compliant\",\"Not Compliant\"))","v":"Compliant"},{"$f":"IF($C67=\"\",IF(VLOOKUP($B67,$B$31:$E$34,MATCH(G$38,$B$23:$E$23,0),0)<=VLOOKUP($B67,$B$24:$E$27,MATCH(G$38,$B$23:$E$23,0),0),\"Compliant\",\"Not Compliant\"),IF(INDEX('Price and Quantity'!$C$11:$M$291,MATCH($C67,'Price and Quantity'!$C$11:$C$291,0),MATCH(G$38,'Price and Quantity'!$C$10:$M$10,0))<=VLOOKUP($B67,$B$24:$E$27,MATCH(G$38,$B$23:$E$23,0),0),\"Compliant\",\"Not Compliant\"))","v":"Compliant"}]
[null,"Other fixed line and fixed wireless TC-4","AVC TC-4 25/10 Mbps ","Fibre, FTTC, HFC",{"$f":"IF($C68=\"\",IF(VLOOKUP($B68,$B$31:$E$34,MATCH(E$38,$B$23:$E$23,0),0)<=VLOOKUP($B68,$B$24:$E$27,MATCH(E$38,$B$23:$E$23,0),0),\"Compliant\",\"Not Compliant\"),IF(INDEX('Price and Quantity'!$C$11:$M$291,MATCH($C68,'Price and Quantity'!$C$11:$C$291,0),MATCH(E$38,'Price and Quantity'!$C$10:$M$10,0))<=VLOOKUP($B68,$B$24:$E$27,MATCH(E$38,$B$23:$E$23,0),0),\"Compliant\",\"Not Compliant\"))","v":"Compliant"},{"$f":"IF($C68=\"\",IF(VLOOKUP($B68,$B$31:$E$34,MATCH(F$38,$B$23:$E$23,0),0)<=VLOOKUP($B68,$B$24:$E$27,MATCH(F$38,$B$23:$E$23,0),0),\"Compliant\",\"Not Compliant\"),IF(INDEX('Price and Quantity'!$C$11:$M$291,MATCH($C68,'Price and Quantity'!$C$11:$C$291,0),MATCH(F$38,'Price and Quantity'!$C$10:$M$10,0))<=VLOOKUP($B68,$B$24:$E$27,MATCH(F$38,$B$23:$E$23,0),0),\"Compliant\",\"Not Compliant\"))","v":"Compliant"},{"$f":"IF($C68=\"\",IF(VLOOKUP($B68,$B$31:$E$34,MATCH(G$38,$B$23:$E$23,0),0)<=VLOOKUP($B68,$B$24:$E$27,MATCH(G$38,$B$23:$E$23,0),0),\"Compliant\",\"Not Compliant\"),IF(INDEX('Price and Quantity'!$C$11:$M$291,MATCH($C68,'Price and Quantity'!$C$11:$C$291,0),MATCH(G$38,'Price and Quantity'!$C$10:$M$10,0))<=VLOOKUP($B68,$B$24:$E$27,MATCH(G$38,$B$23:$E$23,0),0),\"Compliant\",\"Not Compliant\"))","v":"Compliant"}]
[]
[null,"Satellite AVC TC-4",null,null,{"$f":"IF($C70=\"\",IF(VLOOKUP($B70,$B$31:$E$34,MATCH(E$38,$B$23:$E$23,0),0)<=VLOOKUP($B70,$B$24:$E$27,MATCH(E$38,$B$23:$E$23,0),0),\"Compliant\",\"Not Compliant\"),IF(INDEX('Price and Quantity'!$C$11:$M$291,MATCH($C70,'Price and Quantity'!$C$11:$C$291,0),MATCH(E$38,'Price and Quantity'!$C$10:$M$10,0))<=VLOOKUP($B70,$B$24:$E$27,MATCH(E$38,$B$23:$E$23,0),0),\"Compliant\",\"Not Compliant\"))","v":"Compliant"},{"$f":"IF($C70=\"\",IF(VLOOKUP($B70,$B$31:$E$34,MATCH(F$38,$B$23:$E$23,0),0)<=VLOOKUP($B70,$B$24:$E$27,MATCH(F$38,$B$23:$E$23,0),0),\"Compliant\",\"Not Compliant\"),IF(INDEX('Price and Quantity'!$C$11:$M$291,MATCH($C70,'Price and Quantity'!$C$11:$C$291,0),MATCH(F$38,'Price and Quantity'!$C$10:$M$10,0))<=VLOOKUP($B70,$B$24:$E$27,MATCH(F$38,$B$23:$E$23,0),0),\"Compliant\",\"Not Compliant\"))","v":"Compliant"},{"$f":"IF($C70=\"\",IF(VLOOKUP($B70,$B$31:$E$34,MATCH(G$38,$B$23:$E$23,0),0)<=VLOOKUP($B70,$B$24:$E$27,MATCH(G$38,$B$23:$E$23,0),0),\"Compliant\",\"Not Compliant\"),IF(INDEX('Price and Quantity'!$C$11:$M$291,MATCH($C70,'Price and Quantity'!$C$11:$C$291,0),MATCH(G$38,'Price and Quantity'!$C$10:$M$10,0))<=VLOOKUP($B70,$B$24:$E$27,MATCH(G$38,$B$23:$E$23,0),0),\"Compliant\",\"Not Compliant\"))","v":"Compliant"}]
[null,"Satellite AVC TC-4","AVC TC-4 12/1 Mbps","Satellite",{"$f":"IF($C71=\"\",IF(VLOOKUP($B71,$B$31:$E$34,MATCH(E$38,$B$23:$E$23,0),0)<=VLOOKUP($B71,$B$24:$E$27,MATCH(E$38,$B$23:$E$23,0),0),\"Compliant\",\"Not Compliant\"),IF(INDEX('Price and Quantity'!$C$11:$M$291,MATCH($C71,'Price and Quantity'!$C$11:$C$291,0),MATCH(E$38,'Price and Quantity'!$C$10:$M$10,0))<=VLOOKUP($B71,$B$24:$E$27,MATCH(E$38,$B$23:$E$23,0),0),\"Compliant\",\"Not Compliant\"))","v":"Compliant"},{"$f":"IF($C71=\"\",IF(VLOOKUP($B71,$B$31:$E$34,MATCH(F$38,$B$23:$E$23,0),0)<=VLOOKUP($B71,$B$24:$E$27,MATCH(F$38,$B$23:$E$23,0),0),\"Compliant\",\"Not Compliant\"),IF(INDEX('Price and Quantity'!$C$11:$M$291,MATCH($C71,'Price and Quantity'!$C$11:$C$291,0),MATCH(F$38,'Price and Quantity'!$C$10:$M$10,0))<=VLOOKUP($B71,$B$24:$E$27,MATCH(F$38,$B$23:$E$23,0),0),\"Compliant\",\"Not Compliant\"))","v":"Compliant"},{"$f":"IF($C71=\"\",IF(VLOOKUP($B71,$B$31:$E$34,MATCH(G$38,$B$23:$E$23,0),0)<=VLOOKUP($B71,$B$24:$E$27,MATCH(G$38,$B$23:$E$23,0),0),\"Compliant\",\"Not Compliant\"),IF(INDEX('Price and Quantity'!$C$11:$M$291,MATCH($C71,'Price and Quantity'!$C$11:$C$291,0),MATCH(G$38,'Price and Quantity'!$C$10:$M$10,0))<=VLOOKUP($B71,$B$24:$E$27,MATCH(G$38,$B$23:$E$23,0),0),\"Compliant\",\"Not Compliant\"))","v":"Compliant"}]
[null,"Satellite AVC TC-4","AVC TC-4 25/5 Mbps","Satellite",{"$f":"IF($C72=\"\",IF(VLOOKUP($B72,$B$31:$E$34,MATCH(E$38,$B$23:$E$23,0),0)<=VLOOKUP($B72,$B$24:$E$27,MATCH(E$38,$B$23:$E$23,0),0),\"Compliant\",\"Not Compliant\"),IF(INDEX('Price and Quantity'!$C$11:$M$291,MATCH($C72,'Price and Quantity'!$C$11:$C$291,0),MATCH(E$38,'Price and Quantity'!$C$10:$M$10,0))<=VLOOKUP($B72,$B$24:$E$27,MATCH(E$38,$B$23:$E$23,0),0),\"Compliant\",\"Not Compliant\"))","v":"Compliant"},{"$f":"IF($C72=\"\",IF(VLOOKUP($B72,$B$31:$E$34,MATCH(F$38,$B$23:$E$23,0),0)<=VLOOKUP($B72,$B$24:$E$27,MATCH(F$38,$B$23:$E$23,0),0),\"Compliant\",\"Not Compliant\"),IF(INDEX('Price and Quantity'!$C$11:$M$291,MATCH($C72,'Price and Quantity'!$C$11:$C$291,0),MATCH(F$38,'Price and Quantity'!$C$10:$M$10,0))<=VLOOKUP($B72,$B$24:$E$27,MATCH(F$38,$B$23:$E$23,0),0),\"Compliant\",\"Not Compliant\"))","v":"Compliant"},{"$f":"IF($C72=\"\",IF(VLOOKUP($B72,$B$31:$E$34,MATCH(G$38,$B$23:$E$23,0),0)<=VLOOKUP($B72,$B$24:$E$27,MATCH(G$38,$B$23:$E$23,0),0),\"Compliant\",\"Not Compliant\"),IF(INDEX('Price and Quantity'!$C$11:$M$291,MATCH($C72,'Price and Quantity'!$C$11:$C$291,0),MATCH(G$38,'Price and Quantity'!$C$10:$M$10,0))<=VLOOKUP($B72,$B$24:$E$27,MATCH(G$38,$B$23:$E$23,0),0),\"Compliant\",\"Not Compliant\"))","v":"Compliant"}]
[]
[null,"Satellite CVC TC-4",null,null,{"$f":"IF($C74=\"\",IF(VLOOKUP($B74,$B$31:$E$34,MATCH(E$38,$B$23:$E$23,0),0)<=VLOOKUP($B74,$B$24:$E$27,MATCH(E$38,$B$23:$E$23,0),0),\"Compliant\",\"Not Compliant\"),IF(INDEX('Price and Quantity'!$C$11:$M$291,MATCH($C74,'Price and Quantity'!$C$11:$C$291,0),MATCH(E$38,'Price and Quantity'!$C$10:$M$10,0))<=VLOOKUP($B74,$B$24:$E$27,MATCH(E$38,$B$23:$E$23,0),0),\"Compliant\",\"Not Compliant\"))","v":"Compliant"},{"$f":"IF($C74=\"\",IF(VLOOKUP($B74,$B$31:$E$34,MATCH(F$38,$B$23:$E$23,0),0)<=VLOOKUP($B74,$B$24:$E$27,MATCH(F$38,$B$23:$E$23,0),0),\"Compliant\",\"Not Compliant\"),IF(INDEX('Price and Quantity'!$C$11:$M$291,MATCH($C74,'Price and Quantity'!$C$11:$C$291,0),MATCH(F$38,'Price and Quantity'!$C$10:$M$10,0))<=VLOOKUP($B74,$B$24:$E$27,MATCH(F$38,$B$23:$E$23,0),0),\"Compliant\",\"Not Compliant\"))","v":"Compliant"},{"$f":"IF($C74=\"\",IF(VLOOKUP($B74,$B$31:$E$34,MATCH(G$38,$B$23:$E$23,0),0)<=VLOOKUP($B74,$B$24:$E$27,MATCH(G$38,$B$23:$E$23,0),0),\"Compliant\",\"Not Compliant\"),IF(INDEX('Price and Quantity'!$C$11:$M$291,MATCH($C74,'Price and Quantity'!$C$11:$C$291,0),MATCH(G$38,'Price and Quantity'!$C$10:$M$10,0))<=VLOOKUP($B74,$B$24:$E$27,MATCH(G$38,$B$23:$E$23,0),0),\"Compliant\",\"Not Compliant\"))","v":"Compliant"}]
[null,"Satellite CVC TC-4","CVC TC-4 (Satellite)","Satellite",{"$f":"IF($C75=\"\",IF(VLOOKUP($B75,$B$31:$E$34,MATCH(E$38,$B$23:$E$23,0),0)<=VLOOKUP($B75,$B$24:$E$27,MATCH(E$38,$B$23:$E$23,0),0),\"Compliant\",\"Not Compliant\"),IF(INDEX('Price and Quantity'!$C$11:$M$291,MATCH($C75,'Price and Quantity'!$C$11:$C$291,0),MATCH(E$38,'Price and Quantity'!$C$10:$M$10,0))<=VLOOKUP($B75,$B$24:$E$27,MATCH(E$38,$B$23:$E$23,0),0),\"Compliant\",\"Not Compliant\"))","v":"Compliant"},{"$f":"IF($C75=\"\",IF(VLOOKUP($B75,$B$31:$E$34,MATCH(F$38,$B$23:$E$23,0),0)<=VLOOKUP($B75,$B$24:$E$27,MATCH(F$38,$B$23:$E$23,0),0),\"Compliant\",\"Not Compliant\"),IF(INDEX('Price and Quantity'!$C$11:$M$291,MATCH($C75,'Price and Quantity'!$C$11:$C$291,0),MATCH(F$38,'Price and Quantity'!$C$10:$M$10,0))<=VLOOKUP($B75,$B$24:$E$27,MATCH(F$38,$B$23:$E$23,0),0),\"Compliant\",\"Not Compliant\"))","v":"Compliant"},{"$f":"IF($C75=\"\",IF(VLOOKUP($B75,$B$31:$E$34,MATCH(G$38,$B$23:$E$23,0),0)<=VLOOKUP($B75,$B$24:$E$27,MATCH(G$38,$B$23:$E$23,0),0),\"Compliant\",\"Not Compliant\"),IF(INDEX('Price and Quantity'!$C$11:$M$291,MATCH($C75,'Price and Quantity'!$C$11:$C$291,0),MATCH(G$38,'Price and Quantity'!$C$10:$M$10,0))<=VLOOKUP($B75,$B$24:$E$27,MATCH(G$38,$B$23:$E$23,0),0),\"Compliant\",\"Not Compliant\"))","v":"Compliant"}]
[null,"Satellite CVC TC-4","CVC Class 0","Satellite",{"$f":"IF($C76=\"\",IF(VLOOKUP($B76,$B$31:$E$34,MATCH(E$38,$B$23:$E$23,0),0)<=VLOOKUP($B76,$B$24:$E$27,MATCH(E$38,$B$23:$E$23,0),0),\"Compliant\",\"Not Compliant\"),IF(INDEX('Price and Quantity'!$C$11:$M$291,MATCH($C76,'Price and Quantity'!$C$11:$C$291,0),MATCH(E$38,'Price and Quantity'!$C$10:$M$10,0))<=VLOOKUP($B76,$B$24:$E$27,MATCH(E$38,$B$23:$E$23,0),0),\"Compliant\",\"Not Compliant\"))","v":"Compliant"},{"$f":"IF($C76=\"\",IF(VLOOKUP($B76,$B$31:$E$34,MATCH(F$38,$B$23:$E$23,0),0)<=VLOOKUP($B76,$B$24:$E$27,MATCH(F$38,$B$23:$E$23,0),0),\"Compliant\",\"Not Compliant\"),IF(INDEX('Price and Quantity'!$C$11:$M$291,MATCH($C76,'Price and Quantity'!$C$11:$C$291,0),MATCH(F$38,'Price and Quantity'!$C$10:$M$10,0))<=VLOOKUP($B76,$B$24:$E$27,MATCH(F$38,$B$23:$E$23,0),0),\"Compliant\",\"Not Compliant\"))","v":"Compliant"},{"$f":"IF($C76=\"\",IF(VLOOKUP($B76,$B$31:$E$34,MATCH(G$38,$B$23:$E$23,0),0)<=VLOOKUP($B76,$B$24:$E$27,MATCH(G$38,$B$23:$E$23,0),0),\"Compliant\",\"Not Compliant\"),IF(INDEX('Price and Quantity'!$C$11:$M$291,MATCH($C76,'Price and Quantity'!$C$11:$C$291,0),MATCH(G$38,'Price and Quantity'!$C$10:$M$10,0))<=VLOOKUP($B76,$B$24:$E$27,MATCH(G$38,$B$23:$E$23,0),0),\"Compliant\",\"Not Compliant\"))","v":"Compliant"}]
[null,"Satellite CVC TC-4","CVC Class 1","Satellite",{"$f":"IF($C77=\"\",IF(VLOOKUP($B77,$B$31:$E$34,MATCH(E$38,$B$23:$E$23,0),0)<=VLOOKUP($B77,$B$24:$E$27,MATCH(E$38,$B$23:$E$23,0),0),\"Compliant\",\"Not Compliant\"),IF(INDEX('Price and Quantity'!$C$11:$M$291,MATCH($C77,'Price and Quantity'!$C$11:$C$291,0),MATCH(E$38,'Price and Quantity'!$C$10:$M$10,0))<=VLOOKUP($B77,$B$24:$E$27,MATCH(E$38,$B$23:$E$23,0),0),\"Compliant\",\"Not Compliant\"))","v":"Compliant"},{"$f":"IF($C77=\"\",IF(VLOOKUP($B77,$B$31:$E$34,MATCH(F$38,$B$23:$E$23,0),0)<=VLOOKUP($B77,$B$24:$E$27,MATCH(F$38,$B$23:$E$23,0),0),\"Compliant\",\"Not Compliant\"),IF(INDEX('Price and Quantity'!$C$11:$M$291,MATCH($C77,'Price and Quantity'!$C$11:$C$291,0),MATCH(F$38,'Price and Quantity'!$C$10:$M$10,0))<=VLOOKUP($B77,$B$24:$E$27,MATCH(F$38,$B$23:$E$23,0),0),\"Compliant\",\"Not Compliant\"))","v":"Compliant"},{"$f":"IF($C77=\"\",IF(VLOOKUP($B77,$B$31:$E$34,MATCH(G$38,$B$23:$E$23,0),0)<=VLOOKUP($B77,$B$24:$E$27,MATCH(G$38,$B$23:$E$23,0),0),\"Compliant\",\"Not Compliant\"),IF(INDEX('Price and Quantity'!$C$11:$M$291,MATCH($C77,'Price and Quantity'!$C$11:$C$291,0),MATCH(G$38,'Price and Quantity'!$C$10:$M$10,0))<=VLOOKUP($B77,$B$24:$E$27,MATCH(G$38,$B$23:$E$23,0),0),\"Compliant\",\"Not Compliant\"))","v":"Compliant"}]
[null,"Satellite CVC TC-4","CVC Class 2","Satellite",{"$f":"IF($C78=\"\",IF(VLOOKUP($B78,$B$31:$E$34,MATCH(E$38,$B$23:$E$23,0),0)<=VLOOKUP($B78,$B$24:$E$27,MATCH(E$38,$B$23:$E$23,0),0),\"Compliant\",\"Not Compliant\"),IF(INDEX('Price and Quantity'!$C$11:$M$291,MATCH($C78,'Price and Quantity'!$C$11:$C$291,0),MATCH(E$38,'Price and Quantity'!$C$10:$M$10,0))<=VLOOKUP($B78,$B$24:$E$27,MATCH(E$38,$B$23:$E$23,0),0),\"Compliant\",\"Not Compliant\"))","v":"Compliant"},{"$f":"IF($C78=\"\",IF(VLOOKUP($B78,$B$31:$E$34,MATCH(F$38,$B$23:$E$23,0),0)<=VLOOKUP($B78,$B$24:$E$27,MATCH(F$38,$B$23:$E$23,0),0),\"Compliant\",\"Not Compliant\"),IF(INDEX('Price and Quantity'!$C$11:$M$291,MATCH($C78,'Price and Quantity'!$C$11:$C$291,0),MATCH(F$38,'Price and Quantity'!$C$10:$M$10,0))<=VLOOKUP($B78,$B$24:$E$27,MATCH(F$38,$B$23:$E$23,0),0),\"Compliant\",\"Not Compliant\"))","v":"Compliant"},{"$f":"IF($C78=\"\",IF(VLOOKUP($B78,$B$31:$E$34,MATCH(G$38,$B$23:$E$23,0),0)<=VLOOKUP($B78,$B$24:$E$27,MATCH(G$38,$B$23:$E$23,0),0),\"Compliant\",\"Not Compliant\"),IF(INDEX('Price and Quantity'!$C$11:$M$291,MATCH($C78,'Price and Quantity'!$C$11:$C$291,0),MATCH(G$38,'Price and Quantity'!$C$10:$M$10,0))<=VLOOKUP($B78,$B$24:$E$27,MATCH(G$38,$B$23:$E$23,0),0),\"Compliant\",\"Not Compliant\"))","v":"Compliant"}]
[]
[]
[null,"TC-4 Price Relativity Restriction (FY25 prices)"]
[null,"Note:  The reference to 'Year 2 indicative prices in Roadmap t-1' is to the indicative FY25 prices included in Year 2 of the Pricing Roadmap FY24-FY26 published by nbn in November 2023."]
[]
[null,"TC-4 Price Relativity Restriction (FY25 prices)"]
[null,null,"Minimum price difference","Maximum price difference","Price difference delta"]
[null,null,{"$f":"MIN(F91:F119)","v":0},{"$f":"MAX(F91:F119)","v":0.26999999999999602},{"$f":"D86-C86","v":0.26999999999999602},{"$f":"IF(AND(E86<=1,E86>=-1),\"Compliant\", \"Not Compliant\")","v":"Compliant"}]
[]
[]
[]
[null,{"$f":"'Price and Quantity'!B10","v":"Table references"},{"$f":"'Price and Quantity'!C10","v":"WAPC Charge Component"},"Year 2 indicative prices in Roadmap t-1","FY25 Tariff list","Price difference"]
[null,"1.1\t  Flat-Rate Offers","AVC TC-4 25-100/5-20 Mbps",{"$f":"_xlfn.XLOOKUP(C91,'Prior Year Inputs FY24'!$C$11:$C$31,'Prior Year Inputs FY24'!$F$11:$F$31,D92,0)","v":57.22},{"$f":"_xlfn.XLOOKUP(C91,'Price and Quantity'!$C$11:$C$291,'Price and Quantity'!$G$11:$G$291,\"n/a\",0)","v":57.22},{"$f":"E91-D91","v":0}]
[null,"1.1\t  Flat-Rate Offers","AVC TC-4 50-100/20 Mbps",{"$f":"_xlfn.XLOOKUP(C92,'Prior Year Inputs FY24'!$C$11:$C$31,'Prior Year Inputs FY24'!$F$11:$F$31,D93,0)","v":57.22},{"$f":"_xlfn.XLOOKUP(C92,'Price and Quantity'!$C$11:$C$291,'Price and Quantity'!$G$11:$G$291,\"n/a\",0)","v":57.22},{"$f":"E92-D92","v":0}]
[null,"1.1\t  Flat-Rate Offers","AVC TC-4 200-250/8-20 Mbps",{"$f":"_xlfn.XLOOKUP(C93,'Prior Year Inputs FY24'!$C$11:$C$31,'Prior Year Inputs FY24'!$F$11:$F$31,D94,0)","v":57.22},{"$f":"_xlfn.XLOOKUP(C93,'Price and Quantity'!$C$11:$C$291,'Price and Quantity'!$G$11:$G$291,\"n/a\",0)","v":57.22},0]
[null,"1.1\t  Flat-Rate Offers","AVC TC-4 100/20 Mbps",{"$f":"_xlfn.XLOOKUP(C94,'Prior Year Inputs FY24'!$C$11:$C$31,'Prior Year Inputs FY24'!$F$11:$F$31,D95,0)","v":57.22},{"$f":"_xlfn.XLOOKUP(C94,'Price and Quantity'!$C$11:$C$291,'Price and Quantity'!$G$11:$G$291,\"n/a\",0)","v":57.22},0]
[null,"1.1\t  Flat-Rate Offers","AVC TC-4 25-100/5-40 Mbps",{"$f":"_xlfn.XLOOKUP(C95,'Prior Year Inputs FY24'!$C$11:$C$31,'Prior Year Inputs FY24'!$F$11:$F$31,D96,0)","v":60.22},{"$f":"_xlfn.XLOOKUP(C95,'Price and Quantity'!$C$11:$C$291,'Price and Quantity'!$G$11:$G$291,\"n/a\",0)","v":60.22},0]
[null,"1.1\t  Flat-Rate Offers","AVC TC-4 50-100/20-40 Mbps",{"$f":"_xlfn.XLOOKUP(C96,'Prior Year Inputs FY24'!$C$11:$C$31,'Prior Year Inputs FY24'!$F$11:$F$31,D97,0)","v":60.22},{"$f":"_xlfn.XLOOKUP(C96,'Price and Quantity'!$C$11:$C$291,'Price and Quantity'!$G$11:$G$291,\"n/a\",0)","v":60.22},0]
[null,"1.1\t  Flat-Rate Offers","AVC TC-4 100/40 Mbps",{"$f":"_xlfn.XLOOKUP(C97,'Prior Year Inputs FY24'!$C$11:$C$31,'Prior Year Inputs FY24'!$F$11:$F$31,D98,0)","v":60.22},{"$f":"_xlfn.XLOOKUP(C97,'Price and Quantity'!$C$11:$C$291,'Price and Quantity'!$G$11:$G$291,\"n/a\",0)","v":60.22},0]
[null,"1.1\t  Flat-Rate Offers","AVC TC-4 400/10-40 Mbps",{"$f":"_xlfn.XLOOKUP(C98,'Prior Year Inputs FY24'!$C$11:$C$31,'Prior Year Inputs FY24'!$F$11:$F$31,D99,0)","v":62.22},{"$f":"_xlfn.XLOOKUP(C98,'Price and Quantity'!$C$11:$C$291,'Price and Quantity'!$G$11:$G$291,\"n/a\",0)","v":62.22},0]
[null,"1.1\t  Flat-Rate Offers","AVC TC-4 250/25 Mbps",{"$f":"_xlfn.XLOOKUP(C99,'Prior Year Inputs FY24'!$C$11:$C$31,'Prior Year Inputs FY24'!$F$11:$F$31,D100,0)","v":62.22},{"$f":"_xlfn.XLOOKUP(C99,'Price and Quantity'!$C$11:$C$291,'Price and Quantity'!$G$11:$G$291,\"n/a\",0)","v":62.22},0]
[null,"1.1\t  Flat-Rate Offers","AVC TC-4 250/100 Mbps",{"$f":"_xlfn.XLOOKUP(C100,'Prior Year Inputs FY24'!$C$11:$C$31,'Prior Year Inputs FY24'!$F$11:$F$31,D101,0)","v":75},{"$f":"_xlfn.XLOOKUP(C100,'Price and Quantity'!$C$11:$C$291,'Price and Quantity'!$G$11:$G$291,\"n/a\",0)","v":75},0]
[null,"1.1\t  Flat-Rate Offers","AVC TC-4 500/200 Mbps",{"$f":"_xlfn.XLOOKUP(C101,'Prior Year Inputs FY24'!$C$11:$C$31,'Prior Year Inputs FY24'!$F$11:$F$31,D102,0)","v":100},{"$f":"_xlfn.XLOOKUP(C101,'Price and Quantity'!$C$11:$C$291,'Price and Quantity'!$G$11:$G$291,\"n/a\",0)","v":100},0]
[null,"1.1\t  Flat-Rate Offers","AVC TC-4 1000/50 Mbps",{"$f":"_xlfn.XLOOKUP(C102,'Prior Year Inputs FY24'!$C$11:$C$31,'Prior Year Inputs FY24'!$F$11:$F$31,D103,0)","v":72.22},{"$f":"_xlfn.XLOOKUP(C102,'Price and Quantity'!$C$11:$C$291,'Price and Quantity'!$G$11:$G$291,\"n/a\",0)","v":72.22},0]
[null,"1.1\t  Flat-Rate Offers","AVC TC-4 1000/400 Mbps ",{"$f":"_xlfn.XLOOKUP(C103,'Prior Year Inputs FY24'!$C$11:$C$31,'Prior Year Inputs FY24'!$F$11:$F$31,D104,0)","v":125},{"$f":"_xlfn.XLOOKUP(C103,'Price and Quantity'!$C$11:$C$291,'Price and Quantity'!$G$11:$G$291,\"n/a\",0)","v":125},0]
[null,"1.2\t  Flat-Rate Offers - Smart Places","Smart Places - AVC TC-4 100/40 Mbps",{"$f":"_xlfn.XLOOKUP(C104,'Prior Year Inputs FY24'!$C$11:$C$31,'Prior Year Inputs FY24'!$F$11:$F$31,D105,0)","v":60.22},{"$f":"_xlfn.XLOOKUP(C104,'Price and Quantity'!$C$11:$C$291,'Price and Quantity'!$G$11:$G$291,\"n/a\",0)","v":60.22},0]
[null,"1.2\t  Flat-Rate Offers - Smart Places","Smart Places - AVC TC-4 250/100 Mbps",{"$f":"_xlfn.XLOOKUP(C105,'Prior Year Inputs FY24'!$C$11:$C$31,'Prior Year Inputs FY24'!$F$11:$F$31,D106,0)","v":75},{"$f":"_xlfn.XLOOKUP(C105,'Price and Quantity'!$C$11:$C$291,'Price and Quantity'!$G$11:$G$291,\"n/a\",0)","v":75},0]
[null,"1.2\t  Flat-Rate Offers - Smart Places","Smart Places - AVC TC-4 500/200 Mbps",{"$f":"_xlfn.XLOOKUP(C106,'Prior Year Inputs FY24'!$C$11:$C$31,'Prior Year Inputs FY24'!$F$11:$F$31,D107,0)","v":100},{"$f":"_xlfn.XLOOKUP(C106,'Price and Quantity'!$C$11:$C$291,'Price and Quantity'!$G$11:$G$291,\"n/a\",0)","v":100},0]
[null,"1.2\t  Flat-Rate Offers - Smart Places","Smart Places - AVC TC-4 1000/400 Mbps ",{"$f":"_xlfn.XLOOKUP(C107,'Prior Year Inputs FY24'!$C$11:$C$31,'Prior Year Inputs FY24'!$F$11:$F$31,D108,0)","v":125},{"$f":"_xlfn.XLOOKUP(C107,'Price and Quantity'!$C$11:$C$291,'Price and Quantity'!$G$11:$G$291,\"n/a\",0)","v":125},0]
[null,"1.3\t  Bundled TC-4 Offers ","AVC TC-4 12/1 (Basic Bundled Offer)",{"$f":"_xlfn.XLOOKUP(C108,'Prior Year Inputs FY24'!$C$11:$C$31,'Prior Year Inputs FY24'!$F$11:$F$31,D109,0)","v":12},{"$f":"_xlfn.XLOOKUP(C108,'Price and Quantity'!$C$11:$C$291,'Price and Quantity'!$G$11:$G$291,\"n/a\",0)","v":12.01},9.9999999999997868E-3]
[null,"1.3\t  Bundled TC-4 Offers ","AVC TC-4 12/1 Mbps ",{"$f":"_xlfn.XLOOKUP(C109,'Prior Year Inputs FY24'!$C$11:$C$31,'Prior Year Inputs FY24'!$F$11:$F$31,D110,0)","v":32.020000000000003},{"$f":"_xlfn.XLOOKUP(C109,'Price and Quantity'!$C$11:$C$291,'Price and Quantity'!$G$11:$G$291,\"n/a\",0)","v":32.29},0.26999999999999602]
[null,"1.3\t  Bundled TC-4 Offers ","AVC TC-4 25/5 Mbps ",{"$f":"_xlfn.XLOOKUP(C110,'Prior Year Inputs FY24'!$C$11:$C$31,'Prior Year Inputs FY24'!$F$11:$F$31,D111,0)","v":33.47},{"$f":"_xlfn.XLOOKUP(C110,'Price and Quantity'!$C$11:$C$291,'Price and Quantity'!$G$11:$G$291,\"n/a\",0)","v":33.68},0.21000000000000085]
[null,"1.3\t  Bundled TC-4 Offers ","AVC TC-4 25/5-10 Mbps ",{"$f":"_xlfn.XLOOKUP(C111,'Prior Year Inputs FY24'!$C$11:$C$31,'Prior Year Inputs FY24'!$F$11:$F$31,D112,0)","v":33.47},{"$f":"_xlfn.XLOOKUP(C111,'Price and Quantity'!$C$11:$C$291,'Price and Quantity'!$G$11:$G$291,\"n/a\",0)","v":33.68},0.21000000000000085]
[null,"1.3\t  Bundled TC-4 Offers ","AVC TC-4 25/10 Mbps ",{"$f":"_xlfn.XLOOKUP(C112,'Prior Year Inputs FY24'!$C$11:$C$31,'Prior Year Inputs FY24'!$F$11:$F$31,D113,0)","v":33.47},{"$f":"_xlfn.XLOOKUP(C112,'Price and Quantity'!$C$11:$C$291,'Price and Quantity'!$G$11:$G$291,\"n/a\",0)","v":33.68},0.21000000000000085]
[null,"1.3\t  Bundled TC-4 Offers ","AVC TC-4 25-50/5-20 Mbps ",{"$f":"_xlfn.XLOOKUP(C113,'Prior Year Inputs FY24'!$C$11:$C$31,'Prior Year Inputs FY24'!$F$11:$F$31,D114,0)","v":53.6},{"$f":"_xlfn.XLOOKUP(C113,'Price and Quantity'!$C$11:$C$291,'Price and Quantity'!$G$11:$G$291,\"n/a\",0)","v":53.68},7.9999999999998295E-2]
[null,"1.3\t  Bundled TC-4 Offers ","AVC TC-4 50/20 Mbps ",{"$f":"_xlfn.XLOOKUP(C114,'Prior Year Inputs FY24'!$C$11:$C$31,'Prior Year Inputs FY24'!$F$11:$F$31,D115,0)","v":53.6},{"$f":"_xlfn.XLOOKUP(C114,'Price and Quantity'!$C$11:$C$291,'Price and Quantity'!$G$11:$G$291,\"n/a\",0)","v":53.68},7.9999999999998295E-2]
["AVC TC-4 up to 75/up to 10 Mbps ","1.3\t  Bundled TC-4 Offers ","AVC TC-4 up to 100/up to 20 Mbps ",{"$f":"_xlfn.XLOOKUP(A115,'Prior Year Inputs FY24'!$C$11:$C$31,'Prior Year Inputs FY24'!$F$11:$F$31,D116,0)","v":53.6},{"$f":"_xlfn.XLOOKUP(C115,'Price and Quantity'!$C$11:$C$291,'Price and Quantity'!$G$11:$G$291,\"n/a\",0)","v":53.68},7.9999999999998295E-2]
[null,"1.4\t  Bundled TC-4 Offers: Smart Places","Smart Places - AVC TC-4 25/10 Mbps ",{"$f":"_xlfn.XLOOKUP(C116,'Prior Year Inputs FY24'!$C$11:$C$31,'Prior Year Inputs FY24'!$F$11:$F$31,D117,0)","v":33.47},{"$f":"_xlfn.XLOOKUP(C116,'Price and Quantity'!$C$11:$C$291,'Price and Quantity'!$G$11:$G$291,\"n/a\",0)","v":33.68},0.21000000000000085]
[null,"1.4\t  Bundled TC-4 Offers: Smart Places","Smart Places - AVC TC-4 50/20 Mbps ",{"$f":"_xlfn.XLOOKUP(C117,'Prior Year Inputs FY24'!$C$11:$C$31,'Prior Year Inputs FY24'!$F$11:$F$31,D118,0)","v":53.6},{"$f":"_xlfn.XLOOKUP(C117,'Price and Quantity'!$C$11:$C$291,'Price and Quantity'!$G$11:$G$291,\"n/a\",0)","v":53.68},7.9999999999998295E-2]
[null,"1.5  Asymmetric AVC Offers in respect of the NBN Co Satellite Network","AVC TC-4 12/1 Mbps",{"$f":"_xlfn.XLOOKUP(C118,'Prior Year Inputs FY24'!$C$11:$C$31,'Prior Year Inputs FY24'!$F$11:$F$31,D119,0)","v":24},{"$f":"_xlfn.XLOOKUP(C118,'Price and Quantity'!$C$11:$C$291,'Price and Quantity'!$G$11:$G$291,\"n/a\",0)","v":24},0]
[null,"1.5  Asymmetric AVC Offers in respect of the NBN Co Satellite Network","AVC TC-4 25/5 Mbps",{"$f":"_xlfn.XLOOKUP(C119,'Prior Year Inputs FY24'!$C$11:$C$31,'Prior Year Inputs FY24'!$F$11:$F$31,D120,0)","v":27},{"$f":"_xlfn.XLOOKUP(C119,'Price and Quantity'!$C$11:$C$291,'Price and Quantity'!$G$11:$G$291,\"n/a\",0)","v":27},0]
[]
[]
[]
[null,"Other Charges based on hourly labour rate and/or cost of materials"]
[]
[]
[null,"The SAU provides that, in respect of an Other Charge that consists of an hourly labour rate (or such other labour-based charge) and/or costs of materials: "]
[null,"(a) the labour-based component of the Other Charge may only be increased by indexing it to the ABS Wage Price Index for Private Sector Construction or by periodically resetting it with reference to the relevant rates charged to NBN Co by its contractors; and "]
[null,"(b) materials will be charged at cost. "]
[]
[null,"nbn is not increasing the labour-based component of any such Other Charge in FY25 and is not forecasting any increase to the labour-based component in FY26 and FY27."]

{"sheet":"Prior year inputs ->","index":7,"n_rows":0,"n_cols":0,"rows_kept":0,"cut":false,"hidden":false,"merged":[]}

{"sheet":"Prior Year Inputs FY24","index":8,"n_rows":31,"n_cols":6,"rows_kept":31,"cut":false,"hidden":false,"merged":[]}
["Cell colour meanings"]
[null,"Input cell"]
[null,"Calculation cell"]
[null,"Inputs used in FY24 WAPC model"]
[]
[null,"Model start financial year (t-1)",2024]
[null,"Forecast December Quarter CPI",4.1000000000000002E-2]
[]
[null,"Prices in nbn's Pricing Roadmap published for FY24 to FY26",null,null,"FY24","FY25"]
[null,"Roadmap table","Tariff List","Side Constraint Identifier"]
[null,"1.1\t  Flat-Rate Offers","AVC TC-4 100/20 Mbps","Other fixed line and fixed wireless TC-4",null,57.22]
[null,"1.1\t  Flat-Rate Offers","AVC TC-4 100/40 Mbps","Other fixed line and fixed wireless TC-4",null,60.22]
[null,"1.1\t  Flat-Rate Offers","AVC TC-4 250/25 Mbps","Other fixed line and fixed wireless TC-4",null,62.22]
[null,"1.1\t  Flat-Rate Offers","AVC TC-4 250/100 Mbps","Other fixed line and fixed wireless TC-4",null,75]
[null,"1.1\t  Flat-Rate Offers","AVC TC-4 500/200 Mbps","Other fixed line and fixed wireless TC-4",null,100]
[null,"1.1\t  Flat-Rate Offers","AVC TC-4 1000/50 Mbps","Other fixed line and fixed wireless TC-4",null,72.22]
[null,"1.1\t  Flat-Rate Offers","AVC TC-4 1000/400 Mbps ","Other fixed line and fixed wireless TC-4",null,125]
[null,"1.2\t  Flat-Rate Offers - Smart Places","Smart Places - AVC TC-4 100/40 Mbps","Other fixed line and fixed wireless TC-4",null,60.22]
[null,"1.2\t  Flat-Rate Offers - Smart Places","Smart Places - AVC TC-4 250/100 Mbps","Other fixed line and fixed wireless TC-4",null,75]
[null,"1.2\t  Flat-Rate Offers - Smart Places","Smart Places - AVC TC-4 500/200 Mbps","Other fixed line and fixed wireless TC-4",null,100]
[null,"1.2\t  Flat-Rate Offers - Smart Places","Smart Places - AVC TC-4 1000/400 Mbps ","Other fixed line and fixed wireless TC-4",null,125]
[null,"1.3\t  Bundled TC-4 Offers ","AVC TC-4 12/1 (Basic Bundled Offer)","Other fixed line and fixed wireless TC-4",null,12]
[null,"1.3\t  Bundled TC-4 Offers ","AVC TC-4 12/1 Mbps ","Other fixed line and fixed wireless TC-4",null,32.020000000000003]
[null,"1.3\t  Bundled TC-4 Offers ","AVC TC-4 25/5 Mbps ","Entry level TC-4",null,33.47]
[null,"1.3\t  Bundled TC-4 Offers ","AVC TC-4 25/10 Mbps ","Other fixed line and fixed wireless TC-4",null,33.47]
[null,"1.3\t  Bundled TC-4 Offers ","AVC TC-4 50/20 Mbps ","Other fixed line and fixed wireless TC-4",null,53.6]
[null,"1.3\t  Bundled TC-4 Offers ","AVC TC-4 up to 75/up to 10 Mbps ","Other fixed line and fixed wireless TC-4",null,53.6]
[null,"1.4\t  Bundled TC-4 Offers: Smart Places","Smart Places - AVC TC-4 25/10 Mbps ","Other fixed line and fixed wireless TC-4",null,33.47]
[null,"1.4\t  Bundled TC-4 Offers: Smart Places","Smart Places - AVC TC-4 50/20 Mbps ","Other fixed line and fixed wireless TC-4",null,53.6]
[null,"1.5  Asymmetric AVC Offers in respect of the NBN Co Satellite Network","AVC TC-4 12/1 Mbps","Satellite AVC TC-4",null,24]
[null,"1.5  Asymmetric AVC Offers in respect of the NBN Co Satellite Network","AVC TC-4 25/5 Mbps","Satellite AVC TC-4",null,27]